{"text_format":"1","workbook":"xlsx","n_sheets":3,"sheets":["Code generator","Raw data","HID Usage Table"],"not_rendered":{"charts":0,"images":0,"macros":1,"external_links":0,"defined_names":0,"comments":0,"pivot_tables":0},"unopened":[],"bounds":{"document_bytes":16777216,"sheet_cells":100000,"rows_first":2000,"rows_last":500,"rows_between":2000,"halvings":0,"cell_chars":16384,"cell_head_chars":4096},"cells_cut":0,"cells_raw":0,"read":"whole","date_system":"1900"}

{"sheet":"Code generator","index":0,"n_rows":719,"n_cols":11,"rows_kept":719,"cut":false,"hidden":false,"merged":[]}
[1,"abl",{"$f":"\"prog_char string_\"&A1&\"[] PROGMEM = \"\"\"&B1&\"\"\";\"","v":"prog_char string_1[] PROGMEM = \"abl\";"},{"$f":"\"string_\" & A1 & \",\"","v":"string_1,"},{"$f":"LEN(B1)","v":3},{"$f":"MAX(E:E)+1","v":8},null,"ab",{"$f":"IF(ISNUMBER(FIND(\"e\",H1)),1,0)+IF(ISNUMBER(FIND(\"n\",H1)),1,0)","v":0},null,"ab"]
[2,"able",{"$f":"\"prog_char string_\"&A2&\"[] PROGMEM = \"\"\"&B2&\"\"\";\"","v":"prog_char string_2[] PROGMEM = \"able\";"},{"$f":"\"string_\" & A2 & \",\"","v":"string_2,"},4,null,null,"about",0,null,"about"]
[3,"about","prog_char string_3[] PROGMEM = \"about\";","string_3,",5,null,null,"ac",0,null,"ac"]
[4,"above","prog_char string_4[] PROGMEM = \"above\";","string_4,",5,null,null,"access",1,null,"access"]
[5,"ack","prog_char string_5[] PROGMEM = \"ack\";","string_5,",3,null,null,"account",1,null,"account"]
[6,"act","prog_char string_6[] PROGMEM = \"act\";","string_6,",3,null,null,"act",0,null,"act"]
[7,"ad","prog_char string_7[] PROGMEM = \"ad\";","string_7,",2,null,null,"ad",0,null,"ad"]
[8,"add","prog_char string_8[] PROGMEM = \"add\";","string_8,",3,null,null,"add",0,null,"add"]
[9,"afraid","prog_char string_9[] PROGMEM = \"afraid\";","string_9,",6,null,null,"address",1,null,"address"]
[10,"after","prog_char string_10[] PROGMEM = \"after\";","string_10,",5,null,null,"after",1,null,"after"]
[11,"ag","prog_char string_11[] PROGMEM = \"ag\";","string_11,",2,null,null,"ag",0,null,"ag"]
[12,"again","prog_char string_12[] PROGMEM = \"again\";","string_12,",5,null,null,"age",1,null,"age"]
[13,"against","prog_char string_13[] PROGMEM = \"against\";","string_13,",7,null,null,"ai",0,null,"ai"]
[14,"age","prog_char string_14[] PROGMEM = \"age\";","string_14,",3,null,null,"al",0,null,"al"]
[15,"ago","prog_char string_15[] PROGMEM = \"ago\";","string_15,",3,null,null,"all",0,null,"all"]
[16,"agree","prog_char string_16[] PROGMEM = \"agree\";","string_16,",5,null,null,"also",0,null,"also"]
[17,"ai","prog_char string_17[] PROGMEM = \"ai\";","string_17,",2,null,null,"am",0,null,"am"]
[18,"ail","prog_char string_18[] PROGMEM = \"ail\";","string_18,",3,null,null,"ame",1,null,"ame"]
[19,"ain","prog_char string_19[] PROGMEM = \"ain\";","string_19,",3,null,null,"an",1,null,"an"]
[20,"air","prog_char string_20[] PROGMEM = \"air\";","string_20,",3,null,null,"and",1,null,"and"]
[21,"al","prog_char string_21[] PROGMEM = \"al\";","string_21,",2,null,null,"another",2,null,"another"]
[22,"ali","prog_char string_22[] PROGMEM = \"ali\";","string_22,",3,null,null,"any",1,null,"any"]
[23,"all","prog_char string_23[] PROGMEM = \"all\";","string_23,",3,null,null,"ap",0,null,"ap"]
[24,"allow","prog_char string_24[] PROGMEM = \"allow\";","string_24,",5,null,null,"ar",0,null,"ar"]
[25,"als","prog_char string_25[] PROGMEM = \"als\";","string_25,",3,null,null,"are",1,null,"are"]
[26,"also","prog_char string_26[] PROGMEM = \"also\";","string_26,",4,null,null,"area",1,null,"area"]
[27,"always","prog_char string_27[] PROGMEM = \"always\";","string_27,",6,null,null,"art",0,null,"art"]
[28,"ame","prog_char string_28[] PROGMEM = \"ame\";","string_28,",3,null,null,"as",0,null,"as"]
[29,"among","prog_char string_29[] PROGMEM = \"among\";","string_29,",5,null,null,"at",0,null,"at"]
[30,"an","prog_char string_30[] PROGMEM = \"an\";","string_30,",2,null,null,"ate",1,null,"ate"]
[31,"ana","prog_char string_31[] PROGMEM = \"ana\";","string_31,",3,null,null,"ati",0,null,"ati"]
[32,"anc","prog_char string_32[] PROGMEM = \"anc\";","string_32,",3,null,null,"atio",0,null,"atio"]
[33,"and","prog_char string_33[] PROGMEM = \"and\";","string_33,",3,null,null,"au",0,null,"au"]
[34,"answer","prog_char string_34[] PROGMEM = \"answer\";","string_34,",6,null,null,"av",0,null,"av"]
[35,"ant","prog_char string_35[] PROGMEM = \"ant\";","string_35,",3,null,null,"available",1,null,"available"]
[36,"any","prog_char string_36[] PROGMEM = \"any\";","string_36,",3,null,null,"ave",1,null,"ave"]
[37,"ap","prog_char string_37[] PROGMEM = \"ap\";","string_37,",2,null,null,"ay",0,null,"ay"]
[38,"appear","prog_char string_38[] PROGMEM = \"appear\";","string_38,",6,null,null,"ba",0,null,"ba"]
[39,"ar","prog_char string_39[] PROGMEM = \"ar\";","string_39,",2,null,null,"back",0,null,"back"]
[40,"arc","prog_char string_40[] PROGMEM = \"arc\";","string_40,",3,null,null,"based",1,null,"based"]
[41,"ard","prog_char string_41[] PROGMEM = \"ard\";","string_41,",3,null,null,"be",1,null,"be"]
[42,"are","prog_char string_42[] PROGMEM = \"are\";","string_42,",3,null,null,"because",1,null,"because"]
[43,"art","prog_char string_43[] PROGMEM = \"art\";","string_43,",3,null,null,"been",2,null,"been"]
[44,"as","prog_char string_44[] PROGMEM = \"as\";","string_44,",2,null,null,"before",1,null,"before"]
[45,"ase","prog_char string_45[] PROGMEM = \"ase\";","string_45,",3,null,null,"being",2,null,"being"]
[46,"ask","prog_char string_46[] PROGMEM = \"ask\";","string_46,",3,null,null,"best",1,null,"best"]
[47,"ass","prog_char string_47[] PROGMEM = \"ass\";","string_47,",3,null,null,"between",2,null,"between"]
[48,"ast","prog_char string_48[] PROGMEM = \"ast\";","string_48,",3,null,null,"bi",0,null,"bi"]
[49,"at","prog_char string_49[] PROGMEM = \"at\";","string_49,",2,null,null,"big",0,null,"big"]
[50,"ate","prog_char string_50[] PROGMEM = \"ate\";","string_50,",3,null,null,"bl",0,null,"bl"]
[51,"ati","prog_char string_51[] PROGMEM = \"ati\";","string_51,",3,null,null,"black",0,null,"black"]
[52,"att","prog_char string_52[] PROGMEM = \"att\";","string_52,",3,null,null,"bo",0,null,"bo"]
[53,"ave","prog_char string_53[] PROGMEM = \"ave\";","string_53,",3,null,null,"board",0,null,"board"]
[54,"back","prog_char string_54[] PROGMEM = \"back\";","string_54,",4,null,null,"book",0,null,"book"]
[55,"be","prog_char string_55[] PROGMEM = \"be\";","string_55,",2,null,null,"books",0,null,"books"]
[56,"bed","prog_char string_56[] PROGMEM = \"bed\";","string_56,",3,null,null,"both",0,null,"both"]
[57,"before","prog_char string_57[] PROGMEM = \"before\";","string_57,",6,null,null,"bu",0,null,"bu"]
[58,"begin","prog_char string_58[] PROGMEM = \"begin\";","string_58,",5,null,null,"but",0,null,"but"]
[59,"ber","prog_char string_59[] PROGMEM = \"ber\";","string_59,",3,null,null,"buy",0,null,"buy"]
[60,"best","prog_char string_60[] PROGMEM = \"best\";","string_60,",4,null,null,"by",0,null,"by"]
[61,"better","prog_char string_61[] PROGMEM = \"better\";","string_61,",6,null,null,"ca",0,null,"ca"]
[62,"between","prog_char string_62[] PROGMEM = \"between\";","string_62,",7,null,null,"call",0,null,"call"]
[63,"big","prog_char string_63[] PROGMEM = \"big\";","string_63,",3,null,null,"can",1,null,"can"]
[64,"bl","prog_char string_64[] PROGMEM = \"bl\";","string_64,",2,null,null,"car",0,null,"car"]
[65,"black","prog_char string_65[] PROGMEM = \"black\";","string_65,",{"$f":"LEN(B65)","v":5},null,null,"care",{"$f":"IF(ISNUMBER(FIND(\"e\",H65)),1,0)+IF(ISNUMBER(FIND(\"n\",H65)),1,0)","v":1},null,"care"]
[66,"ble",{"$f":"\"prog_char string_\"&A66&\"[] PROGMEM = \"\"\"&B66&\"\"\";\"","v":"prog_char string_66[] PROGMEM = \"ble\";"},{"$f":"\"string_\" & A66 & \",\"","v":"string_66,"},3,null,null,"case",1,null,"case"]
[67,"blue","prog_char string_67[] PROGMEM = \"blue\";","string_67,",4,null,null,"ce",1,null,"ce"]
[68,"bo","prog_char string_68[] PROGMEM = \"bo\";","string_68,",2,null,null,"center",2,null,"center"]
[69,"body","prog_char string_69[] PROGMEM = \"body\";","string_69,",4,null,null,"ces",1,null,"ces"]
[70,"book","prog_char string_70[] PROGMEM = \"book\";","string_70,",4,null,null,"ch",0,null,"ch"]
[71,"both","prog_char string_71[] PROGMEM = \"both\";","string_71,",4,null,null,"change",2,null,"change"]
[72,"boy","prog_char string_72[] PROGMEM = \"boy\";","string_72,",3,null,null,"check",1,null,"check"]
[73,"bring","prog_char string_73[] PROGMEM = \"bring\";","string_73,",5,null,null,"ci",0,null,"ci"]
[74,"bu","prog_char string_74[] PROGMEM = \"bu\";","string_74,",2,null,null,"city",0,null,"city"]
[75,"build","prog_char string_75[] PROGMEM = \"build\";","string_75,",5,null,null,"ck",0,null,"ck"]
[76,"but","prog_char string_76[] PROGMEM = \"but\";","string_76,",3,null,null,"cl",0,null,"cl"]
[77,"by","prog_char string_77[] PROGMEM = \"by\";","string_77,",2,null,null,"class",0,null,"class"]
[78,"cal","prog_char string_78[] PROGMEM = \"cal\";","string_78,",3,null,null,"click",0,null,"click"]
[79,"call","prog_char string_79[] PROGMEM = \"call\";","string_79,",4,null,null,"co",0,null,"co"]
[80,"can","prog_char string_80[] PROGMEM = \"can\";","string_80,",3,null,null,"code",1,null,"code"]
[81,"cannot","prog_char string_81[] PROGMEM = \"cannot\";","string_81,",6,null,null,"college",1,null,"college"]
[82,"car","prog_char string_82[] PROGMEM = \"car\";","string_82,",3,null,null,"com",0,null,"com"]
[83,"care","prog_char string_83[] PROGMEM = \"care\";","string_83,",4,null,null,"comments",2,null,"comments"]
[84,"carry","prog_char string_84[] PROGMEM = \"carry\";","string_84,",5,null,null,"company",1,null,"company"]
[85,"cat","prog_char string_85[] PROGMEM = \"cat\";","string_85,",3,null,null,"compare",1,null,"compare"]
[86,"cause","prog_char string_86[] PROGMEM = \"cause\";","string_86,",5,null,null,"computer",1,null,"computer"]
[87,"ce","prog_char string_87[] PROGMEM = \"ce\";","string_87,",2,null,null,"con",1,null,"con"]
[88,"center","prog_char string_88[] PROGMEM = \"center\";","string_88,",6,null,null,"contact",1,null,"contact"]
[89,"certain","prog_char string_89[] PROGMEM = \"certain\";","string_89,",7,null,null,"content",2,null,"content"]
[90,"ces","prog_char string_90[] PROGMEM = \"ces\";","string_90,",3,null,null,"control",1,null,"control"]
[91,"change","prog_char string_91[] PROGMEM = \"change\";","string_91,",6,null,null,"could",0,null,"could"]
[92,"che","prog_char string_92[] PROGMEM = \"che\";","string_92,",3,null,null,"county",1,null,"county"]
[93,"ci","prog_char string_93[] PROGMEM = \"ci\";","string_93,",2,null,null,"cr",0,null,"cr"]
[94,"city","prog_char string_94[] PROGMEM = \"city\";","string_94,",4,null,null,"ct",0,null,"ct"]
[95,"ck","prog_char string_95[] PROGMEM = \"ck\";","string_95,",2,null,null,"cti",0,null,"cti"]
[96,"cl","prog_char string_96[] PROGMEM = \"cl\";","string_96,",2,null,null,"cu",0,null,"cu"]
[97,"class","prog_char string_97[] PROGMEM = \"class\";","string_97,",5,null,null,"current",2,null,"current"]
[98,"clear","prog_char string_98[] PROGMEM = \"clear\";","string_98,",5,null,null,"da",0,null,"da"]
[99,"close","prog_char string_99[] PROGMEM = \"close\";","string_99,",5,null,null,"data",0,null,"data"]
[100,"co","prog_char string_100[] PROGMEM = \"co\";","string_100,",2,null,null,"date",1,null,"date"]
[101,"cold","prog_char string_101[] PROGMEM = \"cold\";","string_101,",4,null,null,"day",0,null,"day"]
[102,"color","prog_char string_102[] PROGMEM = \"color\";","string_102,",5,null,null,"days",0,null,"days"]
[103,"com","prog_char string_103[] PROGMEM = \"com\";","string_103,",3,null,null,"de",1,null,"de"]
[104,"come","prog_char string_104[] PROGMEM = \"come\";","string_104,",4,null,null,"department",2,null,"department"]
[105,"common","prog_char string_105[] PROGMEM = \"common\";","string_105,",6,null,null,"design",2,null,"design"]
[106,"con","prog_char string_106[] PROGMEM = \"con\";","string_106,",3,null,null,"details",1,null,"details"]
[107,"cou","prog_char string_107[] PROGMEM = \"cou\";","string_107,",3,null,null,"di",0,null,"di"]
[108,"could","prog_char string_108[] PROGMEM = \"could\";","string_108,",5,null,null,"did",0,null,"did"]
[109,"course","prog_char string_109[] PROGMEM = \"course\";","string_109,",6,null,null,"digital",0,null,"digital"]
[110,"cover","prog_char string_110[] PROGMEM = \"cover\";","string_110,",5,null,null,"din",1,null,"din"]
[111,"ct","prog_char string_111[] PROGMEM = \"ct\";","string_111,",2,null,null,"do",0,null,"do"]
[112,"cti","prog_char string_112[] PROGMEM = \"cti\";","string_112,",3,null,null,"does",1,null,"does"]
[113,"cut","prog_char string_113[] PROGMEM = \"cut\";","string_113,",3,null,null,"down",1,null,"down"]
[114,"da","prog_char string_114[] PROGMEM = \"da\";","string_114,",2,null,null,"download",1,null,"download"]
[115,"dark","prog_char string_115[] PROGMEM = \"dark\";","string_115,",4,null,null,"dr",0,null,"dr"]
[116,"dat","prog_char string_116[] PROGMEM = \"dat\";","string_116,",3,null,null,"ds",0,null,"ds"]
[117,"day","prog_char string_117[] PROGMEM = \"day\";","string_117,",3,null,null,"dt",0,null,"dt"]
[118,"de","prog_char string_118[] PROGMEM = \"de\";","string_118,",2,null,null,"du",0,null,"du"]
[119,"decide","prog_char string_119[] PROGMEM = \"decide\";","string_119,",6,null,null,"during",1,null,"during"]
[120,"deep","prog_char string_120[] PROGMEM = \"deep\";","string_120,",4,null,null,"dvd",0,null,"dvd"]
[121,"der","prog_char string_121[] PROGMEM = \"der\";","string_121,",3,null,null,"ea",1,null,"ea"]
[122,"develop","prog_char string_122[] PROGMEM = \"develop\";","string_122,",7,null,null,"each",1,null,"each"]
[123,"di","prog_char string_123[] PROGMEM = \"di\";","string_123,",2,null,null,"ear",1,null,"ear"]
[124,"din","prog_char string_124[] PROGMEM = \"din\";","string_124,",3,null,null,"eb",1,null,"eb"]
[125,"dis","prog_char string_125[] PROGMEM = \"dis\";","string_125,",3,null,null,"ebay",1,null,"ebay"]
[126,"do","prog_char string_126[] PROGMEM = \"do\";","string_126,",2,null,null,"ec",1,null,"ec"]
[127,"does","prog_char string_127[] PROGMEM = \"does\";","string_127,",4,null,null,"eco",1,null,"eco"]
[128,"done","prog_char string_128[] PROGMEM = \"done\";","string_128,",4,null,null,"ect",1,null,"ect"]
[129,"door","prog_char string_129[] PROGMEM = \"door\";","string_129,",{"$f":"LEN(B129)","v":4},null,null,"ed",{"$f":"IF(ISNUMBER(FIND(\"e\",H129)),1,0)+IF(ISNUMBER(FIND(\"n\",H129)),1,0)","v":1},null,"ed"]
[130,"down",{"$f":"\"prog_char string_\"&A130&\"[] PROGMEM = \"\"\"&B130&\"\"\";\"","v":"prog_char string_130[] PROGMEM = \"down\";"},{"$f":"\"string_\" & A130 & \",\"","v":"string_130,"},4,null,null,"edi",1,null,"edi"]
[131,"drive","prog_char string_131[] PROGMEM = \"drive\";","string_131,",5,null,null,"ee",1,null,"ee"]
[132,"ds","prog_char string_132[] PROGMEM = \"ds\";","string_132,",2,null,null,"ef",1,null,"ef"]
[133,"dt","prog_char string_133[] PROGMEM = \"dt\";","string_133,",2,null,null,"eg",1,null,"eg"]
[134,"du","prog_char string_134[] PROGMEM = \"du\";","string_134,",2,null,null,"ei",1,null,"ei"]
[135,"during","prog_char string_135[] PROGMEM = \"during\";","string_135,",6,null,null,"el",1,null,"el"]
[136,"ea","prog_char string_136[] PROGMEM = \"ea\";","string_136,",2,null,null,"em",1,null,"em"]
[137,"each","prog_char string_137[] PROGMEM = \"each\";","string_137,",4,null,null,"email",1,null,"email"]
[138,"ead","prog_char string_138[] PROGMEM = \"ead\";","string_138,",3,null,null,"en",2,null,"en"]
[139,"eal","prog_char string_139[] PROGMEM = \"eal\";","string_139,",3,null,null,"end",2,null,"end"]
[140,"ean","prog_char string_140[] PROGMEM = \"ean\";","string_140,",3,null,null,"ent",2,null,"ent"]
[141,"ear","prog_char string_141[] PROGMEM = \"ear\";","string_141,",3,null,null,"eo",1,null,"eo"]
[142,"early","prog_char string_142[] PROGMEM = \"early\";","string_142,",5,null,null,"ep",1,null,"ep"]
[143,"eas","prog_char string_143[] PROGMEM = \"eas\";","string_143,",3,null,null,"er",1,null,"er"]
[144,"east","prog_char string_144[] PROGMEM = \"east\";","string_144,",4,null,null,"era",1,null,"era"]
[145,"eat","prog_char string_145[] PROGMEM = \"eat\";","string_145,",3,null,null,"ere",1,null,"ere"]
[146,"eb","prog_char string_146[] PROGMEM = \"eb\";","string_146,",2,null,null,"eri",1,null,"eri"]
[147,"ec","prog_char string_147[] PROGMEM = \"ec\";","string_147,",2,null,null,"ers",1,null,"ers"]
[148,"eco","prog_char string_148[] PROGMEM = \"eco\";","string_148,",3,null,null,"es",1,null,"es"]
[149,"ect","prog_char string_149[] PROGMEM = \"ect\";","string_149,",3,null,null,"ese",1,null,"ese"]
[150,"ed","prog_char string_150[] PROGMEM = \"ed\";","string_150,",2,null,null,"ess",1,null,"ess"]
[151,"edi","prog_char string_151[] PROGMEM = \"edi\";","string_151,",3,null,null,"est",1,null,"est"]
[152,"ee","prog_char string_152[] PROGMEM = \"ee\";","string_152,",2,null,null,"et",1,null,"et"]
[153,"een","prog_char string_153[] PROGMEM = \"een\";","string_153,",3,null,null,"eth",1,null,"eth"]
[154,"ef","prog_char string_154[] PROGMEM = \"ef\";","string_154,",2,null,null,"ev",1,null,"ev"]
[155,"eg","prog_char string_155[] PROGMEM = \"eg\";","string_155,",2,null,null,"eve",1,null,"eve"]
[156,"ei","prog_char string_156[] PROGMEM = \"ei\";","string_156,",2,null,null,"even",2,null,"even"]
[157,"ein","prog_char string_157[] PROGMEM = \"ein\";","string_157,",3,null,null,"events",2,null,"events"]
[158,"el","prog_char string_158[] PROGMEM = \"el\";","string_158,",2,null,null,"ever",1,null,"ever"]
[159,"ele","prog_char string_159[] PROGMEM = \"ele\";","string_159,",3,null,null,"every",1,null,"every"]
[160,"ell","prog_char string_160[] PROGMEM = \"ell\";","string_160,",3,null,null,"ew",1,null,"ew"]
[161,"em","prog_char string_161[] PROGMEM = \"em\";","string_161,",2,null,null,"ex",1,null,"ex"]
[162,"ema","prog_char string_162[] PROGMEM = \"ema\";","string_162,",3,null,null,"ey",1,null,"ey"]
[163,"eme","prog_char string_163[] PROGMEM = \"eme\";","string_163,",3,null,null,"fa",0,null,"fa"]
[164,"en","prog_char string_164[] PROGMEM = \"en\";","string_164,",2,null,null,"family",0,null,"family"]
[165,"enc","prog_char string_165[] PROGMEM = \"enc\";","string_165,",3,null,null,"fe",1,null,"fe"]
[166,"end","prog_char string_166[] PROGMEM = \"end\";","string_166,",3,null,null,"ff",0,null,"ff"]
[167,"ene","prog_char string_167[] PROGMEM = \"ene\";","string_167,",3,null,null,"fi",0,null,"fi"]
[168,"enough","prog_char string_168[] PROGMEM = \"enough\";","string_168,",6,null,null,"file",1,null,"file"]
[169,"ent","prog_char string_169[] PROGMEM = \"ent\";","string_169,",3,null,null,"find",1,null,"find"]
[170,"entire","prog_char string_170[] PROGMEM = \"entire\";","string_170,",6,null,null,"first",0,null,"first"]
[171,"eo","prog_char string_171[] PROGMEM = \"eo\";","string_171,",2,null,null,"fo",0,null,"fo"]
[172,"eof","prog_char string_172[] PROGMEM = \"eof\";","string_172,",3,null,null,"following",1,null,"following"]
[173,"ep","prog_char string_173[] PROGMEM = \"ep\";","string_173,",2,null,null,"for",0,null,"for"]
[174,"er","prog_char string_174[] PROGMEM = \"er\";","string_174,",2,null,null,"form",0,null,"form"]
[175,"era","prog_char string_175[] PROGMEM = \"era\";","string_175,",3,null,null,"forum",0,null,"forum"]
[176,"ere","prog_char string_176[] PROGMEM = \"ere\";","string_176,",3,null,null,"found",1,null,"found"]
[177,"eri","prog_char string_177[] PROGMEM = \"eri\";","string_177,",3,null,null,"fr",0,null,"fr"]
[178,"ers","prog_char string_178[] PROGMEM = \"ers\";","string_178,",3,null,null,"free",1,null,"free"]
[179,"ert","prog_char string_179[] PROGMEM = \"ert\";","string_179,",3,null,null,"from",0,null,"from"]
[180,"erv","prog_char string_180[] PROGMEM = \"erv\";","string_180,",3,null,null,"ft",0,null,"ft"]
[181,"es","prog_char string_181[] PROGMEM = \"es\";","string_181,",2,null,null,"full",0,null,"full"]
[182,"ese","prog_char string_182[] PROGMEM = \"ese\";","string_182,",3,null,null,"ga",0,null,"ga"]
[183,"ess","prog_char string_183[] PROGMEM = \"ess\";","string_183,",3,null,null,"game",1,null,"game"]
[184,"est","prog_char string_184[] PROGMEM = \"est\";","string_184,",3,null,null,"games",1,null,"games"]
[185,"et","prog_char string_185[] PROGMEM = \"et\";","string_185,",2,null,null,"ge",1,null,"ge"]
[186,"eth","prog_char string_186[] PROGMEM = \"eth\";","string_186,",3,null,null,"general",2,null,"general"]
[187,"eto","prog_char string_187[] PROGMEM = \"eto\";","string_187,",3,null,null,"get",1,null,"get"]
[188,"ev","prog_char string_188[] PROGMEM = \"ev\";","string_188,",2,null,null,"gh",0,null,"gh"]
[189,"eve","prog_char string_189[] PROGMEM = \"eve\";","string_189,",3,null,null,"gi",0,null,"gi"]
[190,"even","prog_char string_190[] PROGMEM = \"even\";","string_190,",4,null,null,"go",0,null,"go"]
[191,"ever","prog_char string_191[] PROGMEM = \"ever\";","string_191,",4,null,null,"good",0,null,"good"]
[192,"every","prog_char string_192[] PROGMEM = \"every\";","string_192,",5,null,null,"gr",0,null,"gr"]
[193,"ew","prog_char string_193[] PROGMEM = \"ew\";","string_193,",{"$f":"LEN(B193)","v":2},null,null,"great",{"$f":"IF(ISNUMBER(FIND(\"e\",H193)),1,0)+IF(ISNUMBER(FIND(\"n\",H193)),1,0)","v":1},null,"great"]
[194,"ex",{"$f":"\"prog_char string_\"&A194&\"[] PROGMEM = \"\"\"&B194&\"\"\";\"","v":"prog_char string_194[] PROGMEM = \"ex\";"},{"$f":"\"string_\" & A194 & \",\"","v":"string_194,"},2,null,null,"group",0,null,"group"]
[195,"eye","prog_char string_195[] PROGMEM = \"eye\";","string_195,",3,null,null,"guide",1,null,"guide"]
[196,"fa","prog_char string_196[] PROGMEM = \"fa\";","string_196,",2,null,null,"ha",0,null,"ha"]
[197,"face","prog_char string_197[] PROGMEM = \"face\";","string_197,",4,null,null,"had",0,null,"had"]
[198,"fact","prog_char string_198[] PROGMEM = \"fact\";","string_198,",4,null,null,"has",0,null,"has"]
[199,"fall","prog_char string_199[] PROGMEM = \"fall\";","string_199,",4,null,null,"hat",0,null,"hat"]
[200,"far","prog_char string_200[] PROGMEM = \"far\";","string_200,",3,null,null,"have",1,null,"have"]
[201,"fe","prog_char string_201[] PROGMEM = \"fe\";","string_201,",2,null,null,"he",1,null,"he"]
[202,"feel","prog_char string_202[] PROGMEM = \"feel\";","string_202,",4,null,null,"health",1,null,"health"]
[203,"few","prog_char string_203[] PROGMEM = \"few\";","string_203,",3,null,null,"help",1,null,"help"]
[204,"fi","prog_char string_204[] PROGMEM = \"fi\";","string_204,",2,null,null,"her",1,null,"her"]
[205,"field","prog_char string_205[] PROGMEM = \"field\";","string_205,",5,null,null,"here",1,null,"here"]
[206,"figure","prog_char string_206[] PROGMEM = \"figure\";","string_206,",6,null,null,"hi",0,null,"hi"]
[207,"find","prog_char string_207[] PROGMEM = \"find\";","string_207,",4,null,null,"hich",0,null,"hich"]
[208,"fine","prog_char string_208[] PROGMEM = \"fine\";","string_208,",4,null,null,"high",0,null,"high"]
[209,"finish","prog_char string_209[] PROGMEM = \"finish\";","string_209,",6,null,null,"him",0,null,"him"]
[210,"fire","prog_char string_210[] PROGMEM = \"fire\";","string_210,",4,null,null,"hing",1,null,"hing"]
[211,"first","prog_char string_211[] PROGMEM = \"first\";","string_211,",5,null,null,"his",0,null,"his"]
[212,"five","prog_char string_212[] PROGMEM = \"five\";","string_212,",4,null,null,"history",0,null,"history"]
[213,"fo","prog_char string_213[] PROGMEM = \"fo\";","string_213,",2,null,null,"ho",0,null,"ho"]
[214,"follow","prog_char string_214[] PROGMEM = \"follow\";","string_214,",6,null,null,"home",1,null,"home"]
[215,"food","prog_char string_215[] PROGMEM = \"food\";","string_215,",4,null,null,"hotel",1,null,"hotel"]
[216,"foot","prog_char string_216[] PROGMEM = \"foot\";","string_216,",4,null,null,"hotels",1,null,"hotels"]
[217,"for","prog_char string_217[] PROGMEM = \"for\";","string_217,",3,null,null,"hours",0,null,"hours"]
[218,"force","prog_char string_218[] PROGMEM = \"force\";","string_218,",5,null,null,"house",1,null,"house"]
[219,"form","prog_char string_219[] PROGMEM = \"form\";","string_219,",4,null,null,"how",0,null,"how"]
[220,"four","prog_char string_220[] PROGMEM = \"four\";","string_220,",4,null,null,"ht",0,null,"ht"]
[221,"fr","prog_char string_221[] PROGMEM = \"fr\";","string_221,",2,null,null,"ia",0,null,"ia"]
[222,"free","prog_char string_222[] PROGMEM = \"free\";","string_222,",4,null,null,"ic",0,null,"ic"]
[223,"fro","prog_char string_223[] PROGMEM = \"fro\";","string_223,",3,null,null,"ica",0,null,"ica"]
[224,"from","prog_char string_224[] PROGMEM = \"from\";","string_224,",4,null,null,"ice",1,null,"ice"]
[225,"ft","prog_char string_225[] PROGMEM = \"ft\";","string_225,",2,null,null,"id",0,null,"id"]
[226,"fth","prog_char string_226[] PROGMEM = \"fth\";","string_226,",3,null,null,"ide",1,null,"ide"]
[227,"full","prog_char string_227[] PROGMEM = \"full\";","string_227,",4,null,null,"ie",1,null,"ie"]
[228,"ga","prog_char string_228[] PROGMEM = \"ga\";","string_228,",2,null,null,"ies",1,null,"ies"]
[229,"game","prog_char string_229[] PROGMEM = \"game\";","string_229,",4,null,null,"if",0,null,"if"]
[230,"ge","prog_char string_230[] PROGMEM = \"ge\";","string_230,",2,null,null,"ig",0,null,"ig"]
[231,"get","prog_char string_231[] PROGMEM = \"get\";","string_231,",3,null,null,"igh",0,null,"igh"]
[232,"gh","prog_char string_232[] PROGMEM = \"gh\";","string_232,",2,null,null,"ight",0,null,"ight"]
[233,"ght","prog_char string_233[] PROGMEM = \"ght\";","string_233,",3,null,null,"il",0,null,"il"]
[234,"gi","prog_char string_234[] PROGMEM = \"gi\";","string_234,",2,null,null,"ill",0,null,"ill"]
[235,"girl","prog_char string_235[] PROGMEM = \"girl\";","string_235,",4,null,null,"im",0,null,"im"]
[236,"give","prog_char string_236[] PROGMEM = \"give\";","string_236,",4,null,null,"image",1,null,"image"]
[237,"go","prog_char string_237[] PROGMEM = \"go\";","string_237,",2,null,null,"in",1,null,"in"]
[238,"good","prog_char string_238[] PROGMEM = \"good\";","string_238,",4,null,null,"include",2,null,"include"]
[239,"gr","prog_char string_239[] PROGMEM = \"gr\";","string_239,",2,null,null,"including",1,null,"including"]
[240,"gra","prog_char string_240[] PROGMEM = \"gra\";","string_240,",3,null,null,"ine",2,null,"ine"]
[241,"great","prog_char string_241[] PROGMEM = \"great\";","string_241,",5,null,null,"info",1,null,"info"]
[242,"green","prog_char string_242[] PROGMEM = \"green\";","string_242,",5,null,null,"ing",1,null,"ing"]
[243,"ground","prog_char string_243[] PROGMEM = \"ground\";","string_243,",6,null,null,"int",1,null,"int"]
[244,"group","prog_char string_244[] PROGMEM = \"group\";","string_244,",5,null,null,"into",1,null,"into"]
[245,"had","prog_char string_245[] PROGMEM = \"had\";","string_245,",3,null,null,"io",0,null,"io"]
[246,"half","prog_char string_246[] PROGMEM = \"half\";","string_246,",4,null,null,"ion",1,null,"ion"]
[247,"han","prog_char string_247[] PROGMEM = \"han\";","string_247,",3,null,null,"ip",0,null,"ip"]
[248,"hand","prog_char string_248[] PROGMEM = \"hand\";","string_248,",4,null,null,"ir",0,null,"ir"]
[249,"happen","prog_char string_249[] PROGMEM = \"happen\";","string_249,",6,null,null,"is",0,null,"is"]
[250,"hard","prog_char string_250[] PROGMEM = \"hard\";","string_250,",4,null,null,"ist",0,null,"ist"]
[251,"has","prog_char string_251[] PROGMEM = \"has\";","string_251,",3,null,null,"it",0,null,"it"]
[252,"hat","prog_char string_252[] PROGMEM = \"hat\";","string_252,",3,null,null,"ite",1,null,"ite"]
[253,"have","prog_char string_253[] PROGMEM = \"have\";","string_253,",4,null,null,"item",1,null,"item"]
[254,"he","prog_char string_254[] PROGMEM = \"he\";","string_254,",2,null,null,"items",1,null,"items"]
[255,"hea","prog_char string_255[] PROGMEM = \"hea\";","string_255,",3,null,null,"ith",0,null,"ith"]
[256,"head","prog_char string_256[] PROGMEM = \"head\";","string_256,",4,null,null,"iti",0,null,"iti"]
[257,"hear","prog_char string_257[] PROGMEM = \"hear\";","string_257,",{"$f":"LEN(B257)","v":4},null,null,"its",{"$f":"IF(ISNUMBER(FIND(\"e\",H257)),1,0)+IF(ISNUMBER(FIND(\"n\",H257)),1,0)","v":0},null,"its"]
[258,"help",{"$f":"\"prog_char string_\"&A258&\"[] PROGMEM = \"\"\"&B258&\"\"\";\"","v":"prog_char string_258[] PROGMEM = \"help\";"},{"$f":"\"string_\" & A258 & \",\"","v":"string_258,"},4,null,null,"ity",0,null,"ity"]
[259,"hen","prog_char string_259[] PROGMEM = \"hen\";","string_259,",3,null,null,"iv",0,null,"iv"]
[260,"her","prog_char string_260[] PROGMEM = \"her\";","string_260,",3,null,null,"ive",1,null,"ive"]
[261,"here","prog_char string_261[] PROGMEM = \"here\";","string_261,",4,null,null,"jan",1,null,"jan"]
[262,"hes","prog_char string_262[] PROGMEM = \"hes\";","string_262,",3,null,null,"just",0,null,"just"]
[263,"hi","prog_char string_263[] PROGMEM = \"hi\";","string_263,",2,null,null,"ke",1,null,"ke"]
[264,"high","prog_char string_264[] PROGMEM = \"high\";","string_264,",4,null,null,"ki",0,null,"ki"]
[265,"him","prog_char string_265[] PROGMEM = \"him\";","string_265,",3,null,null,"know",1,null,"know"]
[266,"hin","prog_char string_266[] PROGMEM = \"hin\";","string_266,",3,null,null,"la",0,null,"la"]
[267,"his","prog_char string_267[] PROGMEM = \"his\";","string_267,",3,null,null,"last",0,null,"last"]
[268,"ho","prog_char string_268[] PROGMEM = \"ho\";","string_268,",2,null,null,"ld",0,null,"ld"]
[269,"hold","prog_char string_269[] PROGMEM = \"hold\";","string_269,",4,null,null,"le",1,null,"le"]
[270,"home","prog_char string_270[] PROGMEM = \"home\";","string_270,",4,null,null,"level",1,null,"level"]
[271,"hot","prog_char string_271[] PROGMEM = \"hot\";","string_271,",3,null,null,"li",0,null,"li"]
[272,"hour","prog_char string_272[] PROGMEM = \"hour\";","string_272,",4,null,null,"life",1,null,"life"]
[273,"house","prog_char string_273[] PROGMEM = \"house\";","string_273,",5,null,null,"like",1,null,"like"]
[274,"how","prog_char string_274[] PROGMEM = \"how\";","string_274,",3,null,null,"lin",1,null,"lin"]
[275,"ht","prog_char string_275[] PROGMEM = \"ht\";","string_275,",2,null,null,"line",2,null,"line"]
[276,"ia","prog_char string_276[] PROGMEM = \"ia\";","string_276,",2,null,null,"link",1,null,"link"]
[277,"ial","prog_char string_277[] PROGMEM = \"ial\";","string_277,",3,null,null,"links",1,null,"links"]
[278,"ic","prog_char string_278[] PROGMEM = \"ic\";","string_278,",2,null,null,"list",0,null,"list"]
[279,"ica","prog_char string_279[] PROGMEM = \"ica\";","string_279,",3,null,null,"listing",1,null,"listing"]
[280,"ice","prog_char string_280[] PROGMEM = \"ice\";","string_280,",3,null,null,"little",1,null,"little"]
[281,"id","prog_char string_281[] PROGMEM = \"id\";","string_281,",2,null,null,"ll",0,null,"ll"]
[282,"ide","prog_char string_282[] PROGMEM = \"ide\";","string_282,",3,null,null,"lo",0,null,"lo"]
[283,"idea","prog_char string_283[] PROGMEM = \"idea\";","string_283,",4,null,null,"local",0,null,"local"]
[284,"ie","prog_char string_284[] PROGMEM = \"ie\";","string_284,",2,null,null,"location",1,null,"location"]
[285,"ies","prog_char string_285[] PROGMEM = \"ies\";","string_285,",3,null,null,"long",1,null,"long"]
[286,"if","prog_char string_286[] PROGMEM = \"if\";","string_286,",2,null,null,"low",0,null,"low"]
[287,"ig","prog_char string_287[] PROGMEM = \"ig\";","string_287,",2,null,null,"ls",0,null,"ls"]
[288,"igh","prog_char string_288[] PROGMEM = \"igh\";","string_288,",3,null,null,"lt",0,null,"lt"]
[289,"il","prog_char string_289[] PROGMEM = \"il\";","string_289,",2,null,null,"lu",0,null,"lu"]
[290,"ill","prog_char string_290[] PROGMEM = \"ill\";","string_290,",3,null,null,"ly",0,null,"ly"]
[291,"im","prog_char string_291[] PROGMEM = \"im\";","string_291,",2,null,null,"ma",0,null,"ma"]
[292,"in","prog_char string_292[] PROGMEM = \"in\";","string_292,",2,null,null,"made",1,null,"made"]
[293,"ina","prog_char string_293[] PROGMEM = \"ina\";","string_293,",3,null,null,"mail",0,null,"mail"]
[294,"inc","prog_char string_294[] PROGMEM = \"inc\";","string_294,",3,null,null,"main",1,null,"main"]
[295,"ind","prog_char string_295[] PROGMEM = \"ind\";","string_295,",3,null,null,"make",1,null,"make"]
[296,"ine","prog_char string_296[] PROGMEM = \"ine\";","string_296,",3,null,null,"management",2,null,"management"]
[297,"ing","prog_char string_297[] PROGMEM = \"ing\";","string_297,",3,null,null,"many",1,null,"many"]
[298,"ins","prog_char string_298[] PROGMEM = \"ins\";","string_298,",3,null,null,"map",0,null,"map"]
[299,"int","prog_char string_299[] PROGMEM = \"int\";","string_299,",3,null,null,"may",0,null,"may"]
[300,"io","prog_char string_300[] PROGMEM = \"io\";","string_300,",2,null,null,"mb",0,null,"mb"]
[301,"ion","prog_char string_301[] PROGMEM = \"ion\";","string_301,",3,null,null,"me",1,null,"me"]
[302,"ir","prog_char string_302[] PROGMEM = \"ir\";","string_302,",2,null,null,"media",1,null,"media"]
[303,"ire","prog_char string_303[] PROGMEM = \"ire\";","string_303,",3,null,null,"members",1,null,"members"]
[304,"is","prog_char string_304[] PROGMEM = \"is\";","string_304,",2,null,null,"men",2,null,"men"]
[305,"ist","prog_char string_305[] PROGMEM = \"ist\";","string_305,",3,null,null,"ment",2,null,"ment"]
[306,"it","prog_char string_306[] PROGMEM = \"it\";","string_306,",2,null,null,"mi",0,null,"mi"]
[307,"ite","prog_char string_307[] PROGMEM = \"ite\";","string_307,",3,null,null,"mm",0,null,"mm"]
[308,"ith","prog_char string_308[] PROGMEM = \"ith\";","string_308,",3,null,null,"mo",0,null,"mo"]
[309,"iti","prog_char string_309[] PROGMEM = \"iti\";","string_309,",3,null,null,"money",2,null,"money"]
[310,"ity","prog_char string_310[] PROGMEM = \"ity\";","string_310,",3,null,null,"more",1,null,"more"]
[311,"iv","prog_char string_311[] PROGMEM = \"iv\";","string_311,",2,null,null,"most",0,null,"most"]
[312,"ive","prog_char string_312[] PROGMEM = \"ive\";","string_312,",3,null,null,"movies",1,null,"movies"]
[313,"just","prog_char string_313[] PROGMEM = \"just\";","string_313,",4,null,null,"mp",0,null,"mp"]
[314,"ke","prog_char string_314[] PROGMEM = \"ke\";","string_314,",2,null,null,"ms",0,null,"ms"]
[315,"keep","prog_char string_315[] PROGMEM = \"keep\";","string_315,",4,null,null,"much",0,null,"much"]
[316,"kind","prog_char string_316[] PROGMEM = \"kind\";","string_316,",4,null,null,"must",0,null,"must"]
[317,"knew","prog_char string_317[] PROGMEM = \"knew\";","string_317,",4,null,null,"my",0,null,"my"]
[318,"know","prog_char string_318[] PROGMEM = \"know\";","string_318,",4,null,null,"na",1,null,"na"]
[319,"la","prog_char string_319[] PROGMEM = \"la\";","string_319,",2,null,null,"nal",1,null,"nal"]
[320,"lan","prog_char string_320[] PROGMEM = \"lan\";","string_320,",3,null,null,"name",2,null,"name"]
[321,"land","prog_char string_321[] PROGMEM = \"land\";","string_321,",{"$f":"LEN(B321)","v":4},null,null,"nc",{"$f":"IF(ISNUMBER(FIND(\"e\",H321)),1,0)+IF(ISNUMBER(FIND(\"n\",H321)),1,0)","v":1},null,"nc"]
[322,"large",{"$f":"\"prog_char string_\"&A322&\"[] PROGMEM = \"\"\"&B322&\"\"\";\"","v":"prog_char string_322[] PROGMEM = \"large\";"},{"$f":"\"string_\" & A322 & \",\"","v":"string_322,"},5,null,null,"nce",2,null,"nce"]
[323,"last","prog_char string_323[] PROGMEM = \"last\";","string_323,",4,null,null,"nd",1,null,"nd"]
[324,"lat","prog_char string_324[] PROGMEM = \"lat\";","string_324,",3,null,null,"ne",2,null,"ne"]
[325,"late","prog_char string_325[] PROGMEM = \"late\";","string_325,",4,null,null,"need",2,null,"need"]
[326,"lay","prog_char string_326[] PROGMEM = \"lay\";","string_326,",3,null,null,"network",2,null,"network"]
[327,"ld",{"$f":"\"prog_char string_\"&A327&\"[] PROGMEM = \"\"\"&B327&\"\"\";\"","v":"prog_char string_327[] PROGMEM = \"ld\";"},{"$f":"\"string_\" & A327 & \",\"","v":"string_327,"},2,null,null,"new",2,null,"new"]
[328,"le","prog_char string_328[] PROGMEM = \"le\";","string_328,",2,null,null,"news",2,null,"news"]
[329,"lea","prog_char string_329[] PROGMEM = \"lea\";","string_329,",3,null,null,"next",2,null,"next"]
[330,"lead","prog_char string_330[] PROGMEM = \"lead\";","string_330,",4,null,null,"nf",1,null,"nf"]
[331,"learn","prog_char string_331[] PROGMEM = \"learn\";","string_331,",5,null,null,"ng",1,null,"ng"]
[332,"leave","prog_char string_332[] PROGMEM = \"leave\";","string_332,",5,null,null,"ni",1,null,"ni"]
[333,"left","prog_char string_333[] PROGMEM = \"left\";","string_333,",4,null,null,"no",1,null,"no"]
[334,"les","prog_char string_334[] PROGMEM = \"les\";","string_334,",3,null,null,"non",1,null,"non"]
[335,"less","prog_char string_335[] PROGMEM = \"less\";","string_335,",4,null,null,"not",1,null,"not"]
[336,"let","prog_char string_336[] PROGMEM = \"let\";","string_336,",3,null,null,"now",1,null,"now"]
[337,"letter","prog_char string_337[] PROGMEM = \"letter\";","string_337,",6,null,null,"ns",1,null,"ns"]
[338,"li","prog_char string_338[] PROGMEM = \"li\";","string_338,",2,null,null,"nt",1,null,"nt"]
[339,"lic","prog_char string_339[] PROGMEM = \"lic\";","string_339,",3,null,null,"nte",2,null,"nte"]
[340,"life","prog_char string_340[] PROGMEM = \"life\";","string_340,",4,null,null,"nth",1,null,"nth"]
[341,"light","prog_char string_341[] PROGMEM = \"light\";","string_341,",5,null,null,"nts",1,null,"nts"]
[342,"like","prog_char string_342[] PROGMEM = \"like\";","string_342,",4,null,null,"number",2,null,"number"]
[343,"lin","prog_char string_343[] PROGMEM = \"lin\";","string_343,",3,null,null,"oa",0,null,"oa"]
[344,"line","prog_char string_344[] PROGMEM = \"line\";","string_344,",4,null,null,"ob",0,null,"ob"]
[345,"lis","prog_char string_345[] PROGMEM = \"lis\";","string_345,",3,null,null,"oc",0,null,"oc"]
[346,"list","prog_char string_346[] PROGMEM = \"list\";","string_346,",4,null,null,"od",0,null,"od"]
[347,"lit","prog_char string_347[] PROGMEM = \"lit\";","string_347,",3,null,null,"of",0,null,"of"]
[348,"little","prog_char string_348[] PROGMEM = \"little\";","string_348,",6,null,null,"off",0,null,"off"]
[349,"live","prog_char string_349[] PROGMEM = \"live\";","string_349,",4,null,null,"office",1,null,"office"]
[350,"ll","prog_char string_350[] PROGMEM = \"ll\";","string_350,",2,null,null,"oft",0,null,"oft"]
[351,"lle","prog_char string_351[] PROGMEM = \"lle\";","string_351,",3,null,null,"og",0,null,"og"]
[352,"lo","prog_char string_352[] PROGMEM = \"lo\";","string_352,",2,null,null,"ol",0,null,"ol"]
[353,"long","prog_char string_353[] PROGMEM = \"long\";","string_353,",4,null,null,"old",0,null,"old"]
[354,"look","prog_char string_354[] PROGMEM = \"look\";","string_354,",4,null,null,"om",0,null,"om"]
[355,"lot","prog_char string_355[] PROGMEM = \"lot\";","string_355,",3,null,null,"ome",1,null,"ome"]
[356,"love","prog_char string_356[] PROGMEM = \"love\";","string_356,",4,null,null,"on",1,null,"on"]
[357,"low","prog_char string_357[] PROGMEM = \"low\";","string_357,",3,null,null,"ona",1,null,"ona"]
[358,"ls","prog_char string_358[] PROGMEM = \"ls\";","string_358,",2,null,null,"one",2,null,"one"]
[359,"lt","prog_char string_359[] PROGMEM = \"lt\";","string_359,",2,null,null,"online",2,null,"online"]
[360,"ly","prog_char string_360[] PROGMEM = \"ly\";","string_360,",2,null,null,"only",1,null,"only"]
[361,"main","prog_char string_361[] PROGMEM = \"main\";","string_361,",4,null,null,"ons",1,null,"ons"]
[362,"make","prog_char string_362[] PROGMEM = \"make\";","string_362,",4,null,null,"ont",1,null,"ont"]
[363,"man","prog_char string_363[] PROGMEM = \"man\";","string_363,",3,null,null,"oo",0,null,"oo"]
[364,"many","prog_char string_364[] PROGMEM = \"many\";","string_364,",4,null,null,"op",0,null,"op"]
[365,"mat","prog_char string_365[] PROGMEM = \"mat\";","string_365,",3,null,null,"open",2,null,"open"]
[366,"may","prog_char string_366[] PROGMEM = \"may\";","string_366,",3,null,null,"or",0,null,"or"]
[367,"me","prog_char string_367[] PROGMEM = \"me\";","string_367,",2,null,null,"order",1,null,"order"]
[368,"mean","prog_char string_368[] PROGMEM = \"mean\";","string_368,",4,null,null,"ore",1,null,"ore"]
[369,"men","prog_char string_369[] PROGMEM = \"men\";","string_369,",3,null,null,"ort",0,null,"ort"]
[370,"mi","prog_char string_370[] PROGMEM = \"mi\";","string_370,",2,null,null,"os",0,null,"os"]
[371,"might","prog_char string_371[] PROGMEM = \"might\";","string_371,",5,null,null,"ot",0,null,"ot"]
[372,"min","prog_char string_372[] PROGMEM = \"min\";","string_372,",3,null,null,"oth",0,null,"oth"]
[373,"mind","prog_char string_373[] PROGMEM = \"mind\";","string_373,",4,null,null,"other",1,null,"other"]
[374,"miss","prog_char string_374[] PROGMEM = \"miss\";","string_374,",4,null,null,"ou",0,null,"ou"]
[375,"mo","prog_char string_375[] PROGMEM = \"mo\";","string_375,",2,null,null,"ough",0,null,"ough"]
[376,"money","prog_char string_376[] PROGMEM = \"money\";","string_376,",5,null,null,"ould",0,null,"ould"]
[377,"mor","prog_char string_377[] PROGMEM = \"mor\";","string_377,",3,null,null,"oun",1,null,"oun"]
[378,"more","prog_char string_378[] PROGMEM = \"more\";","string_378,",4,null,null,"our",0,null,"our"]
[379,"most","prog_char string_379[] PROGMEM = \"most\";","string_379,",4,null,null,"out",0,null,"out"]
[380,"move","prog_char string_380[] PROGMEM = \"move\";","string_380,",4,null,null,"ov",0,null,"ov"]
[381,"mp","prog_char string_381[] PROGMEM = \"mp\";","string_381,",2,null,null,"over",1,null,"over"]
[382,"much","prog_char string_382[] PROGMEM = \"much\";","string_382,",4,null,null,"ow",0,null,"ow"]
[383,"music","prog_char string_383[] PROGMEM = \"music\";","string_383,",5,null,null,"own",1,null,"own"]
[384,"must","prog_char string_384[] PROGMEM = \"must\";","string_384,",4,null,null,"pa",0,null,"pa"]
[385,"my","prog_char string_385[] PROGMEM = \"my\";","string_385,",{"$f":"LEN(B385)","v":2},null,null,"page",{"$f":"IF(ISNUMBER(FIND(\"e\",H385)),1,0)+IF(ISNUMBER(FIND(\"n\",H385)),1,0)","v":1},null,"page"]
[386,"na","prog_char string_386[] PROGMEM = \"na\";","string_386,",2,null,null,"pages",1,null,"pages"]
[387,"nal","prog_char string_387[] PROGMEM = \"nal\";","string_387,",3,null,null,"part",0,null,"part"]
[388,"name","prog_char string_388[] PROGMEM = \"name\";","string_388,",4,null,null,"pe",1,null,"pe"]
[389,"nc","prog_char string_389[] PROGMEM = \"nc\";","string_389,",2,null,null,"people",1,null,"people"]
[390,"nce","prog_char string_390[] PROGMEM = \"nce\";","string_390,",3,null,null,"per",1,null,"per"]
[391,"nd",{"$f":"\"prog_char string_\"&A391&\"[] PROGMEM = \"\"\"&B391&\"\"\";\"","v":"prog_char string_391[] PROGMEM = \"nd\";"},{"$f":"\"string_\" & A391 & \",\"","v":"string_391,"},2,null,null,"personal",2,null,"personal"]
[392,"nda","prog_char string_392[] PROGMEM = \"nda\";","string_392,",3,null,null,"phone",2,null,"phone"]
[393,"nde","prog_char string_393[] PROGMEM = \"nde\";","string_393,",3,null,null,"photo",0,null,"photo"]
[394,"ndi","prog_char string_394[] PROGMEM = \"ndi\";","string_394,",3,null,null,"pi",0,null,"pi"]
[395,"nds","prog_char string_395[] PROGMEM = \"nds\";","string_395,",3,null,null,"pictures",1,null,"pictures"]
[396,"ne","prog_char string_396[] PROGMEM = \"ne\";","string_396,",2,null,null,"pl",0,null,"pl"]
[397,"near","prog_char string_397[] PROGMEM = \"near\";","string_397,",4,null,null,"place",1,null,"place"]
[398,"need","prog_char string_398[] PROGMEM = \"need\";","string_398,",4,null,null,"please",1,null,"please"]
[399,"nes","prog_char string_399[] PROGMEM = \"nes\";","string_399,",3,null,null,"pm",0,null,"pm"]
[400,"never","prog_char string_400[] PROGMEM = \"never\";","string_400,",5,null,null,"po",0,null,"po"]
[401,"new","prog_char string_401[] PROGMEM = \"new\";","string_401,",3,null,null,"policy",0,null,"policy"]
[402,"next","prog_char string_402[] PROGMEM = \"next\";","string_402,",4,null,null,"post",0,null,"post"]
[403,"ng","prog_char string_403[] PROGMEM = \"ng\";","string_403,",2,null,null,"posted",1,null,"posted"]
[404,"ngt","prog_char string_404[] PROGMEM = \"ngt\";","string_404,",3,null,null,"posts",0,null,"posts"]
[405,"ni","prog_char string_405[] PROGMEM = \"ni\";","string_405,",2,null,null,"power",1,null,"power"]
[406,"night","prog_char string_406[] PROGMEM = \"night\";","string_406,",5,null,null,"pp",0,null,"pp"]
[407,"nin","prog_char string_407[] PROGMEM = \"nin\";","string_407,",3,null,null,"pr",0,null,"pr"]
[408,"no","prog_char string_408[] PROGMEM = \"no\";","string_408,",2,null,null,"previous",1,null,"previous"]
[409,"north","prog_char string_409[] PROGMEM = \"north\";","string_409,",5,null,null,"price",1,null,"price"]
[410,"not","prog_char string_410[] PROGMEM = \"not\";","string_410,",3,null,null,"prices",1,null,"prices"]
[411,"note","prog_char string_411[] PROGMEM = \"note\";","string_411,",4,null,null,"pro",0,null,"pro"]
[412,"nothing","prog_char string_412[] PROGMEM = \"nothing\";","string_412,",7,null,null,"product",0,null,"product"]
[413,"now","prog_char string_413[] PROGMEM = \"now\";","string_413,",3,null,null,"products",0,null,"products"]
[414,"ns","prog_char string_414[] PROGMEM = \"ns\";","string_414,",2,null,null,"profile",1,null,"profile"]
[415,"nt","prog_char string_415[] PROGMEM = \"nt\";","string_415,",2,null,null,"program",0,null,"program"]
[416,"nta","prog_char string_416[] PROGMEM = \"nta\";","string_416,",3,null,null,"project",1,null,"project"]
[417,"nte","prog_char string_417[] PROGMEM = \"nte\";","string_417,",3,null,null,"public",0,null,"public"]
[418,"nth","prog_char string_418[] PROGMEM = \"nth\";","string_418,",3,null,null,"qu",0,null,"qu"]
[419,"nti","prog_char string_419[] PROGMEM = \"nti\";","string_419,",3,null,null,"quality",0,null,"quality"]
[420,"nto","prog_char string_420[] PROGMEM = \"nto\";","string_420,",3,null,null,"ra",0,null,"ra"]
[421,"nts","prog_char string_421[] PROGMEM = \"nts\";","string_421,",3,null,null,"ran",1,null,"ran"]
[422,"number","prog_char string_422[] PROGMEM = \"number\";","string_422,",6,null,null,"rat",0,null,"rat"]
[423,"oc","prog_char string_423[] PROGMEM = \"oc\";","string_423,",2,null,null,"rate",1,null,"rate"]
[424,"od","prog_char string_424[] PROGMEM = \"od\";","string_424,",2,null,null,"rc",0,null,"rc"]
[425,"of","prog_char string_425[] PROGMEM = \"of\";","string_425,",2,null,null,"rd",0,null,"rd"]
[426,"off","prog_char string_426[] PROGMEM = \"off\";","string_426,",3,null,null,"re",1,null,"re"]
[427,"oft","prog_char string_427[] PROGMEM = \"oft\";","string_427,",3,null,null,"rea",1,null,"rea"]
[428,"often","prog_char string_428[] PROGMEM = \"often\";","string_428,",5,null,null,"read",1,null,"read"]
[429,"oh","prog_char string_429[] PROGMEM = \"oh\";","string_429,",2,null,null,"real",1,null,"real"]
[430,"ol","prog_char string_430[] PROGMEM = \"ol\";","string_430,",2,null,null,"related",1,null,"related"]
[431,"old","prog_char string_431[] PROGMEM = \"old\";","string_431,",3,null,null,"reply",1,null,"reply"]
[432,"om","prog_char string_432[] PROGMEM = \"om\";","string_432,",2,null,null,"report",1,null,"report"]
[433,"ome","prog_char string_433[] PROGMEM = \"ome\";","string_433,",3,null,null,"res",1,null,"res"]
[434,"omm","prog_char string_434[] PROGMEM = \"omm\";","string_434,",3,null,null,"research",1,null,"research"]
[435,"omp","prog_char string_435[] PROGMEM = \"omp\";","string_435,",3,null,null,"reserved",1,null,"reserved"]
[436,"on","prog_char string_436[] PROGMEM = \"on\";","string_436,",2,null,null,"resources",1,null,"resources"]
[437,"ona","prog_char string_437[] PROGMEM = \"ona\";","string_437,",3,null,null,"results",1,null,"results"]
[438,"once","prog_char string_438[] PROGMEM = \"once\";","string_438,",4,null,null,"return",2,null,"return"]
[439,"one","prog_char string_439[] PROGMEM = \"one\";","string_439,",3,null,null,"review",1,null,"review"]
[440,"only","prog_char string_440[] PROGMEM = \"only\";","string_440,",4,null,null,"reviews",1,null,"reviews"]
[441,"ons","prog_char string_441[] PROGMEM = \"ons\";","string_441,",3,null,null,"ri",0,null,"ri"]
[442,"ont","prog_char string_442[] PROGMEM = \"ont\";","string_442,",3,null,null,"right",0,null,"right"]
[443,"oo","prog_char string_443[] PROGMEM = \"oo\";","string_443,",2,null,null,"rights",0,null,"rights"]
[444,"op","prog_char string_444[] PROGMEM = \"op\";","string_444,",2,null,null,"rin",1,null,"rin"]
[445,"open","prog_char string_445[] PROGMEM = \"open\";","string_445,",4,null,null,"rm",0,null,"rm"]
[446,"or","prog_char string_446[] PROGMEM = \"or\";","string_446,",2,null,null,"rn",1,null,"rn"]
[447,"ord","prog_char string_447[] PROGMEM = \"ord\";","string_447,",3,null,null,"ro",0,null,"ro"]
[448,"order","prog_char string_448[] PROGMEM = \"order\";","string_448,",5,null,null,"rr",0,null,"rr"]
[449,"ore","prog_char string_449[] PROGMEM = \"ore\";","string_449,",{"$f":"LEN(B449)","v":3},null,null,"rs",{"$f":"IF(ISNUMBER(FIND(\"e\",H449)),1,0)+IF(ISNUMBER(FIND(\"n\",H449)),1,0)","v":0},null,"rs"]
[450,"ori","prog_char string_450[] PROGMEM = \"ori\";","string_450,",3,null,null,"rt",0,null,"rt"]
[451,"orm","prog_char string_451[] PROGMEM = \"orm\";","string_451,",3,null,null,"ru",0,null,"ru"]
[452,"ort","prog_char string_452[] PROGMEM = \"ort\";","string_452,",3,null,null,"ry",0,null,"ry"]
[453,"os","prog_char string_453[] PROGMEM = \"os\";","string_453,",2,null,null,"sa",0,null,"sa"]
[454,"ost","prog_char string_454[] PROGMEM = \"ost\";","string_454,",3,null,null,"said",0,null,"said"]
[455,"ot",{"$f":"\"prog_char string_\"&A455&\"[] PROGMEM = \"\"\"&B455&\"\"\";\"","v":"prog_char string_455[] PROGMEM = \"ot\";"},{"$f":"\"string_\" & A455 & \",\"","v":"string_455,"},2,null,null,"same",1,null,"same"]
[456,"oth","prog_char string_456[] PROGMEM = \"oth\";","string_456,",3,null,null,"san",1,null,"san"]
[457,"other","prog_char string_457[] PROGMEM = \"other\";","string_457,",5,null,null,"save",1,null,"save"]
[458,"ou","prog_char string_458[] PROGMEM = \"ou\";","string_458,",2,null,null,"sc",0,null,"sc"]
[459,"oun","prog_char string_459[] PROGMEM = \"oun\";","string_459,",3,null,null,"school",0,null,"school"]
[460,"our","prog_char string_460[] PROGMEM = \"our\";","string_460,",3,null,null,"se",1,null,"se"]
[461,"out","prog_char string_461[] PROGMEM = \"out\";","string_461,",3,null,null,"search",1,null,"search"]
[462,"ov","prog_char string_462[] PROGMEM = \"ov\";","string_462,",2,null,null,"section",2,null,"section"]
[463,"ove","prog_char string_463[] PROGMEM = \"ove\";","string_463,",3,null,null,"see",1,null,"see"]
[464,"over","prog_char string_464[] PROGMEM = \"over\";","string_464,",4,null,null,"send",2,null,"send"]
[465,"ow","prog_char string_465[] PROGMEM = \"ow\";","string_465,",2,null,null,"ser",1,null,"ser"]
[466,"own","prog_char string_466[] PROGMEM = \"own\";","string_466,",3,null,null,"service",1,null,"service"]
[467,"pa","prog_char string_467[] PROGMEM = \"pa\";","string_467,",2,null,null,"set",1,null,"set"]
[468,"paper","prog_char string_468[] PROGMEM = \"paper\";","string_468,",5,null,null,"sex",1,null,"sex"]
[469,"par","prog_char string_469[] PROGMEM = \"par\";","string_469,",3,null,null,"sh",0,null,"sh"]
[470,"part","prog_char string_470[] PROGMEM = \"part\";","string_470,",4,null,null,"shall",0,null,"shall"]
[471,"pass","prog_char string_471[] PROGMEM = \"pass\";","string_471,",4,null,null,"she",1,null,"she"]
[472,"pe","prog_char string_472[] PROGMEM = \"pe\";","string_472,",2,null,null,"shop",0,null,"shop"]
[473,"people","prog_char string_473[] PROGMEM = \"people\";","string_473,",6,null,null,"should",0,null,"should"]
[474,"per","prog_char string_474[] PROGMEM = \"per\";","string_474,",3,null,null,"show",0,null,"show"]
[475,"perhaps","prog_char string_475[] PROGMEM = \"perhaps\";","string_475,",7,null,null,"si",0,null,"si"]
[476,"person","prog_char string_476[] PROGMEM = \"person\";","string_476,",6,null,null,"sign",1,null,"sign"]
[477,"piece","prog_char string_477[] PROGMEM = \"piece\";","string_477,",5,null,null,"sin",1,null,"sin"]
[478,"pl","prog_char string_478[] PROGMEM = \"pl\";","string_478,",2,null,null,"since",2,null,"since"]
[479,"pla","prog_char string_479[] PROGMEM = \"pla\";","string_479,",3,null,null,"site",1,null,"site"]
[480,"place","prog_char string_480[] PROGMEM = \"place\";","string_480,",5,null,null,"sites",1,null,"sites"]
[481,"plan","prog_char string_481[] PROGMEM = \"plan\";","string_481,",4,null,null,"size",1,null,"size"]
[482,"plant","prog_char string_482[] PROGMEM = \"plant\";","string_482,",5,null,null,"small",0,null,"small"]
[483,"play","prog_char string_483[] PROGMEM = \"play\";","string_483,",4,null,null,"so",0,null,"so"]
[484,"ple","prog_char string_484[] PROGMEM = \"ple\";","string_484,",3,null,null,"software",1,null,"software"]
[485,"po","prog_char string_485[] PROGMEM = \"po\";","string_485,",2,null,null,"some",1,null,"some"]
[486,"point","prog_char string_486[] PROGMEM = \"point\";","string_486,",5,null,null,"south",0,null,"south"]
[487,"por","prog_char string_487[] PROGMEM = \"por\";","string_487,",3,null,null,"sp",0,null,"sp"]
[488,"pos","prog_char string_488[] PROGMEM = \"pos\";","string_488,",3,null,null,"special",1,null,"special"]
[489,"power","prog_char string_489[] PROGMEM = \"power\";","string_489,",5,null,null,"sports",0,null,"sports"]
[490,"pr","prog_char string_490[] PROGMEM = \"pr\";","string_490,",2,null,null,"ss",0,null,"ss"]
[491,"pre","prog_char string_491[] PROGMEM = \"pre\";","string_491,",3,null,null,"st",0,null,"st"]
[492,"pri","prog_char string_492[] PROGMEM = \"pri\";","string_492,",3,null,null,"sta",0,null,"sta"]
[493,"pro","prog_char string_493[] PROGMEM = \"pro\";","string_493,",3,null,null,"state",1,null,"state"]
[494,"problem","prog_char string_494[] PROGMEM = \"problem\";","string_494,",7,null,null,"states",1,null,"states"]
[495,"proper","prog_char string_495[] PROGMEM = \"proper\";","string_495,",6,null,null,"ste",1,null,"ste"]
[496,"propose","prog_char string_496[] PROGMEM = \"propose\";","string_496,",7,null,null,"sti",0,null,"sti"]
[497,"put","prog_char string_497[] PROGMEM = \"put\";","string_497,",3,null,null,"still",0,null,"still"]
[498,"ra","prog_char string_498[] PROGMEM = \"ra\";","string_498,",2,null,null,"sto",0,null,"sto"]
[499,"ran","prog_char string_499[] PROGMEM = \"ran\";","string_499,",3,null,null,"store",1,null,"store"]
[500,"rat","prog_char string_500[] PROGMEM = \"rat\";","string_500,",3,null,null,"str",0,null,"str"]
[501,"rc","prog_char string_501[] PROGMEM = \"rc\";","string_501,",2,null,null,"su",0,null,"su"]
[502,"rch","prog_char string_502[] PROGMEM = \"rch\";","string_502,",3,null,null,"subject",1,null,"subject"]
[503,"rd","prog_char string_503[] PROGMEM = \"rd\";","string_503,",2,null,null,"such",0,null,"such"]
[504,"re","prog_char string_504[] PROGMEM = \"re\";","string_504,",2,null,null,"support",0,null,"support"]
[505,"rea","prog_char string_505[] PROGMEM = \"rea\";","string_505,",3,null,null,"system",1,null,"system"]
[506,"reach","prog_char string_506[] PROGMEM = \"reach\";","string_506,",5,null,null,"systems",1,null,"systems"]
[507,"read","prog_char string_507[] PROGMEM = \"read\";","string_507,",4,null,null,"ta",0,null,"ta"]
[508,"ready","prog_char string_508[] PROGMEM = \"ready\";","string_508,",5,null,null,"take",1,null,"take"]
[509,"real","prog_char string_509[] PROGMEM = \"real\";","string_509,",4,null,null,"te",1,null,"te"]
[510,"rec","prog_char string_510[] PROGMEM = \"rec\";","string_510,",3,null,null,"technology",2,null,"technology"]
[511,"record","prog_char string_511[] PROGMEM = \"record\";","string_511,",6,null,null,"ted",1,null,"ted"]
[512,"red","prog_char string_512[] PROGMEM = \"red\";","string_512,",3,null,null,"ter",1,null,"ter"]
[513,"ree","prog_char string_513[] PROGMEM = \"ree\";","string_513,",{"$f":"LEN(B513)","v":3},null,null,"terms",{"$f":"IF(ISNUMBER(FIND(\"e\",H513)),1,0)+IF(ISNUMBER(FIND(\"n\",H513)),1,0)","v":1},null,"terms"]
[514,"ren","prog_char string_514[] PROGMEM = \"ren\";","string_514,",3,null,null,"text",1,null,"text"]
[515,"res","prog_char string_515[] PROGMEM = \"res\";","string_515,",3,null,null,"th",0,null,"th"]
[516,"rest","prog_char string_516[] PROGMEM = \"rest\";","string_516,",4,null,null,"tha",0,null,"tha"]
[517,"ri","prog_char string_517[] PROGMEM = \"ri\";","string_517,",2,null,null,"than",1,null,"than"]
[518,"ric","prog_char string_518[] PROGMEM = \"ric\";","string_518,",3,null,null,"that",0,null,"that"]
[519,"rie",{"$f":"\"prog_char string_\"&A519&\"[] PROGMEM = \"\"\"&B519&\"\"\";\"","v":"prog_char string_519[] PROGMEM = \"rie\";"},{"$f":"\"string_\" & A519 & \",\"","v":"string_519,"},3,null,null,"the",1,null,"the"]
[520,"right","prog_char string_520[] PROGMEM = \"right\";","string_520,",5,null,null,"their",1,null,"their"]
[521,"rin","prog_char string_521[] PROGMEM = \"rin\";","string_521,",3,null,null,"them",1,null,"them"]
[522,"rm","prog_char string_522[] PROGMEM = \"rm\";","string_522,",2,null,null,"then",2,null,"then"]
[523,"rma","prog_char string_523[] PROGMEM = \"rma\";","string_523,",3,null,null,"ther",1,null,"ther"]
[524,"rn","prog_char string_524[] PROGMEM = \"rn\";","string_524,",2,null,null,"there",1,null,"there"]
[525,"ro","prog_char string_525[] PROGMEM = \"ro\";","string_525,",2,null,null,"these",1,null,"these"]
[526,"road","prog_char string_526[] PROGMEM = \"road\";","string_526,",4,null,null,"they",1,null,"they"]
[527,"rom","prog_char string_527[] PROGMEM = \"rom\";","string_527,",3,null,null,"thi",0,null,"thi"]
[528,"room","prog_char string_528[] PROGMEM = \"room\";","string_528,",4,null,null,"thin",1,null,"thin"]
[529,"rs","prog_char string_529[] PROGMEM = \"rs\";","string_529,",2,null,null,"think",1,null,"think"]
[530,"rt","prog_char string_530[] PROGMEM = \"rt\";","string_530,",2,null,null,"this",0,null,"this"]
[531,"rth","prog_char string_531[] PROGMEM = \"rth\";","string_531,",3,null,null,"those",1,null,"those"]
[532,"run","prog_char string_532[] PROGMEM = \"run\";","string_532,",3,null,null,"three",1,null,"three"]
[533,"ry","prog_char string_533[] PROGMEM = \"ry\";","string_533,",2,null,null,"through",0,null,"through"]
[534,"sa","prog_char string_534[] PROGMEM = \"sa\";","string_534,",2,null,null,"ti",0,null,"ti"]
[535,"same","prog_char string_535[] PROGMEM = \"same\";","string_535,",4,null,null,"time",1,null,"time"]
[536,"san","prog_char string_536[] PROGMEM = \"san\";","string_536,",3,null,null,"times",1,null,"times"]
[537,"say","prog_char string_537[] PROGMEM = \"say\";","string_537,",3,null,null,"tin",1,null,"tin"]
[538,"sc","prog_char string_538[] PROGMEM = \"sc\";","string_538,",2,null,null,"tio",0,null,"tio"]
[539,"school","prog_char string_539[] PROGMEM = \"school\";","string_539,",6,null,null,"tion",1,null,"tion"]
[540,"se","prog_char string_540[] PROGMEM = \"se\";","string_540,",2,null,null,"title",1,null,"title"]
[541,"sea","prog_char string_541[] PROGMEM = \"sea\";","string_541,",3,null,null,"to",0,null,"to"]
[542,"second","prog_char string_542[] PROGMEM = \"second\";","string_542,",6,null,null,"today",0,null,"today"]
[543,"section","prog_char string_543[] PROGMEM = \"section\";","string_543,",7,null,null,"tools",0,null,"tools"]
[544,"see","prog_char string_544[] PROGMEM = \"see\";","string_544,",3,null,null,"top",0,null,"top"]
[545,"seem","prog_char string_545[] PROGMEM = \"seem\";","string_545,",4,null,null,"tor",0,null,"tor"]
[546,"ser","prog_char string_546[] PROGMEM = \"ser\";","string_546,",3,null,null,"total",0,null,"total"]
[547,"serve","prog_char string_547[] PROGMEM = \"serve\";","string_547,",5,null,null,"tr",0,null,"tr"]
[548,"set","prog_char string_548[] PROGMEM = \"set\";","string_548,",3,null,null,"tra",0,null,"tra"]
[549,"several","prog_char string_549[] PROGMEM = \"several\";","string_549,",7,null,null,"travel",1,null,"travel"]
[550,"sh","prog_char string_550[] PROGMEM = \"sh\";","string_550,",2,null,null,"ts",0,null,"ts"]
[551,"shall","prog_char string_551[] PROGMEM = \"shall\";","string_551,",5,null,null,"tt",0,null,"tt"]
[552,"she","prog_char string_552[] PROGMEM = \"she\";","string_552,",3,null,null,"tu",0,null,"tu"]
[553,"sho","prog_char string_553[] PROGMEM = \"sho\";","string_553,",3,null,null,"tw",0,null,"tw"]
[554,"short","prog_char string_554[] PROGMEM = \"short\";","string_554,",5,null,null,"two",0,null,"two"]
[555,"should","prog_char string_555[] PROGMEM = \"should\";","string_555,",6,null,null,"ty",0,null,"ty"]
[556,"show","prog_char string_556[] PROGMEM = \"show\";","string_556,",4,null,null,"type",1,null,"type"]
[557,"si","prog_char string_557[] PROGMEM = \"si\";","string_557,",2,null,null,"ua",0,null,"ua"]
[558,"side","prog_char string_558[] PROGMEM = \"side\";","string_558,",4,null,null,"uc",0,null,"uc"]
[559,"simple","prog_char string_559[] PROGMEM = \"simple\";","string_559,",6,null,null,"ue",1,null,"ue"]
[560,"sin","prog_char string_560[] PROGMEM = \"sin\";","string_560,",3,null,null,"uk",0,null,"uk"]
[561,"since","prog_char string_561[] PROGMEM = \"since\";","string_561,",5,null,null,"ul",0,null,"ul"]
[562,"sit","prog_char string_562[] PROGMEM = \"sit\";","string_562,",3,null,null,"um",0,null,"um"]
[563,"six","prog_char string_563[] PROGMEM = \"six\";","string_563,",3,null,null,"un",1,null,"un"]
[564,"size","prog_char string_564[] PROGMEM = \"size\";","string_564,",4,null,null,"under",2,null,"under"]
[565,"small","prog_char string_565[] PROGMEM = \"small\";","string_565,",5,null,null,"united",2,null,"united"]
[566,"so","prog_char string_566[] PROGMEM = \"so\";","string_566,",2,null,null,"up",0,null,"up"]
[567,"sof","prog_char string_567[] PROGMEM = \"sof\";","string_567,",3,null,null,"ur",0,null,"ur"]
[568,"some","prog_char string_568[] PROGMEM = \"some\";","string_568,",4,null,null,"ure",1,null,"ure"]
[569,"son","prog_char string_569[] PROGMEM = \"son\";","string_569,",3,null,null,"us",0,null,"us"]
[570,"soon","prog_char string_570[] PROGMEM = \"soon\";","string_570,",4,null,null,"usa",0,null,"usa"]
[571,"sound","prog_char string_571[] PROGMEM = \"sound\";","string_571,",5,null,null,"use",1,null,"use"]
[572,"south","prog_char string_572[] PROGMEM = \"south\";","string_572,",5,null,null,"used",1,null,"used"]
[573,"sp","prog_char string_573[] PROGMEM = \"sp\";","string_573,",2,null,null,"user",1,null,"user"]
[574,"special","prog_char string_574[] PROGMEM = \"special\";","string_574,",7,null,null,"using",1,null,"using"]
[575,"ss","prog_char string_575[] PROGMEM = \"ss\";","string_575,",2,null,null,"ut",0,null,"ut"]
[576,"ssi","prog_char string_576[] PROGMEM = \"ssi\";","string_576,",3,null,null,"va",0,null,"va"]
[577,"st","prog_char string_577[] PROGMEM = \"st\";","string_577,",{"$f":"LEN(B577)","v":2},null,null,"ve",{"$f":"IF(ISNUMBER(FIND(\"e\",H577)),1,0)+IF(ISNUMBER(FIND(\"n\",H577)),1,0)","v":1},null,"ve"]
[578,"sta","prog_char string_578[] PROGMEM = \"sta\";","string_578,",3,null,null,"ver",1,null,"ver"]
[579,"stand","prog_char string_579[] PROGMEM = \"stand\";","string_579,",5,null,null,"very",1,null,"very"]
[580,"start","prog_char string_580[] PROGMEM = \"start\";","string_580,",5,null,null,"vi",0,null,"vi"]
[581,"state","prog_char string_581[] PROGMEM = \"state\";","string_581,",5,null,null,"video",1,null,"video"]
[582,"stay","prog_char string_582[] PROGMEM = \"stay\";","string_582,",4,null,null,"view",1,null,"view"]
[583,"ste",{"$f":"\"prog_char string_\"&A583&\"[] PROGMEM = \"\"\"&B583&\"\"\";\"","v":"prog_char string_583[] PROGMEM = \"ste\";"},{"$f":"\"string_\" & A583 & \",\"","v":"string_583,"},3,null,null,"visit",0,null,"visit"]
[584,"step","prog_char string_584[] PROGMEM = \"step\";","string_584,",4,null,null,"wa",0,null,"wa"]
[585,"sth","prog_char string_585[] PROGMEM = \"sth\";","string_585,",3,null,null,"want",1,null,"want"]
[586,"sti","prog_char string_586[] PROGMEM = \"sti\";","string_586,",3,null,null,"was",0,null,"was"]
[587,"still","prog_char string_587[] PROGMEM = \"still\";","string_587,",5,null,null,"water",1,null,"water"]
[588,"sto","prog_char string_588[] PROGMEM = \"sto\";","string_588,",3,null,null,"way",0,null,"way"]
[589,"stop","prog_char string_589[] PROGMEM = \"stop\";","string_589,",4,null,null,"we",1,null,"we"]
[590,"story","prog_char string_590[] PROGMEM = \"story\";","string_590,",5,null,null,"web",1,null,"web"]
[591,"str","prog_char string_591[] PROGMEM = \"str\";","string_591,",3,null,null,"well",1,null,"well"]
[592,"strong","prog_char string_592[] PROGMEM = \"strong\";","string_592,",6,null,null,"were",1,null,"were"]
[593,"study","prog_char string_593[] PROGMEM = \"study\";","string_593,",5,null,null,"wh",0,null,"wh"]
[594,"su","prog_char string_594[] PROGMEM = \"su\";","string_594,",2,null,null,"what",0,null,"what"]
[595,"such","prog_char string_595[] PROGMEM = \"such\";","string_595,",4,null,null,"when",2,null,"when"]
[596,"suppose","prog_char string_596[] PROGMEM = \"suppose\";","string_596,",7,null,null,"where",1,null,"where"]
[597,"sure","prog_char string_597[] PROGMEM = \"sure\";","string_597,",4,null,null,"whic",0,null,"whic"]
[598,"system","prog_char string_598[] PROGMEM = \"system\";","string_598,",6,null,null,"which",0,null,"which"]
[599,"ta","prog_char string_599[] PROGMEM = \"ta\";","string_599,",2,null,null,"while",1,null,"while"]
[600,"table","prog_char string_600[] PROGMEM = \"table\";","string_600,",5,null,null,"white",1,null,"white"]
[601,"take","prog_char string_601[] PROGMEM = \"take\";","string_601,",4,null,null,"who",0,null,"who"]
[602,"tal","prog_char string_602[] PROGMEM = \"tal\";","string_602,",3,null,null,"why",0,null,"why"]
[603,"talk","prog_char string_603[] PROGMEM = \"talk\";","string_603,",4,null,null,"wi",0,null,"wi"]
[604,"tan","prog_char string_604[] PROGMEM = \"tan\";","string_604,",3,null,null,"will",0,null,"will"]
[605,"tat","prog_char string_605[] PROGMEM = \"tat\";","string_605,",3,null,null,"wit",0,null,"wit"]
[606,"te","prog_char string_606[] PROGMEM = \"te\";","string_606,",2,null,null,"with",0,null,"with"]
[607,"ted","prog_char string_607[] PROGMEM = \"ted\";","string_607,",3,null,null,"within",1,null,"within"]
[608,"tell","prog_char string_608[] PROGMEM = \"tell\";","string_608,",4,null,null,"without",0,null,"without"]
[609,"tem","prog_char string_609[] PROGMEM = \"tem\";","string_609,",3,null,null,"wo",0,null,"wo"]
[610,"ten","prog_char string_610[] PROGMEM = \"ten\";","string_610,",3,null,null,"women",2,null,"women"]
[611,"ter","prog_char string_611[] PROGMEM = \"ter\";","string_611,",3,null,null,"work",0,null,"work"]
[612,"tes","prog_char string_612[] PROGMEM = \"tes\";","string_612,",3,null,null,"world",0,null,"world"]
[613,"test","prog_char string_613[] PROGMEM = \"test\";","string_613,",4,null,null,"would",0,null,"would"]
[614,"th","prog_char string_614[] PROGMEM = \"th\";","string_614,",2,null,null,"year",1,null,"year"]
[615,"tha","prog_char string_615[] PROGMEM = \"tha\";","string_615,",3,null,null,"years",1,null,"years"]
[616,"than","prog_char string_616[] PROGMEM = \"than\";","string_616,",4,null,null,"yo",0,null,"yo"]
[617,"that","prog_char string_617[] PROGMEM = \"that\";","string_617,",4,null,null,"you",0,null,"you"]
[618,"the","prog_char string_618[] PROGMEM = \"the\";","string_618,",3,null,null,"your",0,null,"your"]
[619,"their","prog_char string_619[] PROGMEM = \"their\";","string_619,",5,null,null,"ys",0,null,"ys"]
[620,"them","prog_char string_620[] PROGMEM = \"them\";","string_620,",4,null,null,null,0]
[621,"then","prog_char string_621[] PROGMEM = \"then\";","string_621,",4]
[622,"there","prog_char string_622[] PROGMEM = \"there\";","string_622,",5]
[623,"these","prog_char string_623[] PROGMEM = \"these\";","string_623,",5]
[624,"they","prog_char string_624[] PROGMEM = \"they\";","string_624,",4]
[625,"thi","prog_char string_625[] PROGMEM = \"thi\";","string_625,",3]
[626,"thing","prog_char string_626[] PROGMEM = \"thing\";","string_626,",5]
[627,"think","prog_char string_627[] PROGMEM = \"think\";","string_627,",5]
[628,"this","prog_char string_628[] PROGMEM = \"this\";","string_628,",4]
[629,"tho","prog_char string_629[] PROGMEM = \"tho\";","string_629,",3]
[630,"those","prog_char string_630[] PROGMEM = \"those\";","string_630,",5]
[631,"though","prog_char string_631[] PROGMEM = \"though\";","string_631,",6]
[632,"thought","prog_char string_632[] PROGMEM = \"thought\";","string_632,",7]
[633,"three","prog_char string_633[] PROGMEM = \"three\";","string_633,",5]
[634,"through","prog_char string_634[] PROGMEM = \"through\";","string_634,",7]
[635,"ti","prog_char string_635[] PROGMEM = \"ti\";","string_635,",2]
[636,"tic","prog_char string_636[] PROGMEM = \"tic\";","string_636,",3]
[637,"time","prog_char string_637[] PROGMEM = \"time\";","string_637,",4]
[638,"tin","prog_char string_638[] PROGMEM = \"tin\";","string_638,",3]
[639,"tio","prog_char string_639[] PROGMEM = \"tio\";","string_639,",3]
[640,"to","prog_char string_640[] PROGMEM = \"to\";","string_640,",2]
[641,"told","prog_char string_641[] PROGMEM = \"told\";","string_641,",{"$f":"LEN(B641)","v":4}]
[642,"too","prog_char string_642[] PROGMEM = \"too\";","string_642,",3]
[643,"top","prog_char string_643[] PROGMEM = \"top\";","string_643,",3]
[644,"tor","prog_char string_644[] PROGMEM = \"tor\";","string_644,",3]
[645,"toward","prog_char string_645[] PROGMEM = \"toward\";","string_645,",6]
[646,"town","prog_char string_646[] PROGMEM = \"town\";","string_646,",4]
[647,"tr",{"$f":"\"prog_char string_\"&A647&\"[] PROGMEM = \"\"\"&B647&\"\"\";\"","v":"prog_char string_647[] PROGMEM = \"tr\";"},{"$f":"\"string_\" & A647 & \",\"","v":"string_647,"},2]
[648,"tra","prog_char string_648[] PROGMEM = \"tra\";","string_648,",3]
[649,"try","prog_char string_649[] PROGMEM = \"try\";","string_649,",3]
[650,"ts","prog_char string_650[] PROGMEM = \"ts\";","string_650,",2]
[651,"tt","prog_char string_651[] PROGMEM = \"tt\";","string_651,",2]
[652,"tth","prog_char string_652[] PROGMEM = \"tth\";","string_652,",3]
[653,"tu","prog_char string_653[] PROGMEM = \"tu\";","string_653,",2]
[654,"tur","prog_char string_654[] PROGMEM = \"tur\";","string_654,",3]
[655,"turn","prog_char string_655[] PROGMEM = \"turn\";","string_655,",4]
[656,"two","prog_char string_656[] PROGMEM = \"two\";","string_656,",3]
[657,"ty","prog_char string_657[] PROGMEM = \"ty\";","string_657,",2]
[658,"uc","prog_char string_658[] PROGMEM = \"uc\";","string_658,",2]
[659,"ul","prog_char string_659[] PROGMEM = \"ul\";","string_659,",2]
[660,"um","prog_char string_660[] PROGMEM = \"um\";","string_660,",2]
[661,"un","prog_char string_661[] PROGMEM = \"un\";","string_661,",2]
[662,"und","prog_char string_662[] PROGMEM = \"und\";","string_662,",3]
[663,"under","prog_char string_663[] PROGMEM = \"under\";","string_663,",5]
[664,"unit","prog_char string_664[] PROGMEM = \"unit\";","string_664,",4]
[665,"until","prog_char string_665[] PROGMEM = \"until\";","string_665,",5]
[666,"up","prog_char string_666[] PROGMEM = \"up\";","string_666,",2]
[667,"ur","prog_char string_667[] PROGMEM = \"ur\";","string_667,",2]
[668,"ure","prog_char string_668[] PROGMEM = \"ure\";","string_668,",3]
[669,"us","prog_char string_669[] PROGMEM = \"us\";","string_669,",2]
[670,"use","prog_char string_670[] PROGMEM = \"use\";","string_670,",3]
[671,"ust","prog_char string_671[] PROGMEM = \"ust\";","string_671,",3]
[672,"ut","prog_char string_672[] PROGMEM = \"ut\";","string_672,",2]
[673,"ve","prog_char string_673[] PROGMEM = \"ve\";","string_673,",2]
[674,"ver","prog_char string_674[] PROGMEM = \"ver\";","string_674,",3]
[675,"very","prog_char string_675[] PROGMEM = \"very\";","string_675,",4]
[676,"vi","prog_char string_676[] PROGMEM = \"vi\";","string_676,",2]
[677,"wait","prog_char string_677[] PROGMEM = \"wait\";","string_677,",4]
[678,"walk","prog_char string_678[] PROGMEM = \"walk\";","string_678,",4]
[679,"want","prog_char string_679[] PROGMEM = \"want\";","string_679,",4]
[680,"war","prog_char string_680[] PROGMEM = \"war\";","string_680,",3]
[681,"was","prog_char string_681[] PROGMEM = \"was\";","string_681,",3]
[682,"watch","prog_char string_682[] PROGMEM = \"watch\";","string_682,",5]
[683,"water","prog_char string_683[] PROGMEM = \"water\";","string_683,",5]
[684,"way","prog_char string_684[] PROGMEM = \"way\";","string_684,",3]
[685,"we","prog_char string_685[] PROGMEM = \"we\";","string_685,",2]
[686,"week","prog_char string_686[] PROGMEM = \"week\";","string_686,",4]
[687,"well","prog_char string_687[] PROGMEM = \"well\";","string_687,",4]
[688,"went","prog_char string_688[] PROGMEM = \"went\";","string_688,",4]
[689,"were","prog_char string_689[] PROGMEM = \"were\";","string_689,",4]
[690,"west","prog_char string_690[] PROGMEM = \"west\";","string_690,",4]
[691,"wh","prog_char string_691[] PROGMEM = \"wh\";","string_691,",2]
[692,"what","prog_char string_692[] PROGMEM = \"what\";","string_692,",4]
[693,"when","prog_char string_693[] PROGMEM = \"when\";","string_693,",4]
[694,"where","prog_char string_694[] PROGMEM = \"where\";","string_694,",5]
[695,"whether","prog_char string_695[] PROGMEM = \"whether\";","string_695,",7]
[696,"which","prog_char string_696[] PROGMEM = \"which\";","string_696,",5]
[697,"while","prog_char string_697[] PROGMEM = \"while\";","string_697,",5]
[698,"white","prog_char string_698[] PROGMEM = \"white\";","string_698,",5]
[699,"who","prog_char string_699[] PROGMEM = \"who\";","string_699,",3]
[700,"whole","prog_char string_700[] PROGMEM = \"whole\";","string_700,",5]
[701,"why","prog_char string_701[] PROGMEM = \"why\";","string_701,",3]
[702,"wi","prog_char string_702[] PROGMEM = \"wi\";","string_702,",2]
[703,"will","prog_char string_703[] PROGMEM = \"will\";","string_703,",4]
[704,"wit","prog_char string_704[] PROGMEM = \"wit\";","string_704,",3]
[705,"with","prog_char string_705[] PROGMEM = \"with\";","string_705,",{"$f":"LEN(B705)","v":4}]
[706,"wo","prog_char string_706[] PROGMEM = \"wo\";","string_706,",2]
[707,"wor","prog_char string_707[] PROGMEM = \"wor\";","string_707,",3]
[708,"word","prog_char string_708[] PROGMEM = \"word\";","string_708,",4]
[709,"work","prog_char string_709[] PROGMEM = \"work\";","string_709,",4]
[710,"would","prog_char string_710[] PROGMEM = \"would\";","string_710,",5]
[711,"write",{"$f":"\"prog_char string_\"&A711&\"[] PROGMEM = \"\"\"&B711&\"\"\";\"","v":"prog_char string_711[] PROGMEM = \"write\";"},{"$f":"\"string_\" & A711 & \",\"","v":"string_711,"},5]
[712,"year","prog_char string_712[] PROGMEM = \"year\";","string_712,",4]
[713,"yes","prog_char string_713[] PROGMEM = \"yes\";","string_713,",3]
[714,"yet","prog_char string_714[] PROGMEM = \"yet\";","string_714,",3]
[715,"yo","prog_char string_715[] PROGMEM = \"yo\";","string_715,",2]
[716,"you","prog_char string_716[] PROGMEM = \"you\";","string_716,",3]
[717,"young","prog_char string_717[] PROGMEM = \"young\";","string_717,",5]
[718,"your","prog_char string_718[] PROGMEM = \"your\";","string_718,",4]
[719,"ys","prog_char string_719[] PROGMEM = \"ys\";","string_719,",2]

{"sheet":"Raw data","index":1,"n_rows":1001,"n_cols":26,"rows_kept":1001,"cut":false,"hidden":false,"merged":[]}
["Most common words source",null,null,null,"Custom list",null,null,null,null,"Merged common words",null,null,null,null,"most common digram",null,null,null,"most common trigram",null,null,null,null,"abl",{"$f":"IF(ISNUMBER(FIND(\"e\",X1)),1,0)+IF(ISNUMBER(FIND(\"n\",X1)),1,0)+IF(ISNUMBER(FIND(\"t\",X1)),1,0)+IF(ISNUMBER(FIND(\"o\",X1)),1,0)+IF(ISNUMBER(FIND(\"r\",X1)),1,0)+IF(ISNUMBER(FIND(\"s\",X1)),1,0)+IF(ISNUMBER(FIND(\"d\",X1)),1,0)+IF(ISNUMBER(FIND(\"i\",X1)),1,0)","v":0},{"$f":"LEN(X1)","v":3}]
["the","the","the","the","actually",null,null,null,null,"against",{"$f":"LEN(J2)","v":7},null,null,null,"in",134812613554,{"$f":"LOG(P2)","v":11.129730528257319},null,"the",82103550112,{"$f":"LOG(T2)","v":10.914361936178127},null,null,"able",1,4]
["of","of","be","of","afraid",null,null,null,null,"between",7,null,null,null,"th",133210262170,{"$f":"LOG(P3)","v":11.124537683033447},null,"ing",43727954927,{"$f":"LOG(T3)","v":10.640759166695702},null,null,"about",2,5]
["to","and","and","to","agree",null,null,null,null,"certain",7,null,null,null,"er",119214789533,11.076330136395347,null,"and",43452082914,10.638010599573517,null,null,"above",2,5]
["and","a","of","and","allow",null,null,null,null,"develop",7,null,null,null,"re",108669181717,11.036106396819211,null,"ion",39907843075,10.601058255823631,null,null,"ack",0,3]
["a","to","a","a","although",null,null,null,null,"nothing",7,null,null,null,"he",106498528786,11.027343608295553,null,"tio",32705432538,10.514619897165414,null,null,"act",1,3]
["in","in","in","in","cannot",null,null,null,null,"perhaps",7,null,null,null,"an",105422467512,11.022933177068698,null,"ent",31928292897,10.504175698832826,null,null,"ad",1,2]
["is","is","to","is","decide",null,null,null,null,"problem",7,null,null,null,"on",100461773921,11.002000842520523,null,"for",26276145239,10.419561653725555,null,null,"add",1,3]
["it","be","have","it","different",null,null,null,null,"propose",7,null,null,null,"es",97326307798,10.988230248153249,null,"ati",25312331919,10.403332156730865,null,null,"afraid",3,6]
["you","that","to","you","entire",null,null,null,null,"section",7,null,null,null,"or",85998433585,10.934490540876284,null,"ter",21635845251,10.335173866517618,null,null,"after",3,5]
["that","was","it","that","finish",null,null,null,null,"several",7,null,null,null,"te",80948650956,10.908209615445822,null,"ate",19978168727,10.300555676672333,null,null,"ag",0,2]
["he","he","i","he","happen",null,null,null,null,"special",7,null,null,null,"at",80609883139,10.906388291551984,null,"ers",18428556963,10.26549132938389,null,null,"again",2,5]
["was","for","that","was","propose",null,null,null,null,"suppose",7,null,null,null,"ti",79834588969,10.902191093653295,null,"res",16905804845,10.228035851317214,null,null,"against",4,7]
["for","it","for","for","section",null,null,null,null,"thought",7,null,null,null,"st",78728300226,10.896130874959896,null,"her",16817683835,10.225766183676958,null,null,"age",1,3]
["on","with","you","on","suppose",null,null,null,null,"through",7,null,null,null,"en",77314896004,10.888263176054094,null,"est",16153205958,10.208258730486953,null,null,"ago",1,3]
["are","as","he","are","system",null,null,null,null,"whether",7,null,null,null,"nt",71720202984,10.855641510041098,null,"com",16125312457,10.20750813862738,null,null,"agree",2,5]
["with","his","with","with","complete",null,null,null,null,"afraid",6,null,null,null,"ar",68756067210,10.837311027441391,null,"pro",15952570392,10.202830669657992,null,null,"ai",1,2]
["as","i","on","as","does",null,null,null,null,"always",6,null,null,null,"to",68548751664,10.835999550294417,null,"ere",15305553822,10.184849048894931,null,null,"ail",1,3]
["i","on","do","i","done",null,null,null,null,"answer",6,null,null,null,"nd",68018862077,10.832629362118704,null,"all",15280030691,10.184124226551095,null,null,"ain",2,3]
["his","have","say","his","has",null,null,null,null,"appear",6,null,null,null,"al",64032793037,10.806402445664581,null,"int",15254348969,10.183393677386213,null,null,"air",2,3]
["they","at","this","they","had",null,null,null,null,"before",6,null,null,null,"it",60786494374,10.78380709785182,null,"men",15240388304,10.182996032366846,null,null,"al",0,2]
["be","by","they","be","is",null,null,null,null,"better",6,null,null,null,"se",58165976437,10.764669023027444,null,"you",15014247063,10.176503558007973,null,null,"ali",1,3]
["at","not","at","at","knew",null,null,null,null,"cannot",6,null,null,null,"ed",57514469508,10.759777118375634,null,"ons",14765503549,10.169248262328734,null,null,"all",0,3]
["one","they","but","one","proper",null,null,null,null,"center",6,null,null,null,"is",56531345460,10.752289321899179,null,"our",14731181262,10.168237573387024,null,null,"allow",1,5]
["have","this","we","have","shall",null,null,null,null,"change",6,null,null,null,"ea",55939058323,10.747715151192336,null,"con",14345102137,10.156703644765885,null,null,"als",1,3]
["this","had","his","this","told",null,null,null,null,"common",6,null,null,null,"ng",54671896948,10.737764142846311,null,"are",14170861835,10.151396263712732,null,null,"also",2,4]
["from","are","from","from","was",null,null,null,null,"course",6,null,null,null,"ou",52913816186,10.723569084320861,null,"tha",13970309343,10.145206022754877,null,null,"always",1,6]
["or","but","that","or","went",null,null,null,null,"decide",6,null,null,null,"le",52533619401,10.720437323356542,null,"ver",13912756928,10.143413197567911,null,null,"ame",1,3]
["had","from","not","had","were",null,null,null,null,"during",6,null,null,null,"co",52490369344,10.720079628654915,null,"ess",13754386504,10.138441224033631,null,null,"among",2,5]
["by","or","n't","by","whether",null,null,null,null,"enough",6,null,null,null,"me",50958591639,10.707217416739718,null,"thi",13367612267,10.126053840180933,null,null,"an",1,2]
["hot","she","n't","hot",null,null,null,null,null,"entire",6,null,null,null,"ne",48426255131,10.685080885754665,null,"rea",13285735421,10.123385599426932,null,null,"ana",1,3]
["word","an","by","but",null,null,null,null,null,"figure",6,null,null,null,"ri",48154583840,10.682637633966591,null,"sta",12930801230,10.111625435861592,null,null,"anc",1,3]
["but","which","she","some",null,null,null,null,null,"finish",6,null,null,null,"ro",46608666502,10.668466677721096,null,"tin",12540895012,10.09832853210094,null,null,"and",2,3]
["what","you","or","what",null,null,null,null,null,"follow",6,null,null,null,"de",46344292825,10.665996259576101,null,"hat",12149329559,10.084552312760632,null,null,"answer",4,6]
["some","one","as","there",null,null,null,null,null,"ground",6,null,null,null,"ra",46135420707,10.664034485278757,null,"ist",12124300892,10.083656705830997,null,null,"ant",2,3]
["we","we","what","we",null,null,null,null,null,"happen",6,null,null,null,"io",45866820943,10.661498639962844,null,"ect",12119170351,10.083472890101277,null,null,"any",1,3]
["can","all","go","can",null,null,null,null,null,"letter",6,null,null,null,"ic",45663138305,10.659565756074651,null,"ort",12058955817,10.081309703944436,null,null,"ap",0,2]
["out","were","their","out",null,null,null,null,null,"little",6,null,null,null,"li",45239121467,10.655514162439562,null,"ear",12053692257,10.081120099294424,null,null,"appear",2,6]
["other","her","can","other",null,null,null,null,null,"number",6,null,null,null,"of",44948393239,10.652714171710892,null,"ine",11957930765,10.077656034577901,null,null,"ar",1,2]
["were","would","who","were",null,null,null,null,null,"people",6,null,null,null,"as",43550945165,10.638997584728061,null,"age",11949496341,10.077349600603474,null,null,"arc",1,3]
["all","there","get","all",null,null,null,null,null,"person",6,null,null,null,"et",42812689527,10.631572511413975,null,"his",11668102248,10.067000226204547,null,null,"ard",2,3]
["there","their","if","your",null,null,null,null,null,"proper",6,null,null,null,"ve",42386634729,10.627228937289093,null,"ted",11406578213,10.057155382710292,null,null,"are",2,3]
["when","will","would","when",null,null,null,null,null,"record",6,null,null,null,"ta",42344542093,10.626797440838009,null,"ont",11390852799,10.056556239622159,null,null,"art",2,3]
["up","when","her","up",null,null,null,null,null,"school",6,null,null,null,"si",41483080358,10.617870997784781,null,"nce",11196008401,10.049063215670024,null,null,"as",1,2]
["use","who","all","use",null,null,null,null,null,"second",6,null,null,null,"ha",41206270659,10.61496331082386,null,"sto",11072718004,10.04425423960048,null,null,"ase",2,3]
["your","him","my","word",null,null,null,null,null,"should",6,null,null,null,"ma",40261070734,10.604885320668986,null,"ith",11044086726,10.043129808368834,null,null,"ask",1,3]
["how","been","make","how",null,null,null,null,null,"simple",6,null,null,null,"ec",39836916955,10.60028572028275,null,"nte",10870885323,10.036264914393263,null,null,"ass",1,3]
["said","has","about","said",null,null,null,null,null,"strong",6,null,null,null,"om",38270823174,10.58286780364287,null,"sin",10799660436,10.033410100571226,null,null,"ast",2,3]
["an","more","know","an",null,null,null,null,null,"system",6,null,null,null,"ce",37978263270,10.579535100751153,null,"tor",10786422584,10.032877430814397,null,null,"at",1,2]
["each","if","will","each",null,null,null,null,null,"though",6,null,null,null,"el",37931534499,10.57900041219839,null,"ore",10667700294,10.028070805809515,null,null,"ate",2,3]
["she","no","as","she",null,null,null,null,null,"toward",6,null,null,null,"ll",36610231690,10.563602477348347,null,"lin",10581656074,10.024553641944545,null,null,"ati",2,3]
["which","out","up","which",null,null,null,null,null,"about",5,null,null,null,"ca",35964886206,10.555878690517954,null,"ive",10484022493,10.020527944034892,null,null,"att",1,3]
["do","do","one","do",null,null,null,null,null,"above",5,null,null,null,"ur",35957660877,10.555791432192089,null,"ite",10265976124,10.011400249869503,null,null,"ave",1,3]
["their","so","time","their",null,null,null,null,null,"after",5,null,null,null,"la",35279652135,10.547524294243377,null,"wit",10193568110,10.008326229074424,null,null,"back",0,4]
["time","can","there","time",null,null,null,null,null,"again",5,null,null,null,"ch",34170408619,10.533650172240842,null,"not",10064096791,10.002774804929002,null,null,"be",1,2]
["if","what","year","if",null,null,null,null,null,"agree",5,null,null,null,"hi",34041908708,10.532013902708449,null,"nth",10030465425,10.001321085245703,null,null,"bed",2,3]
["will","up","so","will",null,null,null,null,null,"allow",5,null,null,null,"di",33302437545,10.52247602250331,null,"tra",9796133143,9.9910546791555408,null,null,"before",3,6]
["way","said","think","way",null,null,null,null,null,"among",5,null,null,null,"ho",33037260281,10.519004024902033,null,"ome",9794497140,9.9909821437580906,null,null,"begin",3,5]
["about","about","when","about",null,null,null,null,null,"begin",5,null,null,null,"fo",32748744509,10.515194655067804,null,"ica",9785687575,9.9905913460428177,null,null,"ber",2,3]
["many","other","which","many",null,null,null,null,null,"black",5,null,null,null,"ns",32458807204,10.51133255633313,null,"per",9744491337,9.9887591738487469,null,null,"best",3,4]
["then","into","them","then",null,null,null,null,null,"bring",5,null,null,null,"ot",32419391981,10.510804865485575,null,"art",9656060803,9.9847999917956152,null,null,"better",3,6]
["them","than","some","them",null,null,null,null,null,"build",5,null,null,null,"ac",31993660134,10.505063927019728,null,"ste",9569241613,9.9808775201864215,null,null,"between",3,7]
["write","its","me","would",null,null,null,null,null,"carry",5,null,null,null,"na",31835157885,10.502907008068691,null,"cti",9429172779,9.9744735937687192,null,null,"big",1,3]
["would","time","people","write",null,null,null,null,null,"cause",5,null,null,null,"rs",31498209240,10.498285863653294,null,"oft",9311134315,9.9690025914794376,null,null,"bl",0,2]
["like","only","take","like",null,null,null,null,null,"class",5,null,null,null,"so",31467005438,10.497855415184192,null,"oth",9268238918,9.9669972205680502,null,null,"black",{"$f":"IF(ISNUMBER(FIND(\"e\",X65)),1,0)+IF(ISNUMBER(FIND(\"n\",X65)),1,0)+IF(ISNUMBER(FIND(\"t\",X65)),1,0)+IF(ISNUMBER(FIND(\"o\",X65)),1,0)+IF(ISNUMBER(FIND(\"r\",X65)),1,0)+IF(ISNUMBER(FIND(\"s\",X65)),1,0)+IF(ISNUMBER(FIND(\"d\",X65)),1,0)+IF(ISNUMBER(FIND(\"i\",X65)),1,0)","v":0},{"$f":"LEN(X65)","v":5}]
["so","could","out","so",null,null,null,null,null,"clear",{"$f":"LEN(J66)","v":5},null,null,null,"pr",31268978905,10.495113699497987,null,"ice",9216488654,9.9645654927837555,null,null,"ble",1,3]
["these","new","into","these",null,null,null,null,null,"close",5,null,null,null,"rt",31174956946,{"$f":"LOG(P67)","v":10.493805862371028},null,"out",9109347899,{"$f":"LOG(T67)","v":9.9594872887180692},null,null,"blue",1,4]
["her","them","just","her",null,null,null,null,null,"color",5,null,null,null,"sa",31138171773,10.493293110088036,null,"ill",8856637789,9.9472688836463856,null,null,"bo",1,2]
["long","man","see","long",null,null,null,null,null,"could",5,null,null,null,"ss",31081241798,10.492498361970748,null,"ide",8762459520,9.9426260246658718,null,null,"body",2,4]
["make","some","him","make",null,null,null,null,null,"cover",5,null,null,null,"us",30677125454,10.486814662384067,null,"eth",8761791336,9.9425929061460998,null,null,"book",1,4]
["thing","these","your","thing",null,null,null,null,null,"drive",5,null,null,null,"no",30618138499,10.485978783220919,null,"ies",8755941598,9.9423028561678315,null,null,"both",2,4]
["see","then","come","see",null,null,null,null,null,"early",5,null,null,null,"il",30603240902,10.485767420969308,null,"one",8734828995,9.941254407057377,null,null,"boy",1,3]
["him","two","could","him",null,null,null,null,null,"every",5,null,null,null,"ts",29972404314,10.476721582399133,null,"ser",8638918094,9.9364593564572914,null,null,"bring",3,5]
["two","first","now","two",null,null,null,null,null,"field",5,null,null,null,"em",29776626954,10.473875500057114,null,"eco",8634091171,9.9362166302425514,null,null,"bu",0,2]
["has","may","than","has",null,null,null,null,null,"first",5,null,null,null,"ct",28898718663,10.460878587049795,null,"era",8576303979,9.9333001657795119,null,null,"build",2,5]
["look","any","like","look",null,null,null,null,null,"force",5,null,null,null,"ge",28502237355,10.454878952387201,null,"str",8562859196,9.9326188027274931,null,null,"but",1,3]
["more","like","other","more",null,null,null,null,null,"great",5,null,null,null,"lo",28357992178,10.452675478383949,null,"eve",8494214965,9.9291232475814297,null,null,"by",0,2]
["day","now","how","day",null,null,null,null,null,"green",5,null,null,null,"ee",27451934708,10.438572957288828,null,"din",8409981481,9.924795039471114,null,null,"cal",0,3]
["could","my","then","could",null,null,null,null,null,"group",5,null,null,null,"be",27212687351,10.434771432043654,null,"rat",8359118483,9.9221604810090724,null,null,"call",0,4]
["go","such","its","go",null,null,null,null,null,"house",5,null,null,null,"tr",26996514264,10.431307692542775,null,"ona",8349559915,9.9216635854807418,null,null,"can",1,3]
["come","make","our","come",null,null,null,null,null,"large",5,null,null,null,"ni",25359266664,10.404136690519511,null,"ces",8338433547,9.9210844720057718,null,null,"cannot",3,6]
["did","over","two","did",null,null,null,null,null,"learn",5,null,null,null,"pe",25126480018,10.400131652307943,null,"edi",8301169405,9.9191392767573738,null,null,"car",1,3]
["number","our","more","my",null,null,null,null,null,"leave",5,null,null,null,"ie",24933647247,10.396785810930162,null,"iti",8274710654,9.9177528165180693,null,null,"care",2,4]
["sound","even","these","sound",null,null,null,null,null,"light",5,null,null,null,"pa",24898597250,10.396174880278666,null,"eri",8255178069,9.916726445684823,null,null,"carry",1,5]
["no","most","want","no",null,null,null,null,null,"might",5,null,null,null,"nc",24737829432,10.393361590723179,null,"ran",8085921288,9.9077295094001236,null,null,"cat",1,3]
["most","me","way","most",null,null,null,null,null,"money",5,null,null,null,"po",23703275501,10.3748083643104,null,"san",8028613003,9.9046405244602695,null,null,"cause",2,5]
["people","state","look","number",null,null,null,null,null,"music",5,null,null,null,"ol",23553044761,10.37204705742786,null,"ity",7977725523,9.9018790901466573,null,null,"ce",1,2]
["my","after","first","who",null,null,null,null,null,"never",5,null,null,null,"da",23279747379,10.366978263241529,null,"oun",7953797964,9.9005745551897739,null,null,"center",4,6]
["over","also","also","over",null,null,null,null,null,"night",5,null,null,null,"ad",23202347740,10.365531931396948,null,"nal",7901959084,9.8977347765933352,null,null,"certain",5,7]
["know","made","new","know",null,null,null,null,null,"north",5,null,null,null,"vi",23140348141,10.364369888521429,null,"use",7847978561,9.8947578079738143,null,null,"ces",2,3]
["water","many","because","water",null,null,null,null,null,"often",5,null,null,null,"un",22987447404,10.361490748567887,null,"ure",7815758547,9.8929711342156708,null,null,"change",2,6]
["than","did","day","than",null,null,null,null,null,"order",5,null,null,null,"am",22902383711,10.359880686648085,null,"rin",7789909616,9.8915324187123375,null,null,"che",1,3]
["call","must","more","call",null,null,null,null,null,"other",5,null,null,null,"ut",22499209523,10.352167260074484,null,"ame",7785396816,9.8912807531414106,null,null,"ci",1,2]
["first","before","use","first",null,null,null,null,null,"paper",5,null,null,null,"wi",21486195066,10.332159514228222,null,"act",7780788086,9.8910235872297037,null,null,"city",2,4]
["who","back","no","people",null,null,null,null,null,"piece",5,null,null,null,"mo",21343638917,10.329268465081242,null,"igh",7777301857,9.8908289553631654,null,null,"ck",0,2]
["may","see","man","may",null,null,null,null,null,"place",5,null,null,null,"sh",21322806441,10.328844364595989,null,"ese",7747062209,9.8891370433704875,null,null,"cl",0,2]
["down","through","find","down",null,null,null,null,null,"plant",5,null,null,null,"yo",20264440566,10.306734618812831,null,"ave",7740219867,9.8887532973325882,null,null,"class",1,5]
["side","way","here","side",null,null,null,null,null,"point",5,null,null,null,"ai",20090957077,10.303000625815418,null,"sti",7735728445,9.8885012158696703,null,null,"clear",2,5]
["been","where","thing","been",null,null,null,null,null,"power",5,null,null,null,"ew",20003014022,10.301095439389032,null,"nts",7703419247,9.8866835343280268,null,null,"close",3,5]
["now","get","give","now",null,null,null,null,null,"reach",5,null,null,null,"ow",19972624694,10.300435141246192,null,"hes",7667255097,9.88463991289448,null,null,"co",1,2]
["find","much","many","find",null,null,null,null,null,"ready",5,null,null,null,"os",19821367131,10.297133605596938,null,"sit",7634282993,9.8827682546464004,null,null,"cold",2,4]
["any","go","well","any",null,null,null,null,null,"right",5,null,null,null,"fi",19753676090,10.295647928167073,null,"der",7607432624,9.8812381146740318,null,null,"color",2,5]
["new","well","only","new",null,null,null,null,null,"serve",5,null,null,null,"ep",19436550393,10.288619188665221,null,"fth",7595352455,9.880547931682683,null,null,"com",1,3]
["work","your","those","work",null,null,null,null,null,"shall",5,null,null,null,"tt",19222971337,10.283820518375457,null,"les",7567750237,9.8789667903489917,null,null,"come",2,4]
["part","know","tell","part",null,null,null,null,null,"short",5,null,null,null,"mi",19090900236,10.280826408137459,null,"man",7547990267,9.8778313314781983,null,null,"common",2,6]
["take","should","one","take",null,null,null,null,null,"since",5,null,null,null,"op",19077697278,10.280525953187245,null,"ant",7529985399,9.8767941340838501,null,null,"con",2,3]
["get","down","very","get",null,null,null,null,null,"small",5,null,null,null,"ia",19042814662,10.279731140573219,null,"ind",7487181360,9.8743183530550187,null,null,"cou",1,3]
["place","work","her","place",null,null,null,null,null,"sound",5,null,null,null,"we",18727322433,10.272475687909175,null,"new",7349340050,9.8662483424159699,null,null,"could",2,5]
["made","year","even","made",null,null,null,null,null,"south",5,null,null,null,"ag",18418672749,10.265258331693987,null,"pri",7346350184,9.8660716263444321,null,null,"course",4,6]
["live","because","back","live",null,null,null,null,null,"stand",5,null,null,null,"su",18318104818,10.262880539765217,null,"ree",7338235853,9.8655916659931595,null,null,"cover",3,5]
["where","come","any","where",null,null,null,null,null,"start",5,null,null,null,"id",17905542743,10.252987489643795,null,"ble",7301450674,9.863409155616619,null,null,"ct",1,2]
["after","people","good","after",null,null,null,null,null,"state",5,null,null,null,"do",17706639517,10.248136145735209,null,"ast",7296466185,9.8631125741012102,null,null,"cti",2,3]
["back","just","woman","back",null,null,null,null,null,"still",5,null,null,null,"oo",17541371381,10.244063543415368,null,"nta",7285962164,9.8624869116205982,null,null,"cut",1,3]
["little","say","through","little",null,null,null,null,null,"story",5,null,null,null,"ir",17041448765,10.231506513194722,null,"tur",7255257009,9.8606528014206898,null,null,"da",1,2]
["only","each","us","only",null,null,null,null,null,"study",5,null,null,null,"sp",17010851034,10.230726041427069,null,"por",7235072745,9.8594429020885404,null,null,"dark",2,4]
["round","those","life","round",null,null,null,null,null,"table",5,null,null,null,"pl",17001616925,10.230490226567214,null,"ght",7211373509,9.858017990179798,null,null,"dat",2,3]
["man","take","child","man",null,null,null,null,null,"their",5,null,null,null,"sc",16886526539,10.227540326890123,null,"ain",7203902170,9.8575678064076779,null,null,"day",1,3]
["year","day","there","year",null,null,null,null,null,"there",5,null,null,null,"ay",16749015766,10.223989291375608,null,"anc",7170617892,9.8555565804270682,null,null,"de",2,2]
["came","good","work","came",null,null,null,null,null,"these",5,null,null,null,"wa",16616645822,10.220543363129854,null,"cha",7166970708,9.8553356294758245,null,null,"decide",3,6]
["show","how","down","show",null,null,null,null,null,"thing",5,null,null,null,"ig",16254923119,10.210984919751985,null,"eas",7144091746,9.8539470232217123,null,null,"deep",2,4]
["every","long","may","every",null,null,null,null,null,"think",5,null,null,null,"ei",16135583953,10.207784687308964,null,"par",7090030518,9.8506481045442058,null,null,"der",3,3]
["good","mr","after","good",null,null,null,null,null,"those",5,null,null,null,"ry",16071337298,10.206052015965458,null,"ove",7082360635,9.8501780373335315,null,null,"develop",3,7]
["me","own","should","me",null,null,null,null,null,"three",5,null,null,null,"ly",16052501931,10.205542730831024,null,"nde",7001782845,9.8452086373229495,null,null,"di",2,2]
["give","too","call","give",null,null,null,null,null,"under",5,null,null,null,"tu",15817162046,10.199128563970428,null,"rom",7000056098,9.8451015204362893,null,null,"din",3,3]
["our","little","world","our",null,null,null,null,null,"until",5,null,null,null,"ul",15752059735,10.197337350065796,null,"rec",6994110775,9.8447325065248776,null,null,"dis",3,3]
["under","use","over","under",null,null,null,null,null,"watch",5,null,null,null,"iv",15535972775,10.191338451513619,null,"ert",6973945867,9.8434785719825406,null,null,"do",2,2]
["name","us","school","name",null,null,null,null,null,"water",5,null,null,null,"im",15472128922,10.189550075526409,null,"lan",6973440028,9.8434470702963921,null,null,"does",4,4]
["very","very","still","very",null,null,null,null,null,"where",5,null,null,null,"ab",15386005538,10.187125884420617,null,"cal",6961946111,9.8427306573013418,null,null,"done",4,4]
["through","great","try","through",null,null,null,null,null,"which",5,null,null,null,"ty",15214168398,10.182248218933422,null,"sof",6893604325,9.8384463524109762,null,null,"door",{"$f":"IF(ISNUMBER(FIND(\"e\",X129)),1,0)+IF(ISNUMBER(FIND(\"n\",X129)),1,0)+IF(ISNUMBER(FIND(\"t\",X129)),1,0)+IF(ISNUMBER(FIND(\"o\",X129)),1,0)+IF(ISNUMBER(FIND(\"r\",X129)),1,0)+IF(ISNUMBER(FIND(\"s\",X129)),1,0)+IF(ISNUMBER(FIND(\"d\",X129)),1,0)+IF(ISNUMBER(FIND(\"i\",X129)),1,0)","v":3},{"$f":"LEN(X129)","v":4}]
["just","still","in","just",null,null,null,null,null,"while",{"$f":"LEN(J130)","v":5},null,null,null,"ci",15114311349,10.179388364273176,null,"can",6861067469,9.8363916900260655,null,null,"down",3,4]
["form","men","as","form",null,null,null,null,null,"white",5,null,null,null,"ap",15049927877,{"$f":"LOG(P131)","v":10.177534418687605},null,"orm",6811887554,{"$f":"LOG(T131)","v":9.8332674703122347},null,null,"drive",4,5]
["sentence","here","last","much",null,null,null,null,null,"whole",5,null,null,null,"ev",14977965012,10.175452811755017,null,"tes",6794181060,9.8321371163213396,null,null,"ds",2,2]
["great","life","ask","great",null,null,null,null,null,"would",5,null,null,null,"eo",14770877724,10.169406302987234,null,"ost",6762274549,9.8300927991856213,null,null,"dt",2,2]
["think","both","need","think",null,null,null,null,null,"write",5,null,null,null,"ef",14743755990,10.168608134672123,null,"cat",6716493366,9.8271425901255718,null,null,"du",1,2]
["say","between","too","say",null,null,null,null,null,"young",5,null,null,null,"od",14558819018,10.163126147314399,null,"son",6709265158,9.8266749560405202,null,null,"during",4,6]
["help","old","feel","help",null,null,null,null,null,"able",4,null,null,null,"fr",14439772192,10.159560341672833,null,"tic",6664284326,9.8237535175972184,null,null,"ea",1,2]
["low","under","three","low",null,null,null,null,null,"also",4,null,null,null,"rd",14380342944,10.157769243272931,null,"end",6663626810,9.8237106668357015,null,null,"each",1,4]
["line","last","when","line",null,null,null,null,null,"back",4,null,null,null,"bo",14280375980,10.154739641886216,null,"hea",6659669886,9.8234527021069642,null,null,"ead",2,3]
["differ","never","state","before",null,null,null,null,null,"best",4,null,null,null,"rc",14278737404,10.154689806689571,null,"ina",6651182188,9.8228988441143184,null,null,"eal",1,3]
["turn","place","never","turn",null,null,null,null,null,"blue",4,null,null,null,"mp",14257278755,10.154036640910963,null,"red",6642804662,9.8223514817863027,null,null,"ean",2,3]
["cause","same","become","cause",null,null,null,null,null,"body",4,null,null,null,"ga",14191497542,10.152028226317995,null,"wor",6637704263,9.8220178988998903,null,null,"ear",2,3]
["much","another","between","same",null,null,null,null,null,"book",4,null,null,null,"bl",14155655885,10.150929996670895,null,"ber",6597498432,9.8193792956751373,null,null,"early",2,5]
["mean","think","high","mean",null,null,null,null,null,"both",4,null,null,null,"ke",14119208748,10.149810359179947,null,"lic",6582149201,9.8183677224488726,null,null,"eas",2,3]
["before","house","really","differ",null,null,null,null,null,"call",4,null,null,null,"ds",14113090545,10.149622127834274,null,"han",6578893232,9.8181528383458865,null,null,"east",3,4]
["move","while","something","move",null,null,null,null,null,"care",4,null,null,null,"ck",13780629739,10.13926906415533,null,"mat",6573067826,9.8177681136900059,null,null,"eat",2,3]
["right","high","most","right",null,null,null,null,null,"city",4,null,null,null,"oc",13671886937,10.135828458223502,null,"tat",6530894805,9.8149726885110304,null,null,"eb",1,2]
["boy","right","another","boy",null,null,null,null,null,"cold",4,null,null,null,"ba",13622702607,10.134263275775835,null,"hin",6516345939,9.8140041320224078,null,null,"ec",1,2]
["old","might","much","old",null,null,null,null,null,"come",4,null,null,null,"ls",13556674443,10.132153166803516,null,"nes",6497781151,9.812765079967777,null,null,"eco",2,3]
["too","came","family","too",null,null,null,null,null,"dark",4,null,null,null,"rm",13536350081,10.131501577689663,null,"pre",6488727797,9.8121595558292096,null,null,"ect",2,3]
["same","off","own","does",null,null,null,null,null,"deep",4,null,null,null,"fe",13440050156,10.128400889434577,null,"sho",6455765345,9.8099477362084784,null,null,"ed",2,2]
["tell","find","out","tell",null,null,null,null,null,"does",4,null,null,null,"ex",13356752941,10.125700892929849,null,"ren",6448696005,9.8094719045442886,null,null,"edi",3,3]
["does","states","leave","sentence",null,null,null,null,null,"done",4,null,null,null,"ft",13171357353,10.119630532785804,null,"ein",6448143573,9.8094346988137016,null,null,"ee",1,2]
["set","since","put","set",null,null,null,null,null,"door",4,null,null,null,"av",12702579090,10.103891907636152,null,"eme",6402422147,9.8063443061824245,null,null,"een",2,3]
["three","used","old","three",null,null,null,null,null,"down",4,null,null,null,"eb",12666048968,10.102641162713176,null,"ric",6395194174,9.8058537352754236,null,null,"ef",1,2]
["want","give","while","want",null,null,null,null,null,"each",4,null,null,null,"ld",12631807015,10.101465482028672,null,"ust",6379227540,9.8047680932311945,null,null,"eg",1,2]
["air","against","mean","air",null,null,null,null,null,"east",4,null,null,null,"wh",12042164275,10.080704547405208,null,"fro",6375179963,9.8044924488447691,null,null,"ei",2,2]
["well","three","on","well",null,null,null,null,null,"even",4,null,null,null,"gh",12038664661,10.08057831727719,null,"rth",6370312621,9.8041607457174145,null,null,"ein",3,3]
["also","himself","keep","also",null,null,null,null,null,"ever",4,null,null,null,"gr",12028253431,10.080202569954364,null,"inc",6370252546,9.8041566500998876,null,null,"el",1,2]
["play","look","student","play",null,null,null,null,null,"face",4,null,null,null,"gi",12005990636,10.079398000294624,null,"eat",6369047797,9.8040745080936151,null,null,"ele",1,3]
["small","few","why","small",null,null,null,null,null,"fact",4,null,null,null,"wo",11770868120,10.070808493924352,null,"ase",6327795380,9.8012524270677375,null,null,"ell",1,3]
["end","general","let","end",null,null,null,null,null,"fall",4,null,null,null,"ov",11763317241,10.070529809521604,null,"nti",6317158311,9.8005217606575812,null,null,"em",1,2]
["put","hand","great","put",null,null,null,null,null,"feel",4,null,null,null,"cl",11632840915,10.065685788936555,null,"ard",6311394005,9.8001252929708631,null,null,"ema",1,3]
["home","school","same","home",null,null,null,null,null,"find",4,null,null,null,"rn",11557521313,10.062864702984855,null,"rch",6274084817,9.7975503854656605,null,null,"eme",1,3]
["read","part","big","read",null,null,null,null,null,"fine",4,null,null,null,"bu",11550713430,10.062608809262226,null,"ndi",6269566407,9.7972375067703261,null,null,"en",2,2]
["hand","small","group","hand",null,null,null,null,null,"fire",4,null,null,null,"eg",11512774220,10.061179987683907,null,"lea",6244702983,9.7955117868395813,null,null,"enc",2,3]
["port","american","begin","port",null,null,null,null,null,"five",4,null,null,null,"fa",11428633961,10.057994323251444,null,"tan",6217725873,9.7936315709609882,null,null,"end",3,3]
["large","home","seem","large",null,null,null,null,null,"food",4,null,null,null,"go",11021593048,10.04224437146256,null,"ssi",6195368725,9.7920671590522641,null,null,"ene",2,3]
["spell","during","country","spell",null,null,null,null,null,"foot",4,null,null,null,"dt",10976756096,10.040474014271119,null,"nin",6130432182,9.7874910924044851,null,null,"enough",3,6]
["add","number","help","add",null,null,null,null,null,"form",4,null,null,null,"lt",10910014701,10.037825335790805,null,"min",6092377855,9.7847868308512211,null,null,"ent",3,3]
["even","again","talk","even",null,null,null,null,null,"four",4,null,null,null,"uc",10702575520,10.029488301005628,null,"ail",6072492710,9.783367002108923,null,null,"entire",5,6]
["land","mrs","where","land",null,null,null,null,null,"free",4,null,null,null,"if",10654256107,10.027523132144704,null,"omp",6060470158,9.7825063170878419,null,null,"eo",2,2]
["here","around","turn","here",null,null,null,null,null,"from",4,null,null,null,"ys",10570642040,10.024101366300904,null,"ins",6014649559,9.7792103284296079,null,null,"eof",2,3]
["must","thought","problem","must",null,null,null,null,null,"full",4,null,null,null,"ht",10529516272,10.022408420071846,null,"cou",5995557118,9.7778295447378625,null,null,"ep",1,2]
["big","went","every","big",null,null,null,null,null,"game",4,null,null,null,"du",10242237496,10.010394841993049,null,"ell",5986380502,9.7771643176941314,null,null,"er",2,2]
["high","without","start","high",null,null,null,null,null,"girl",4,null,null,null,"va",10061548421,10.002664821569651,null,"erv",5983848823,9.7769806129034897,null,null,"era",2,3]
["such","however","hand","such",null,null,null,null,null,"give",4,null,null,null,"um",10007053570,10.000306224666707,null,"tal",5977899885,9.7765486374084904,null,null,"ere",2,3]
["follow","govern","might","follow",null,null,null,null,null,"good",4,null,null,null,null,null,null,null,"enc",5973938086,9.7762607172557416,null,null,"eri",3,3]
["act","don't","american","act",null,null,null,null,null,"half",4,null,null,null,null,null,null,null,"ass",5966350848,9.7757087882265541,null,null,"ers",3,3]
["why","does","show","why",null,null,null,null,null,"hand",4,null,null,null,null,null,null,null,"tth",5939891775,9.7737785321952533,null,null,"ert",3,3]
["ask","got","part","ask",null,null,null,null,null,"hard",4,null,null,null,null,null,null,null,"lle",5912788121,9.7717923167584164,null,null,"erv",2,3]
["men","public","about","men",null,null,null,null,null,"have",4,null,null,null,null,null,null,null,"ele",5861110005,9.7679798725701783,null,null,"es",2,2]
["change","united","against","change",null,null,null,null,null,"head",4,null,null,null,null,null,null,null,"mor",5853333602,9.7674032767844388,null,null,"ese",2,3]
["went","point","place","went",null,null,null,null,null,"hear",4,null,null,null,null,null,null,null,"ean",5821419268,9.7650288789999848,null,null,"ess",2,3]
["light","end","over","light",null,null,null,null,null,"help",4,null,null,null,null,null,null,null,"sth",5804667004,9.763777310642487,null,null,"est",3,3]
["kind","become","such","kind",null,null,null,null,null,"here",4,null,null,null,null,null,null,null,"tem",5802727192,9.763632153229695,null,null,"et",2,2]
["off","head","again","off",null,null,null,null,null,"high",4,null,null,null,null,null,null,null,"sea",5786861403,9.7624430810099767,null,null,"eth",2,3]
["need","once","few","need",null,null,null,null,null,"hold",4,null,null,null,null,null,null,null,"rma",5766719323,9.7609288140017227,null,null,"eto",3,3]
["house","course","case","house",null,null,null,null,null,"home",4,null,null,null,null,null,null,null,"als",5733501281,9.7584199138756649,null,null,"ev",1,2]
["picture","fact","most","picture",null,null,null,null,null,"hour",4,null,null,null,null,null,null,null,"und",5724495752,9.7577372374278735,null,null,"eve",1,3]
["try","upon","week","try",null,null,null,null,null,"idea",4,null,null,null,null,null,null,null,"pla",5722840349,9.7576116304941909,null,null,"even",2,4]
["us","need","company","us",null,null,null,null,null,"just",4,null,null,null,null,null,null,null,"ple",5715951078,9.7570885030710723,null,null,"ever",2,4]
["again","system","where","again",null,null,null,null,null,"keep",4,null,null,null,null,null,null,null,"eal",5688417224,9.7549914427561077,null,null,"every",2,5]
["animal","set","system","animal",null,null,null,null,null,"kind",4,null,null,null,null,null,null,null,"rie",5668790174,9.7534903822052179,null,null,"ew",{"$f":"IF(ISNUMBER(FIND(\"e\",X193)),1,0)+IF(ISNUMBER(FIND(\"n\",X193)),1,0)+IF(ISNUMBER(FIND(\"t\",X193)),1,0)+IF(ISNUMBER(FIND(\"o\",X193)),1,0)+IF(ISNUMBER(FIND(\"r\",X193)),1,0)+IF(ISNUMBER(FIND(\"s\",X193)),1,0)+IF(ISNUMBER(FIND(\"d\",X193)),1,0)+IF(ISNUMBER(FIND(\"i\",X193)),1,0)","v":1},{"$f":"LEN(X193)","v":2}]
["point","every","each","point",null,null,null,null,null,"knew",{"$f":"LEN(J194)","v":4},null,null,null,null,null,null,null,"ema",5633677134,9.7507919539489922,null,null,"ex",1,2]
["mother","war","right","mother",null,null,null,null,null,"know",4,null,null,null,null,null,null,null,"ali",5565221840,{"$f":"LOG(T195)","v":9.7454824807942888},null,null,"eye",1,3]
["world","put","program","world",null,null,null,null,null,"land",4,null,null,null,null,null,null,null,"nda",5557391188,9.7448709681026884,null,null,"fa",0,2]
["near","form","hear","near",null,null,null,null,null,"last",4,null,null,null,null,null,null,null,"ack",5545389093,9.743932023887238,null,null,"face",1,4]
["build","water","so","build",null,null,null,null,null,"late",4,null,null,null,null,null,null,null,"hen",5532909018,9.7429535288251365,null,null,"fact",1,4]
["self","took","question","self",null,null,null,null,null,"lead",4,null,null,null,null,null,null,null,"ial",5531098938,9.7428114270179176,null,null,"fall",0,4]
["earth","program","during","earth",null,null,null,null,null,"left",4,null,null,null,null,null,null,null,"ord",5507276734,9.7409368998024295,null,null,"far",1,3]
["father","present","work","father",null,null,null,null,null,"less",4,null,null,null,null,null,null,null,"ana",5502597527,9.7405677486470275,null,null,"fe",1,2]
["head","government","play","head",null,null,null,null,null,"life",4,null,null,null,null,null,null,null,"arc",5491331558,9.7396776665217395,null,null,"feel",1,4]
["stand","thing","government","stand",null,null,null,null,null,"like",4,null,null,null,null,null,null,null,"ori",5441192075,9.7356940568451211,null,null,"few",1,3]
["own","told","run","own",null,null,null,null,null,"line",4,null,null,null,null,null,null,null,"che",5399280917,9.7323359237907745,null,null,"fi",1,2]
["page","possible","small","page",null,null,null,null,null,"list",4,null,null,null,null,null,null,null,"tho",5387244363,9.7313666753966217,null,null,"field",3,5]
["should","group","number","should",null,null,null,null,null,"live",4,null,null,null,null,null,null,null,"eof",5386724990,9.731324803952452,null,null,"figure",3,6]
["country","large","off","country",null,null,null,null,null,"long",4,null,null,null,null,null,null,null,"lis",5384955984,9.7311821577762405,null,null,"find",3,4]
["found","until","always","found",null,null,null,null,null,"look",4,null,null,null,null,null,null,null,"dis",5358834980,9.7290703835823589,null,null,"fine",3,4]
["answer","always","move","answer",null,null,null,null,null,"love",4,null,null,null,null,null,null,null,"een",5358525566,9.729045307110912,null,null,"finish",3,6]
["school","city","like","school",null,null,null,null,null,"main",4,null,null,null,null,null,null,null,"car",5357500581,9.728962226811408,null,null,"fire",3,4]
["grow","didn't","night","grow",null,null,null,null,null,"make",4,null,null,null,null,null,null,null,"ngt",5353297143,9.7286213502363506,null,null,"first",4,5]
["study","order","live","study",null,null,null,null,null,"many",4,null,null,null,null,null,null,null,"ire",5337275614,9.7273196301126976,null,null,"five",2,4]
["still","away","mr","still",null,null,null,null,null,"mean",4,null,null,null,null,null,null,null,"ead",5327711206,9.7265406754265378,null,null,"fo",1,2]
["learn","called","point","learn",null,null,null,null,null,"mind",4,null,null,null,null,null,null,null,"eto",5293783627,9.7237661863948119,null,null,"follow",1,6]
["plant","want","believe","plant",null,null,null,null,null,"miss",4,null,null,null,null,null,null,null,"ene",5291163831,9.7235512088572751,null,null,"food",2,4]
["cover","eyes","hold","cover",null,null,null,null,null,"more",4,null,null,null,null,null,null,null,"att",5277287215,9.7224107311858781,null,null,"foot",2,4]
["food","something","today","food",null,null,null,null,null,"most",4,null,null,null,null,null,null,null,"nto",5271110670,9.7219021345730958,null,null,"for",2,3]
["sun","unite","bring","sun",null,null,null,null,null,"move",4,null,null,null,null,null,null,null,"omm",5264607931,9.7213660336898968,null,null,"force",3,5]
["four","going","happen","four",null,null,null,null,null,"much",4,null,null,null,null,null,null,null,"pos",5248084605,9.7200008277373566,null,null,"form",2,4]
["between","face","next","thought",null,null,null,null,null,"must",4,null,null,null,null,null,null,null,"abl",5231381622,9.7186164023603574,null,null,"four",2,4]
["state","far","without","let",null,null,null,null,null,"name",4,null,null,null,null,null,null,null,"lat",5230707353,9.7185604228505049,null,null,"fr",1,2]
["keep","asked","before","keep",null,null,null,null,null,"near",4,null,null,null,null,null,null,null,"nds",5194523830,9.7155457429458423,null,null,"free",2,4]
["eye","interest","large","eye",null,null,null,null,null,"need",4,null,null,null,null,null,null,null,"dat",5176782537,9.7140599217976682,null,null,"fro",2,3]
["never","later","all","never",null,null,null,null,null,"next",4,null,null,null,null,null,null,null,"lit",5168451640,9.7133604570360994,null,null,"from",2,4]
["last","show","million","last",null,null,null,null,null,"note",4,null,null,null,null,null,null,null,"gra",5145224530,9.7114043314818037,null,null,"ft",1,2]
["let","knew","must","door",null,null,null,null,null,"once",4,null,null,null,null,null,null,null,null,null,null,null,null,"fth",1,3]
["thought","though","home","between",null,null,null,null,null,"only",4,null,null,null,null,null,null,null,null,null,null,null,null,"full",0,4]
["city","less","under","city",null,null,null,null,null,"open",4,null,null,null,null,null,null,null,null,null,null,null,null,"ga",0,2]
["tree","night","water","tree",null,null,null,null,null,"over",4,null,null,null,null,null,null,null,null,null,null,null,null,"game",1,4]
["cross","early","room","cross",null,null,null,null,null,"part",4,null,null,null,null,null,null,null,null,null,null,null,null,"ge",1,2]
["farm","almost","write","since",null,null,null,null,null,"pass",4,null,null,null,null,null,null,null,null,null,null,null,null,"get",2,3]
["hard","let","mother","hard",null,null,null,null,null,"plan",4,null,null,null,null,null,null,null,null,null,null,null,null,"gh",0,2]
["start","open","area","start",null,null,null,null,null,"play",4,null,null,null,null,null,null,null,null,null,null,null,null,"ght",1,3]
["might","enough","national","might",null,null,null,null,null,"read",4,null,null,null,null,null,null,null,null,null,null,null,null,"gi",1,2]
["story","side","money","story",null,null,null,null,null,"real",4,null,null,null,null,null,null,null,null,null,null,null,null,"girl",2,4]
["saw","case","story","saw",null,null,null,null,null,"rest",4,null,null,null,null,null,null,null,null,null,null,null,null,"give",2,4]
["far","days","young","far",null,null,null,null,null,"road",4,null,null,null,null,null,null,null,null,null,null,null,null,"go",1,2]
["sea","yet","fact","sea",null,null,null,null,null,"room",4,null,null,null,null,null,null,null,null,null,null,null,null,"good",2,4]
["draw","better","month","draw",null,null,null,null,null,"same",4,null,null,null,null,null,null,null,null,null,null,null,null,"gr",1,2]
["left","nothing","different","left",null,null,null,null,null,"seem",4,null,null,null,null,null,null,null,null,null,null,null,null,"gra",1,3]
["late","tell","lot","late",null,null,null,null,null,"show",4,null,null,null,null,null,null,null,null,null,null,null,null,"great",3,5]
["run","problem","right","run",null,null,null,null,null,"side",4,null,null,null,null,null,null,null,null,null,null,null,null,"green",3,5]
["don't","toward","study","don't",null,null,null,null,null,"size",4,null,null,null,null,null,null,null,null,null,null,null,null,"ground",4,6]
["while","given","book","while",null,null,null,null,null,"some",4,null,null,null,null,null,null,null,null,null,null,null,null,"group",2,5]
["press","why","eye","press",null,null,null,null,null,"soon",4,null,null,null,null,null,null,null,null,null,null,null,null,"had",1,3]
["close","national","job","close",null,null,null,null,null,"stay",4,null,null,null,null,null,null,null,null,null,null,null,null,"half",0,4]
["night","room","word","night",null,null,null,null,null,"step",4,null,null,null,null,null,null,null,null,null,null,null,null,"han",1,3]
["real","young","though","real",null,null,null,null,null,"stop",4,null,null,null,null,null,null,null,null,null,null,null,null,"hand",2,4]
["life","social","business","life",null,null,null,null,null,"such",4,null,null,null,null,null,null,null,null,null,null,null,null,"happen",2,6]
["few","light","issue","few",null,null,null,null,null,"sure",4,null,null,null,null,null,null,null,null,null,null,null,null,"hard",2,4]
["north","business","side","stop",null,null,null,null,null,"take",4,null,null,null,null,null,null,null,null,null,null,null,null,"has",1,3]
["open","president","kind","open",null,null,null,null,null,"talk",4,null,null,null,null,null,null,null,null,null,null,null,null,"hat",1,3]
["seem","help","four","seem",null,null,null,null,null,"tell",4,null,null,null,null,null,null,null,null,null,null,null,null,"have",1,4]
["together","power","head","together",null,null,null,null,null,"test",4,null,null,null,null,null,null,null,null,null,null,null,null,"he",1,2]
["next","country","far","next",null,null,null,null,null,"than",4,null,null,null,null,null,null,null,null,null,null,null,null,"hea",1,3]
["white","next","black","white",null,null,null,null,null,"that",4,null,null,null,null,null,null,null,null,null,null,null,null,"head",2,4]
["children","things","long","children",null,null,null,null,null,"them",4,null,null,null,null,null,null,null,null,null,null,null,null,"hear",{"$f":"IF(ISNUMBER(FIND(\"e\",X257)),1,0)+IF(ISNUMBER(FIND(\"n\",X257)),1,0)+IF(ISNUMBER(FIND(\"t\",X257)),1,0)+IF(ISNUMBER(FIND(\"o\",X257)),1,0)+IF(ISNUMBER(FIND(\"r\",X257)),1,0)+IF(ISNUMBER(FIND(\"s\",X257)),1,0)+IF(ISNUMBER(FIND(\"d\",X257)),1,0)+IF(ISNUMBER(FIND(\"i\",X257)),1,0)","v":2},{"$f":"LEN(X257)","v":4}]
["begin","word","both","begin",null,null,null,null,null,"then",{"$f":"LEN(J258)","v":4},null,null,null,null,null,null,null,null,null,null,null,null,"help",1,4]
["got","looked","little","got",null,null,null,null,null,"they",4,null,null,null,null,null,null,null,null,null,null,null,null,"hen",2,3]
["walk","real","house","walk",null,null,null,null,null,"this",4,null,null,null,null,null,null,null,null,null,null,null,null,"her",2,3]
["example","john","yes","example",null,null,null,null,null,"time",4,null,null,null,null,null,null,null,null,null,null,null,null,"here",2,4]
["ease","line","after","ease",null,null,null,null,null,"told",4,null,null,null,null,null,null,null,null,null,null,null,null,"hes",2,3]
["paper","second","since","paper",null,null,null,null,null,"town",4,null,null,null,null,null,null,null,null,null,null,null,null,"hi",1,2]
["group","church","long","often",null,null,null,null,null,"turn",4,null,null,null,null,null,null,null,null,null,null,null,null,"high",1,4]
["always","seem","provide","always",null,null,null,null,null,"unit",4,null,null,null,null,null,null,null,null,null,null,null,null,"him",1,3]
["music","certain","service","music",null,null,null,null,null,"very",4,null,null,null,null,null,null,null,null,null,null,null,null,"hin",2,3]
["those","big","around","those",null,null,null,null,null,"wait",4,null,null,null,null,null,null,null,null,null,null,null,null,"his",2,3]
["both","four","friend","both",null,null,null,null,null,"walk",4,null,null,null,null,null,null,null,null,null,null,null,null,"ho",1,2]
["mark","felt","important","mark",null,null,null,null,null,"want",4,null,null,null,null,null,null,null,null,null,null,null,null,"hold",2,4]
["often","several","father","book",null,null,null,null,null,"week",4,null,null,null,null,null,null,null,null,null,null,null,null,"home",2,4]
["letter","children","sit","letter",null,null,null,null,null,"well",4,null,null,null,null,null,null,null,null,null,null,null,null,"hot",2,3]
["until","service","away","until",null,null,null,null,null,"went",4,null,null,null,null,null,null,null,null,null,null,null,null,"hour",2,4]
["mile","feel","until","mile",null,null,null,null,null,"were",4,null,null,null,null,null,null,null,null,null,null,null,null,"house",3,5]
["river","important","power","river",null,null,null,null,null,"west",4,null,null,null,null,null,null,null,null,null,null,null,null,"how",1,3]
["car","rather","hour","car",null,null,null,null,null,"what",4,null,null,null,null,null,null,null,null,null,null,null,null,"ht",1,2]
["feet","name","game","feet",null,null,null,null,null,"when",4,null,null,null,null,null,null,null,null,null,null,null,null,"ia",1,2]
["care","per","often","care",null,null,null,null,null,"will",4,null,null,null,null,null,null,null,null,null,null,null,null,"ial",1,3]
["second","among","yet","second",null,null,null,null,null,"with",4,null,null,null,null,null,null,null,null,null,null,null,null,"ic",1,2]
["book","often","line","group",null,null,null,null,null,"word",4,null,null,null,null,null,null,null,null,null,null,null,null,"ica",1,3]
["carry","turn","political","carry",null,null,null,null,null,"work",4,null,null,null,null,null,null,null,null,null,null,null,null,"ice",2,3]
["took","development","end","took",null,null,null,null,null,"year",4,null,null,null,null,null,null,null,null,null,null,null,null,"id",2,2]
["science","keep","among","rain",null,null,null,null,null,"your",4,null,null,null,null,null,null,null,null,null,null,null,null,"ide",3,3]
["eat","family","ever","eat",null,null,null,null,null,"act",3,null,null,null,null,null,null,null,null,null,null,null,null,"idea",3,4]
["room","seemed","stand","room",null,null,null,null,null,"add",3,null,null,null,null,null,null,null,null,null,null,null,null,"ie",2,2]
["friend","white","bad","friend",null,null,null,null,null,"age",3,null,null,null,null,null,null,null,null,null,null,null,null,"ies",3,3]
["began","company","lose","began",null,null,null,null,null,"ago",3,null,null,null,null,null,null,null,null,null,null,null,null,"if",1,2]
["idea","mind","however","idea",null,null,null,null,null,"air",3,null,null,null,null,null,null,null,null,null,null,null,null,"ig",1,2]
["fish","members","member","fish",null,null,null,null,null,"all",3,null,null,null,null,null,null,null,null,null,null,null,null,"igh",1,3]
["mountain","others","pay","mountain",null,null,null,null,null,"and",3,null,null,null,null,null,null,null,null,null,null,null,null,"il",1,2]
["stop","within","law","north",null,null,null,null,null,"any",3,null,null,null,null,null,null,null,null,null,null,null,null,"ill",1,3]
["once","done","meet","once",null,null,null,null,null,"ask",3,null,null,null,null,null,null,null,null,null,null,null,null,"im",1,2]
["base","along","car","base",null,null,null,null,null,"bed",3,null,null,null,null,null,null,null,null,null,null,null,null,"in",2,2]
["hear","turned","city","hear",null,null,null,null,null,"big",3,null,null,null,null,null,null,null,null,null,null,null,null,"ina",2,3]
["horse","god","almost","horse",null,null,null,null,null,"boy",3,null,null,null,null,null,null,null,null,null,null,null,null,"inc",2,3]
["cut","sense","include","cut",null,null,null,null,null,"but",3,null,null,null,null,null,null,null,null,null,null,null,null,"ind",3,3]
["sure","week","continue","sure",null,null,null,null,null,"can",3,null,null,null,null,null,null,null,null,null,null,null,null,"ine",3,3]
["watch","best","set","watch",null,null,null,null,null,"car",3,null,null,null,null,null,null,null,null,null,null,null,null,"ing",2,3]
["color","change","later","color",null,null,null,null,null,"cut",3,null,null,null,null,null,null,null,null,null,null,null,null,"ins",3,3]
["face","kind","community","face",null,null,null,null,null,"day",3,null,null,null,null,null,null,null,null,null,null,null,null,"int",3,3]
["wood","began","much","wood",null,null,null,null,null,"end",3,null,null,null,null,null,null,null,null,null,null,null,null,"io",2,2]
["main","child","name","main",null,null,null,null,null,"eye",3,null,null,null,null,null,null,null,null,null,null,null,null,"ion",3,3]
["enough","ever","five","enough",null,null,null,null,null,"far",3,null,null,null,null,null,null,null,null,null,null,null,null,"ir",2,2]
["plain","law","once","plain",null,null,null,null,null,"few",3,null,null,null,null,null,null,null,null,null,null,null,null,"ire",3,3]
["girl","matter","white","girl",null,null,null,null,null,"for",3,null,null,null,null,null,null,null,null,null,null,null,null,"is",2,2]
["usual","least","least","usual",null,null,null,null,null,"get",3,null,null,null,null,null,null,null,null,null,null,null,null,"ist",3,3]
["young","means","president","young",null,null,null,null,null,"had",3,null,null,null,null,null,null,null,null,null,null,null,null,"it",2,2]
["ready","question","learn","ready",null,null,null,null,null,"has",3,null,null,null,null,null,null,null,null,null,null,null,null,"ite",3,3]
["above","act","real","above",null,null,null,null,null,"her",3,null,null,null,null,null,null,null,null,null,null,null,null,"ith",2,3]
["ever","close","change","ever",null,null,null,null,null,"him",3,null,null,null,null,null,null,null,null,null,null,null,null,"iti",2,3]
["red","mean","team","red",null,null,null,null,null,"his",3,null,null,null,null,null,null,null,null,null,null,null,null,"ity",2,3]
["list","leave","minute","list",null,null,null,null,null,"hot",3,null,null,null,null,null,null,null,null,null,null,null,null,"iv",1,2]
["though","itself","best","though",null,null,null,null,null,"how",3,null,null,null,null,null,null,null,null,null,null,null,null,"ive",2,3]
["feel","force","several","feel",null,null,null,null,null,"lay",3,null,null,null,null,null,null,null,null,null,null,null,null,"just",2,4]
["talk","study","idea","talk",null,null,null,null,null,"let",3,null,null,null,null,null,null,null,null,null,null,null,null,"ke",1,2]
["bird","york","kid","bird",null,null,null,null,null,"lot",3,null,null,null,null,null,null,null,null,null,null,null,null,"keep",1,4]
["soon","action","body","soon",null,null,null,null,null,"low",3,null,null,null,null,null,null,null,null,null,null,null,null,"kind",3,4]
["body","it's","information","body",null,null,null,null,null,"man",3,null,null,null,null,null,null,null,null,null,null,null,null,"knew",2,4]
["dog","door","nothing","dog",null,null,null,null,null,"may",3,null,null,null,null,null,null,null,null,null,null,null,null,"know",2,4]
["family","experience","ago","family",null,null,null,null,null,"new",3,null,null,null,null,null,null,null,null,null,null,null,null,"la",0,2]
["direct","human","right","direct",null,null,null,null,null,"now",3,null,null,null,null,null,null,null,null,null,null,null,null,"lan",1,3]
["pose","result","lead","pose",null,null,null,null,null,"off",3,null,null,null,null,null,null,null,null,null,null,null,null,"land",{"$f":"IF(ISNUMBER(FIND(\"e\",X321)),1,0)+IF(ISNUMBER(FIND(\"n\",X321)),1,0)+IF(ISNUMBER(FIND(\"t\",X321)),1,0)+IF(ISNUMBER(FIND(\"o\",X321)),1,0)+IF(ISNUMBER(FIND(\"r\",X321)),1,0)+IF(ISNUMBER(FIND(\"s\",X321)),1,0)+IF(ISNUMBER(FIND(\"d\",X321)),1,0)+IF(ISNUMBER(FIND(\"i\",X321)),1,0)","v":2},{"$f":"LEN(X321)","v":4}]
["leave","times","social","leave",null,null,null,null,null,"old",{"$f":"LEN(J322)","v":3},null,null,null,null,null,null,null,null,null,null,null,null,"large",2,5]
["song","run","understand","song",null,null,null,null,null,"one",3,null,null,null,null,null,null,null,null,null,null,null,null,"last",2,4]
["measure","different","whether","measure",null,null,null,null,null,"our",3,null,null,null,null,null,null,null,null,null,null,null,null,"lat",1,3]
["door","car","back","state",null,null,null,null,null,"out",3,null,null,null,null,null,null,null,null,null,null,null,null,"late",2,4]
["product","example","watch","product",null,null,null,null,null,"own",3,null,null,null,null,null,null,null,null,null,null,null,null,"lay",0,3]
["black","hands","together","black",null,null,null,null,null,"put",3,null,null,null,null,null,null,null,null,null,null,null,null,"ld",1,2]
["short","whole","follow","short",null,null,null,null,null,"red",3,null,null,null,null,null,null,null,null,null,null,null,null,"le",1,2]
["numeral","center","around","numeral",null,null,null,null,null,"run",3,null,null,null,null,null,null,null,null,null,null,null,null,"lea",1,3]
["class","although","parent","class",null,null,null,null,null,"say",3,null,null,null,null,null,null,null,null,null,null,null,null,"lead",2,4]
["wind","call","only","wind",null,null,null,null,null,"see",3,null,null,null,null,null,null,null,null,null,null,null,null,"learn",3,5]
["question","five","stop","question",null,null,null,null,null,"set",3,null,null,null,null,null,null,null,null,null,null,null,null,"leave",1,5]
["happen","inform","face","happen",null,null,null,null,null,"she",3,null,null,null,null,null,null,null,null,null,null,null,null,"left",2,4]
["complete","gave","anything","complete",null,null,null,null,null,"six",3,null,null,null,null,null,null,null,null,null,null,null,null,"les",2,3]
["ship","plan","create","ship",null,null,null,null,null,"ten",3,null,null,null,null,null,null,null,null,null,null,null,null,"less",2,4]
["area","woman","public","area",null,null,null,null,null,"the",3,null,null,null,null,null,null,null,null,null,null,null,null,"let",2,3]
["half","boy","already","half",null,null,null,null,null,"too",3,null,null,null,null,null,null,null,null,null,null,null,null,"letter",3,6]
["rock","feet","speak","rock",null,null,null,null,null,"top",3,null,null,null,null,null,null,null,null,null,null,null,null,"li",1,2]
["order","provide","others","order",null,null,null,null,null,"try",3,null,null,null,null,null,null,null,null,null,null,null,null,"lic",1,3]
["fire","taken","read","fire",null,null,null,null,null,"two",3,null,null,null,null,null,null,null,null,null,null,null,null,"life",2,4]
["south","thus","level","south",null,null,null,null,null,"use",3,null,null,null,null,null,null,null,null,null,null,null,null,"light",2,5]
["problem","body","allow","problem",null,null,null,null,null,"war",3,null,null,null,null,null,null,null,null,null,null,null,null,"like",2,4]
["piece","play","add","piece",null,null,null,null,null,"was",3,null,null,null,null,null,null,null,null,null,null,null,null,"lin",2,3]
["told","seen","office","told",null,null,null,null,null,"way",3,null,null,null,null,null,null,null,null,null,null,null,null,"line",3,4]
["knew","today","spend","knew",null,null,null,null,null,"who",3,null,null,null,null,null,null,null,null,null,null,null,null,"lis",2,3]
["pass","having","door","pass",null,null,null,null,null,"why",3,null,null,null,null,null,null,null,null,null,null,null,null,"list",3,4]
["since","cost","health","farm",null,null,null,null,null,"yes",3,null,null,null,null,null,null,null,null,null,null,null,null,"lit",2,3]
["top","perhaps","person","top",null,null,null,null,null,"yet",3,null,null,null,null,null,null,null,null,null,null,null,null,"little",3,6]
["whole","field","art","whole",null,null,null,null,null,"you",3,null,null,null,null,null,null,null,null,null,null,null,null,"live",2,4]
["king","local","sure","king",null,null,null,null,null,"as",2,null,null,null,null,null,null,null,null,null,null,null,null,"ll",0,2]
["space","really","such","size",null,null,null,null,null,"at",2,null,null,null,null,null,null,null,null,null,null,null,null,"lle",1,3]
["heard","am","war","heard",null,null,null,null,null,"be",2,null,null,null,null,null,null,null,null,null,null,null,null,"lo",1,2]
["best","increase","history","best",null,null,null,null,null,"by",2,null,null,null,null,null,null,null,null,null,null,null,null,"long",2,4]
["hour","reason","party","hour",null,null,null,null,null,"do",2,null,null,null,null,null,null,null,null,null,null,null,null,"look",1,4]
["better","themselves","within","better",null,null,null,null,null,"go",2,null,null,null,null,null,null,null,null,null,null,null,null,"lot",2,3]
[null,"clear","grow",null,null,null,null,null,null,"he",2,null,null,null,null,null,null,null,null,null,null,null,null,"love",2,4]
["during","i'm","result","during",null,null,null,null,null,"if",2,null,null,null,null,null,null,null,null,null,null,null,null,"low",1,3]
["hundred","information","open","hundred",null,null,null,null,null,"in",2,null,null,null,null,null,null,null,null,null,null,null,null,"ls",1,2]
["five","figure","change","am",null,null,null,null,null,"is",2,null,null,null,null,null,null,null,null,null,null,null,null,"lt",1,2]
["remember","late","morning","remember",null,null,null,null,null,"it",2,null,null,null,null,null,null,null,null,null,null,null,null,"ly",0,2]
["step","above","walk","step",null,null,null,null,null,"me",2,null,null,null,null,null,null,null,null,null,null,null,null,"main",2,4]
["early","history","reason","early",null,null,null,null,null,"my",2,null,null,null,null,null,null,null,null,null,null,null,null,"make",1,4]
["hold","love","low","hold",null,null,null,null,null,"no",2,null,null,null,null,null,null,null,null,null,null,null,null,"man",1,3]
["west","girl","win","west",null,null,null,null,null,"of",2,null,null,null,null,null,null,null,null,null,null,null,null,"many",1,4]
["ground","held","research","ground",null,null,null,null,null,"oh",2,null,null,null,null,null,null,null,null,null,null,null,null,"mat",1,3]
["interest","special","girl","interest",null,null,null,null,null,"on",2,null,null,null,null,null,null,null,null,null,null,null,null,"may",0,3]
["reach","move","guy","reach",null,null,null,null,null,"or",2,null,null,null,null,null,null,null,null,null,null,null,null,"me",1,2]
["fast","person","early","fast",null,null,null,null,null,"so",2,null,null,null,null,null,null,null,null,null,null,null,null,"mean",2,4]
["verb","whether","food","five",null,null,null,null,null,"to",2,null,null,null,null,null,null,null,null,null,null,null,null,"men",2,3]
["sing","college","before","sing",null,null,null,null,null,"up",2,null,null,null,null,null,null,null,null,null,null,null,null,"mi",1,2]
["listen","sure","moment","listen",null,null,null,null,null,"us",2,null,null,null,null,null,null,null,null,null,null,null,null,"might",2,5]
["six","probably","himself","six",null,null,null,null,null,"we",2,null,null,null,null,null,null,null,null,null,null,null,null,"min",2,3]
["table","either","air","table",null,null,null,null,null,null,null,null,null,null,null,null,null,null,null,null,null,null,null,"mind",3,4]
["travel","seems","teacher","travel",null,null,null,null,null,null,null,null,null,null,null,null,null,null,null,null,null,null,null,"miss",2,4]
["less","cannot","force","less",null,null,null,null,null,null,null,null,null,null,null,null,null,null,null,null,null,null,null,"mo",1,2]
["morning","art","offer","morning",null,null,null,null,null,null,null,null,null,null,null,null,null,null,null,null,null,null,null,"money",3,5]
["ten","free","enough","ten",null,null,null,null,null,null,null,null,null,null,null,null,null,null,null,null,null,null,null,"mor",2,3]
["simple","across","both","simple",null,null,null,null,null,null,null,null,null,null,null,null,null,null,null,null,null,null,null,"more",3,4]
["several","death","education","several",null,null,null,null,null,null,null,null,null,null,null,null,null,null,null,null,null,null,null,"most",3,4]
["vowel","quite","across","vowel",null,null,null,null,null,null,null,null,null,null,null,null,null,null,null,null,null,null,null,"move",2,4]
["toward","street","although","toward",null,null,null,null,null,null,null,null,null,null,null,null,null,null,null,null,null,null,null,"mp",0,2]
["war","value","remember","war",null,null,null,null,null,null,null,null,null,null,null,null,null,null,null,null,null,null,null,"much",0,4]
["lay","anything","foot","lay",null,null,null,null,null,null,null,null,null,null,null,null,null,null,null,null,null,null,null,"music",2,5]
["against","making","second","against",null,null,null,null,null,null,null,null,null,null,null,null,null,null,null,null,null,null,null,"must",2,4]
["pattern","past","boy","pattern",null,null,null,null,null,null,null,null,null,null,null,null,null,null,null,null,null,null,null,"my",{"$f":"IF(ISNUMBER(FIND(\"e\",X385)),1,0)+IF(ISNUMBER(FIND(\"n\",X385)),1,0)+IF(ISNUMBER(FIND(\"t\",X385)),1,0)+IF(ISNUMBER(FIND(\"o\",X385)),1,0)+IF(ISNUMBER(FIND(\"r\",X385)),1,0)+IF(ISNUMBER(FIND(\"s\",X385)),1,0)+IF(ISNUMBER(FIND(\"d\",X385)),1,0)+IF(ISNUMBER(FIND(\"i\",X385)),1,0)","v":0},{"$f":"LEN(X385)","v":2}]
["slow","brought","maybe","slow",null,null,null,null,null,null,null,null,null,null,null,null,null,null,null,null,null,null,null,"na",1,2]
["center","moment","toward","center",null,null,null,null,null,null,null,null,null,null,null,null,null,null,null,null,null,null,null,"nal",1,3]
["love","control","able","love",null,null,null,null,null,null,null,null,null,null,null,null,null,null,null,null,null,null,null,"name",2,4]
["person","office","age","person",null,null,null,null,null,null,null,null,null,null,null,null,null,null,null,null,null,null,null,"nc",1,2]
["money","heard","off","money",null,null,null,null,null,null,null,null,null,null,null,null,null,null,null,null,null,null,null,"nce",2,3]
["serve","problems","policy","serve",null,null,null,null,null,null,null,null,null,null,null,null,null,null,null,null,null,null,null,"nd",2,2]
["appear","became","everything","appear",null,null,null,null,null,null,null,null,null,null,null,null,null,null,null,null,null,null,null,"nda",2,3]
["road","full","love","road",null,null,null,null,null,null,null,null,null,null,null,null,null,null,null,null,null,null,null,"nde",3,3]
["map","near","process","map",null,null,null,null,null,null,null,null,null,null,null,null,null,null,null,null,null,null,null,"ndi",3,3]
["rain","half","music","science",null,null,null,null,null,null,null,null,null,null,null,null,null,null,null,null,null,null,null,"nds",3,3]
["rule","nature","including","rule",null,null,null,null,null,null,null,null,null,null,null,null,null,null,null,null,null,null,null,"ne",2,2]
["govern","hold","consider","govern",null,null,null,null,null,null,null,null,null,null,null,null,null,null,null,null,null,null,null,"near",3,4]
["pull","live","appear","pull",null,null,null,null,null,null,null,null,null,null,null,null,null,null,null,null,null,null,null,"need",3,4]
["cold","available","actually","cold",null,null,null,null,null,null,null,null,null,null,null,null,null,null,null,null,null,null,null,"nes",3,3]
["notice","known","buy","notice",null,null,null,null,null,null,null,null,null,null,null,null,null,null,null,null,null,null,null,"never",3,5]
["voice","board","probably","voice",null,null,null,null,null,null,null,null,null,null,null,null,null,null,null,null,null,null,null,"new",2,3]
["unit","effect","human","fall",null,null,null,null,null,null,null,null,null,null,null,null,null,null,null,null,null,null,null,"next",3,4]
["power","already","wait","power",null,null,null,null,null,null,null,null,null,null,null,null,null,null,null,null,null,null,null,"ng",1,2]
["town","economic","serve","town",null,null,null,null,null,null,null,null,null,null,null,null,null,null,null,null,null,null,null,"ngt",2,3]
["fine","money","market","fine",null,null,null,null,null,null,null,null,null,null,null,null,null,null,null,null,null,null,null,"ni",2,2]
["certain","position","die","certain",null,null,null,null,null,null,null,null,null,null,null,null,null,null,null,null,null,null,null,"night",3,5]
["fly","believe","send","fly",null,null,null,null,null,null,null,null,null,null,null,null,null,null,null,null,null,null,null,"nin",2,3]
["fall","age","expect","unit",null,null,null,null,null,null,null,null,null,null,null,null,null,null,null,null,null,null,null,"no",2,2]
["lead","together","home","lead",null,null,null,null,null,null,null,null,null,null,null,null,null,null,null,null,null,null,null,"north",4,5]
["cry","shall","sense","cry",null,null,null,null,null,null,null,null,null,null,null,null,null,null,null,null,null,null,null,"not",3,3]
["dark",true,"build","dark",null,null,null,null,null,null,null,null,null,null,null,null,null,null,null,null,null,null,null,"note",4,4]
["machine","political","stay","machine",null,null,null,null,null,null,null,null,null,null,null,null,null,null,null,null,null,null,null,"nothing",4,7]
["note","court","fall","note",null,null,null,null,null,null,null,null,null,null,null,null,null,null,null,null,null,null,null,"now",2,3]
["wait","report","oh","wait",null,null,null,null,null,null,null,null,null,null,null,null,null,null,null,null,null,null,null,"ns",2,2]
["plan","level","nation","plan",null,null,null,null,null,null,null,null,null,null,null,null,null,null,null,null,null,null,null,"nt",2,2]
["figure","rate","plan","figure",null,null,null,null,null,null,null,null,null,null,null,null,null,null,null,null,null,null,null,"nta",2,3]
["star","air","cut","star",null,null,null,null,null,null,null,null,null,null,null,null,null,null,null,null,null,null,null,"nte",3,3]
["box","pay","college","box",null,null,null,null,null,null,null,null,null,null,null,null,null,null,null,null,null,null,null,"nth",2,3]
["noun","community","interest","noun",null,null,null,null,null,null,null,null,null,null,null,null,null,null,null,null,null,null,null,"nti",3,3]
["field","complete","death","field",null,null,null,null,null,null,null,null,null,null,null,null,null,null,null,null,null,null,null,"nto",3,3]
["rest","music","course","rest",null,null,null,null,null,null,null,null,null,null,null,null,null,null,null,null,null,null,null,"nts",3,3]
["correct","necessary","someone","correct",null,null,null,null,null,null,null,null,null,null,null,null,null,null,null,null,null,null,null,"number",3,6]
["able","society","experience","able",null,null,null,null,null,null,null,null,null,null,null,null,null,null,null,null,null,null,null,"oc",1,2]
["pound","behind","behind","pound",null,null,null,null,null,null,null,null,null,null,null,null,null,null,null,null,null,null,null,"od",2,2]
["done","type","reach","done",null,null,null,null,null,null,null,null,null,null,null,null,null,null,null,null,null,null,null,"of",1,2]
["beauty","read","local","beauty",null,null,null,null,null,null,null,null,null,null,null,null,null,null,null,null,null,null,null,"off",1,3]
["drive","idea","kill","drive",null,null,null,null,null,null,null,null,null,null,null,null,null,null,null,null,null,null,null,"oft",2,3]
["stood","wanted","six","stood",null,null,null,null,null,null,null,null,null,null,null,null,null,null,null,null,null,null,null,"often",4,5]
["contain","land","remain","contain",null,null,null,null,null,null,null,null,null,null,null,null,null,null,null,null,null,null,null,"oh",1,2]
["front","party","effect","front",null,null,null,null,null,null,null,null,null,null,null,null,null,null,null,null,null,null,null,"ol",1,2]
["teach","class","use","teach",null,null,null,null,null,null,null,null,null,null,null,null,null,null,null,null,null,null,null,"old",2,3]
["week","organize","yeah","week",null,null,null,null,null,null,null,null,null,null,null,null,null,null,null,null,null,null,null,"om",1,2]
["final","return","suggest","final",null,null,null,null,null,null,null,null,null,null,null,null,null,null,null,null,null,null,null,"ome",2,3]
["gave","department","class","gave",null,null,null,null,null,null,null,null,null,null,null,null,null,null,null,null,null,null,null,"omm",1,3]
["green","education","control","green",null,null,null,null,null,null,null,null,null,null,null,null,null,null,null,null,null,null,null,"omp",1,3]
["oh","following","raise","oh",null,null,null,null,null,null,null,null,null,null,null,null,null,null,null,null,null,null,null,"on",2,2]
["quick","mother","care","quick",null,null,null,null,null,null,null,null,null,null,null,null,null,null,null,null,null,null,null,"ona",2,3]
["develop","sound","perhaps","develop",null,null,null,null,null,null,null,null,null,null,null,null,null,null,null,null,null,null,null,"once",3,4]
["ocean","ago","little","sleep",null,null,null,null,null,null,null,null,null,null,null,null,null,null,null,null,null,null,null,"one",3,3]
["warm","nation","late","warm",null,null,null,null,null,null,null,null,null,null,null,null,null,null,null,null,null,null,null,"only",2,4]
["free","voice","hard","free",null,null,null,null,null,null,null,null,null,null,null,null,null,null,null,null,null,null,null,"ons",3,3]
["minute","six","field","minute",null,null,null,null,null,null,null,null,null,null,null,null,null,null,null,null,null,null,null,"ont",3,3]
["strong","bring","else","strong",null,null,null,null,null,null,null,null,null,null,null,null,null,null,null,null,null,null,null,"oo",1,2]
["special","wife","pass","special",null,null,null,null,null,null,null,null,null,null,null,null,null,null,null,null,null,null,null,"op",1,2]
["mind","common","former","mind",null,null,null,null,null,null,null,null,null,null,null,null,null,null,null,null,null,null,null,"open",3,4]
["behind","south","sell","behind",null,null,null,null,null,null,null,null,null,null,null,null,null,null,null,null,null,null,null,"or",2,2]
["clear","strong","major","clear",null,null,null,null,null,null,null,null,null,null,null,null,null,null,null,null,null,null,null,"ord",3,3]
["tail","town","sometimes","tail",null,null,null,null,null,null,null,null,null,null,null,null,null,null,null,null,null,null,null,"order",4,5]
["produce","book","require","produce",null,null,null,null,null,null,null,null,null,null,null,null,null,null,null,null,null,null,null,"ore",{"$f":"IF(ISNUMBER(FIND(\"e\",X449)),1,0)+IF(ISNUMBER(FIND(\"n\",X449)),1,0)+IF(ISNUMBER(FIND(\"t\",X449)),1,0)+IF(ISNUMBER(FIND(\"o\",X449)),1,0)+IF(ISNUMBER(FIND(\"r\",X449)),1,0)+IF(ISNUMBER(FIND(\"s\",X449)),1,0)+IF(ISNUMBER(FIND(\"d\",X449)),1,0)+IF(ISNUMBER(FIND(\"i\",X449)),1,0)","v":3},{"$f":"LEN(X449)","v":3}]
["fact","students","along","fact",null,null,null,null,null,null,null,null,null,null,null,null,null,null,null,null,null,null,null,"ori",3,3]
["street","hear","development","street",null,null,null,null,null,null,null,null,null,null,null,null,null,null,null,null,null,null,null,"orm",2,3]
["inch","hope","themselves","inch",null,null,null,null,null,null,null,null,null,null,null,null,null,null,null,null,null,null,null,"ort",3,3]
["multiply","able","report","lot",null,null,null,null,null,null,null,null,null,null,null,null,null,null,null,null,null,null,null,"os",2,2]
["nothing","industry","role","nothing",null,null,null,null,null,null,null,null,null,null,null,null,null,null,null,null,null,null,null,"ost",3,3]
["course","stand","better","course",null,null,null,null,null,null,null,null,null,null,null,null,null,null,null,null,null,null,null,"ot",2,2]
["stay","tax","economic","stay",null,null,null,null,null,null,null,null,null,null,null,null,null,null,null,null,null,null,null,"oth",2,3]
["wheel","west","effort","wheel",null,null,null,null,null,null,null,null,null,null,null,null,null,null,null,null,null,null,null,"other",4,5]
["full","meet","up","full",null,null,null,null,null,null,null,null,null,null,null,null,null,null,null,null,null,null,null,"ou",1,2]
["force","particular","decide","force",null,null,null,null,null,null,null,null,null,null,null,null,null,null,null,null,null,null,null,"oun",2,3]
["blue","cut","rate","blue",null,null,null,null,null,null,null,null,null,null,null,null,null,null,null,null,null,null,null,"our",2,3]
["object","short","strong","object",null,null,null,null,null,null,null,null,null,null,null,null,null,null,null,null,null,null,null,"out",2,3]
["decide","stood","possible","decide",null,null,null,null,null,null,null,null,null,null,null,null,null,null,null,null,null,null,null,"ov",1,2]
["surface","university","heart","surface",null,null,null,null,null,null,null,null,null,null,null,null,null,null,null,null,null,null,null,"ove",2,3]
["deep","spirit","drug","deep",null,null,null,null,null,null,null,null,null,null,null,null,null,null,null,null,null,null,null,"over",3,4]
["moon","start","show","moon",null,null,null,null,null,null,null,null,null,null,null,null,null,null,null,null,null,null,null,"ow",1,2]
["island","total","leader","island",null,null,null,null,null,null,null,null,null,null,null,null,null,null,null,null,null,null,null,"own",2,3]
["foot","future","light","foot",null,null,null,null,null,null,null,null,null,null,null,null,null,null,null,null,null,null,null,"pa",0,2]
["system","front","voice","yet",null,null,null,null,null,null,null,null,null,null,null,null,null,null,null,null,null,null,null,"paper",2,5]
["busy","low","wife","busy",null,null,null,null,null,null,null,null,null,null,null,null,null,null,null,null,null,null,null,"par",1,3]
["test","century","whole","test",null,null,null,null,null,null,null,null,null,null,null,null,null,null,null,null,null,null,null,"part",2,4]
["record","washington","police","record",null,null,null,null,null,null,null,null,null,null,null,null,null,null,null,null,null,null,null,"pass",1,4]
["boat","usually","mind","boat",null,null,null,null,null,null,null,null,null,null,null,null,null,null,null,null,null,null,null,"pe",1,2]
["common","care","finally","common",null,null,null,null,null,null,null,null,null,null,null,null,null,null,null,null,null,null,null,"people",2,6]
["gold","recent","pull","gold",null,null,null,null,null,null,null,null,null,null,null,null,null,null,null,null,null,null,null,"per",2,3]
["possible","evidence","return","possible",null,null,null,null,null,null,null,null,null,null,null,null,null,null,null,null,null,null,null,"perhaps",3,7]
["plane","further","free","plane",null,null,null,null,null,null,null,null,null,null,null,null,null,null,null,null,null,null,null,"person",5,6]
["stead","million","military","age",null,null,null,null,null,null,null,null,null,null,null,null,null,null,null,null,null,null,null,"piece",2,5]
["dry","simple","price","dry",null,null,null,null,null,null,null,null,null,null,null,null,null,null,null,null,null,null,null,"pl",0,2]
["wonder","road","report","wonder",null,null,null,null,null,null,null,null,null,null,null,null,null,null,null,null,null,null,null,"pla",0,3]
["laugh","sometimes","less","laugh",null,null,null,null,null,null,null,null,null,null,null,null,null,null,null,null,null,null,null,"place",1,5]
["thousand","support","according","thousand",null,null,null,null,null,null,null,null,null,null,null,null,null,null,null,null,null,null,null,"plan",1,4]
["ago","view","decision","ago",null,null,null,null,null,null,null,null,null,null,null,null,null,null,null,null,null,null,null,"plant",2,5]
["ran","fire","explain","ran",null,null,null,null,null,null,null,null,null,null,null,null,null,null,null,null,null,null,null,"play",0,4]
["check","says","son","check",null,null,null,null,null,null,null,null,null,null,null,null,null,null,null,null,null,null,null,"ple",1,3]
["game","hard","hope","game",null,null,null,null,null,null,null,null,null,null,null,null,null,null,null,null,null,null,null,"po",1,2]
["shape","morning","even","shape",null,null,null,null,null,null,null,null,null,null,null,null,null,null,null,null,null,null,null,"point",4,5]
["equate","table","develop","yes",null,null,null,null,null,null,null,null,null,null,null,null,null,null,null,null,null,null,null,"por",2,3]
["miss","left","view","hot",null,null,null,null,null,null,null,null,null,null,null,null,null,null,null,null,null,null,null,"pos",2,3]
["brought","situation","relationship","miss",null,null,null,null,null,null,null,null,null,null,null,null,null,null,null,null,null,null,null,"power",3,5]
["heat","try","carry","brought",null,null,null,null,null,null,null,null,null,null,null,null,null,null,null,null,null,null,null,"pr",1,2]
["snow","outside","town","heat",null,null,null,null,null,null,null,null,null,null,null,null,null,null,null,null,null,null,null,"pre",2,3]
["tire","lines","road","snow",null,null,null,null,null,null,null,null,null,null,null,null,null,null,null,null,null,null,null,"pri",2,3]
["bring","surface","drive","bed",null,null,null,null,null,null,null,null,null,null,null,null,null,null,null,null,null,null,null,"pro",2,3]
["yes","ask","arm","bring",null,null,null,null,null,null,null,null,null,null,null,null,null,null,null,null,null,null,null,"problem",3,7]
["distant","modern",true,"sit",null,null,null,null,null,null,null,null,null,null,null,null,null,null,null,null,null,null,null,"proper",3,6]
["fill","top","federal","perhaps",null,null,null,null,null,null,null,null,null,null,null,null,null,null,null,null,null,null,null,"propose",4,7]
["east","peace","break","fill",null,null,null,null,null,null,null,null,null,null,null,null,null,null,null,null,null,null,null,"put",1,3]
["paint","personal","better","east",null,null,null,null,null,null,null,null,null,null,null,null,null,null,null,null,null,null,null,"ra",1,2]
["language","member","difference","weight",null,null,null,null,null,null,null,null,null,null,null,null,null,null,null,null,null,null,null,"ran",2,3]
["among","minutes","thank","language",null,null,null,null,null,null,null,null,null,null,null,null,null,null,null,null,null,null,null,"rat",2,3]
["grand","lead","receive","among",null,null,null,null,null,null,null,null,null,null,null,null,null,null,null,null,null,null,null,"rc",1,2]
["ball","schools","value",null,null,null,null,null,null,null,null,null,null,null,null,null,null,null,null,null,null,null,null,"rch",1,3]
["yet","talk","international",null,null,null,null,null,null,null,null,null,null,null,null,null,null,null,null,null,null,null,null,"rd",2,2]
["wave","consider","building",null,null,null,null,null,null,null,null,null,null,null,null,null,null,null,null,null,null,null,null,"re",2,2]
["drop","gone","action",null,null,null,null,null,null,null,null,null,null,null,null,null,null,null,null,null,null,null,null,"rea",2,3]
["heart","soon","full",null,null,null,null,null,null,null,null,null,null,null,null,null,null,null,null,null,null,null,null,"reach",2,5]
["am","father","model",null,null,null,null,null,null,null,null,null,null,null,null,null,null,null,null,null,null,null,null,"read",3,4]
["present","ground","join",null,null,null,null,null,null,null,null,null,null,null,null,null,null,null,null,null,null,null,null,"ready",3,5]
["heavy","living","season",null,null,null,null,null,null,null,null,null,null,null,null,null,null,null,null,null,null,null,null,"real",2,4]
["dance","months","society",null,null,null,null,null,null,null,null,null,null,null,null,null,null,null,null,null,null,null,null,"rec",2,3]
["engine","therefore","because",null,null,null,null,null,null,null,null,null,null,null,null,null,null,null,null,null,null,null,null,"record",4,6]
["position","america","tax",null,null,null,null,null,null,null,null,null,null,null,null,null,null,null,null,null,null,null,null,"red",3,3]
["arm","started","director",null,null,null,null,null,null,null,null,null,null,null,null,null,null,null,null,null,null,null,null,"ree",{"$f":"IF(ISNUMBER(FIND(\"e\",X513)),1,0)+IF(ISNUMBER(FIND(\"n\",X513)),1,0)+IF(ISNUMBER(FIND(\"t\",X513)),1,0)+IF(ISNUMBER(FIND(\"o\",X513)),1,0)+IF(ISNUMBER(FIND(\"r\",X513)),1,0)+IF(ISNUMBER(FIND(\"s\",X513)),1,0)+IF(ISNUMBER(FIND(\"d\",X513)),1,0)+IF(ISNUMBER(FIND(\"i\",X513)),1,0)","v":2},{"$f":"LEN(X513)","v":3}]
["wide","longer","early",null,null,null,null,null,null,null,null,null,null,null,null,null,null,null,null,null,null,null,null,"ren",3,3]
["sail","dr","position",null,null,null,null,null,null,null,null,null,null,null,null,null,null,null,null,null,null,null,null,"res",3,3]
["material","dark","player",null,null,null,null,null,null,null,null,null,null,null,null,null,null,null,null,null,null,null,null,"rest",4,4]
["size","various","agree",null,null,null,null,null,null,null,null,null,null,null,null,null,null,null,null,null,null,null,null,"ri",2,2]
["vary","finally","especially",null,null,null,null,null,null,null,null,null,null,null,null,null,null,null,null,null,null,null,null,"ric",2,3]
["settle","hour","record",null,null,null,null,null,null,null,null,null,null,null,null,null,null,null,null,null,null,null,null,"rie",3,3]
["speak","north","pick",null,null,null,null,null,null,null,null,null,null,null,null,null,null,null,null,null,null,null,null,"right",3,5]
["weight","third","wear",null,null,null,null,null,null,null,null,null,null,null,null,null,null,null,null,null,null,null,null,"rin",3,3]
["general","fall","paper",null,null,null,null,null,null,null,null,null,null,null,null,null,null,null,null,null,null,null,null,"rm",1,2]
["ice","greater","special",null,null,null,null,null,null,null,null,null,null,null,null,null,null,null,null,null,null,null,null,"rma",1,3]
["matter","pressure","space",null,null,null,null,null,null,null,null,null,null,null,null,null,null,null,null,null,null,null,null,"rn",2,2]
["circle","stage","ground",null,null,null,null,null,null,null,null,null,null,null,null,null,null,null,null,null,null,null,null,"ro",2,2]
["pair","expected","form",null,null,null,null,null,null,null,null,null,null,null,null,null,null,null,null,null,null,null,null,"road",3,4]
["include","secretary","support",null,null,null,null,null,null,null,null,null,null,null,null,null,null,null,null,null,null,null,null,"rom",2,3]
["divide","needed","event",null,null,null,null,null,null,null,null,null,null,null,null,null,null,null,null,null,null,null,null,"room",2,4]
["syllable","that's","official",null,null,null,null,null,null,null,null,null,null,null,null,null,null,null,null,null,null,null,null,"rs",2,2]
["felt","kept","whose",null,null,null,null,null,null,null,null,null,null,null,null,null,null,null,null,null,null,null,null,"rt",2,2]
["perhaps","eye","matter",null,null,null,null,null,null,null,null,null,null,null,null,null,null,null,null,null,null,null,null,"rth",2,3]
["pick","values","everyone",null,null,null,null,null,null,null,null,null,null,null,null,null,null,null,null,null,null,null,null,"run",2,3]
["sudden","union","center",null,null,null,null,null,null,null,null,null,null,null,null,null,null,null,null,null,null,null,null,"ry",1,2]
["count","private","couple",null,null,null,null,null,null,null,null,null,null,null,null,null,null,null,null,null,null,null,null,"sa",1,2]
["square","alone","site",null,null,null,null,null,null,null,null,null,null,null,null,null,null,null,null,null,null,null,null,"same",2,4]
["reason","black","end",null,null,null,null,null,null,null,null,null,null,null,null,null,null,null,null,null,null,null,null,"san",2,3]
["length","required","project",null,null,null,null,null,null,null,null,null,null,null,null,null,null,null,null,null,null,null,null,"say",1,3]
["represent","space","hit",null,null,null,null,null,null,null,null,null,null,null,null,null,null,null,null,null,null,null,null,"sc",1,2]
["art","subject","base",null,null,null,null,null,null,null,null,null,null,null,null,null,null,null,null,null,null,null,null,"school",2,6]
["subject","english","activity",null,null,null,null,null,null,null,null,null,null,null,null,null,null,null,null,null,null,null,null,"se",2,2]
["region","month","star",null,null,null,null,null,null,null,null,null,null,null,null,null,null,null,null,null,null,null,null,"sea",2,3]
["energy","understand","table",null,null,null,null,null,null,null,null,null,null,null,null,null,null,null,null,null,null,null,null,"second",5,6]
["hunt","i'll","need",null,null,null,null,null,null,null,null,null,null,null,null,null,null,null,null,null,null,null,null,"section",6,7]
["probable","nor","court",null,null,null,null,null,null,null,null,null,null,null,null,null,null,null,null,null,null,null,null,"see",2,3]
["bed","answer","produce",null,null,null,null,null,null,null,null,null,null,null,null,null,null,null,null,null,null,null,null,"seem",2,4]
["brother","moved","eat",null,null,null,null,null,null,null,null,null,null,null,null,null,null,null,null,null,null,null,null,"ser",3,3]
["egg","amount","american",null,null,null,null,null,null,null,null,null,null,null,null,null,null,null,null,null,null,null,null,"serve",3,5]
["ride","conditions","teach",null,null,null,null,null,null,null,null,null,null,null,null,null,null,null,null,null,null,null,null,"set",3,3]
["cell","direct","oil",null,null,null,null,null,null,null,null,null,null,null,null,null,null,null,null,null,null,null,null,"several",3,7]
["believe","red","half",null,null,null,null,null,null,null,null,null,null,null,null,null,null,null,null,null,null,null,null,"sh",1,2]
["fraction","student","situation",null,null,null,null,null,null,null,null,null,null,null,null,null,null,null,null,null,null,null,null,"shall",1,5]
["forest","rest","easy",null,null,null,null,null,null,null,null,null,null,null,null,null,null,null,null,null,null,null,null,"she",2,3]
["sit","nations","cost",null,null,null,null,null,null,null,null,null,null,null,null,null,null,null,null,null,null,null,null,"sho",2,3]
["race","heart","industry",null,null,null,null,null,null,null,null,null,null,null,null,null,null,null,null,null,null,null,null,"short",4,5]
["window","costs","figure",null,null,null,null,null,null,null,null,null,null,null,null,null,null,null,null,null,null,null,null,"should",3,6]
["store","record","face",null,null,null,null,null,null,null,null,null,null,null,null,null,null,null,null,null,null,null,null,"show",2,4]
["summer","picture","street",null,null,null,null,null,null,null,null,null,null,null,null,null,null,null,null,null,null,null,null,"si",2,2]
["train","taking","image",null,null,null,null,null,null,null,null,null,null,null,null,null,null,null,null,null,null,null,null,"side",4,4]
["sleep","couldn't","itself",null,null,null,null,null,null,null,null,null,null,null,null,null,null,null,null,null,null,null,null,"simple",3,6]
["prove","hours","phone",null,null,null,null,null,null,null,null,null,null,null,null,null,null,null,null,null,null,null,null,"sin",3,3]
["lone","deal","either",null,null,null,null,null,null,null,null,null,null,null,null,null,null,null,null,null,null,null,null,"since",4,5]
["leg","forces","data",null,null,null,null,null,null,null,null,null,null,null,null,null,null,null,null,null,null,null,null,"sit",3,3]
["exercise","everything","cover",null,null,null,null,null,null,null,null,null,null,null,null,null,null,null,null,null,null,null,null,"six",2,3]
["wall","write","quite",null,null,null,null,null,null,null,null,null,null,null,null,null,null,null,null,null,null,null,null,"size",3,4]
["catch","coming","picture",null,null,null,null,null,null,null,null,null,null,null,null,null,null,null,null,null,null,null,null,"small",1,5]
["mount","effort","clear",null,null,null,null,null,null,null,null,null,null,null,null,null,null,null,null,null,null,null,null,"so",2,2]
["wish","market","practice",null,null,null,null,null,null,null,null,null,null,null,null,null,null,null,null,null,null,null,null,"sof",2,3]
["sky","island","piece",null,null,null,null,null,null,null,null,null,null,null,null,null,null,null,null,null,null,null,null,"some",3,4]
["board","wall","land",null,null,null,null,null,null,null,null,null,null,null,null,null,null,null,null,null,null,null,null,"son",3,3]
["joy","purpose","recent",null,null,null,null,null,null,null,null,null,null,null,null,null,null,null,null,null,null,null,null,"soon",3,4]
["winter","basis","describe",null,null,null,null,null,null,null,null,null,null,null,null,null,null,null,null,null,null,null,null,"sound",4,5]
["sat","east","product",null,null,null,null,null,null,null,null,null,null,null,null,null,null,null,null,null,null,null,null,"south",3,5]
["written","lost","doctor",null,null,null,null,null,null,null,null,null,null,null,null,null,null,null,null,null,null,null,null,"sp",1,2]
["wild","st","wall",null,null,null,null,null,null,null,null,null,null,null,null,null,null,null,null,null,null,null,null,"special",3,7]
["instrument","except","patient",null,null,null,null,null,null,null,null,null,null,null,null,null,null,null,null,null,null,null,null,"ss",1,2]
["kept","letter","worker",null,null,null,null,null,null,null,null,null,null,null,null,null,null,null,null,null,null,null,null,"ssi",2,3]
["glass","looking","news",null,null,null,null,null,null,null,null,null,null,null,null,null,null,null,null,null,null,null,null,"st",{"$f":"IF(ISNUMBER(FIND(\"e\",X577)),1,0)+IF(ISNUMBER(FIND(\"n\",X577)),1,0)+IF(ISNUMBER(FIND(\"t\",X577)),1,0)+IF(ISNUMBER(FIND(\"o\",X577)),1,0)+IF(ISNUMBER(FIND(\"r\",X577)),1,0)+IF(ISNUMBER(FIND(\"s\",X577)),1,0)+IF(ISNUMBER(FIND(\"d\",X577)),1,0)+IF(ISNUMBER(FIND(\"i\",X577)),1,0)","v":2},{"$f":"LEN(X577)","v":2}]
["grass","property","test",null,null,null,null,null,null,null,null,null,null,null,null,null,null,null,null,null,null,null,null,"sta",2,3]
["cow","miles","movie",null,null,null,null,null,null,null,null,null,null,null,null,null,null,null,null,null,null,null,null,"stand",4,5]
["job","difference","certain",null,null,null,null,null,null,null,null,null,null,null,null,null,null,null,null,null,null,null,null,"start",3,5]
["edge","entire","north",null,null,null,null,null,null,null,null,null,null,null,null,null,null,null,null,null,null,null,null,"state",3,5]
["sign","else","love",null,null,null,null,null,null,null,null,null,null,null,null,null,null,null,null,null,null,null,null,"stay",2,4]
["visit","color","personal",null,null,null,null,null,null,null,null,null,null,null,null,null,null,null,null,null,null,null,null,"ste",3,3]
["past","followed","open",null,null,null,null,null,null,null,null,null,null,null,null,null,null,null,null,null,null,null,null,"step",3,4]
["soft","feeling","support",null,null,null,null,null,null,null,null,null,null,null,null,null,null,null,null,null,null,null,null,"sth",2,3]
["fun","son","simply",null,null,null,null,null,null,null,null,null,null,null,null,null,null,null,null,null,null,null,null,"sti",3,3]
["bright","makes","third",null,null,null,null,null,null,null,null,null,null,null,null,null,null,null,null,null,null,null,null,"still",3,5]
["gas","friend","technology",null,null,null,null,null,null,null,null,null,null,null,null,null,null,null,null,null,null,null,null,"sto",3,3]
["weather","basic","catch",null,null,null,null,null,null,null,null,null,null,null,null,null,null,null,null,null,null,null,null,"stop",3,4]
["month","cold","step",null,null,null,null,null,null,null,null,null,null,null,null,null,null,null,null,null,null,null,null,"story",4,5]
["million","including","baby",null,null,null,null,null,null,null,null,null,null,null,null,null,null,null,null,null,null,null,null,"str",3,3]
["bear","single","computer",null,null,null,null,null,null,null,null,null,null,null,null,null,null,null,null,null,null,null,null,"strong",5,6]
["finish","attention","type",null,null,null,null,null,null,null,null,null,null,null,null,null,null,null,null,null,null,null,null,"study",3,5]
["happy","note","attention",null,null,null,null,null,null,null,null,null,null,null,null,null,null,null,null,null,null,null,null,"su",1,2]
["hope","cause","draw",null,null,null,null,null,null,null,null,null,null,null,null,null,null,null,null,null,null,null,null,"such",1,4]
["flower","hundred","film",null,null,null,null,null,null,null,null,null,null,null,null,null,null,null,null,null,null,null,null,"suppose",3,7]
["clothe","step","republican",null,null,null,null,null,null,null,null,null,null,null,null,null,null,null,null,null,null,null,null,"sure",3,4]
["strange","paper","tree",null,null,null,null,null,null,null,null,null,null,null,null,null,null,null,null,null,null,null,null,"system",3,6]
["gone","developed","source",null,null,null,null,null,null,null,null,null,null,null,null,null,null,null,null,null,null,null,null,"ta",1,2]
["jump","tried","red",null,null,null,null,null,null,null,null,null,null,null,null,null,null,null,null,null,null,null,null,"table",2,5]
["baby","simply","nearly",null,null,null,null,null,null,null,null,null,null,null,null,null,null,null,null,null,null,null,null,"take",2,4]
["eight","can't","organization",null,null,null,null,null,null,null,null,null,null,null,null,null,null,null,null,null,null,null,null,"tal",1,3]
["village","story","choose",null,null,null,null,null,null,null,null,null,null,null,null,null,null,null,null,null,null,null,null,"talk",1,4]
["meet","committee","cause",null,null,null,null,null,null,null,null,null,null,null,null,null,null,null,null,null,null,null,null,"tan",2,3]
["root","inside","hair",null,null,null,null,null,null,null,null,null,null,null,null,null,null,null,null,null,null,null,null,"tat",1,3]
["buy","reached","look",null,null,null,null,null,null,null,null,null,null,null,null,null,null,null,null,null,null,null,null,"te",2,2]
["raise","easy","point",null,null,null,null,null,null,null,null,null,null,null,null,null,null,null,null,null,null,null,null,"ted",3,3]
["solve","appear","century",null,null,null,null,null,null,null,null,null,null,null,null,null,null,null,null,null,null,null,null,"tell",2,4]
["metal","include","evidence",null,null,null,null,null,null,null,null,null,null,null,null,null,null,null,null,null,null,null,null,"tem",2,3]
["whether","accord","window",null,null,null,null,null,null,null,null,null,null,null,null,null,null,null,null,null,null,null,null,"ten",3,3]
["push","actually","difficult",null,null,null,null,null,null,null,null,null,null,null,null,null,null,null,null,null,null,null,null,"ter",3,3]
["seven","remember","listen",null,null,null,null,null,null,null,null,null,null,null,null,null,null,null,null,null,null,null,null,"tes",3,3]
["paragraph","beyond","soon",null,null,null,null,null,null,null,null,null,null,null,null,null,null,null,null,null,null,null,null,"test",3,4]
["third","dead","culture",null,null,null,null,null,null,null,null,null,null,null,null,null,null,null,null,null,null,null,null,"th",1,2]
["shall","shown","billion",null,null,null,null,null,null,null,null,null,null,null,null,null,null,null,null,null,null,null,null,"tha",1,3]
["held","fine","chance",null,null,null,null,null,null,null,null,null,null,null,null,null,null,null,null,null,null,null,null,"than",2,4]
["hair","religious","brother",null,null,null,null,null,null,null,null,null,null,null,null,null,null,null,null,null,null,null,null,"that",1,4]
["describe","continue","energy",null,null,null,null,null,null,null,null,null,null,null,null,null,null,null,null,null,null,null,null,"the",2,3]
["cook","ten","period",null,null,null,null,null,null,null,null,null,null,null,null,null,null,null,null,null,null,null,null,"their",4,5]
["floor","defense","course",null,null,null,null,null,null,null,null,null,null,null,null,null,null,null,null,null,null,null,null,"them",2,4]
["either","getting","summer",null,null,null,null,null,null,null,null,null,null,null,null,null,null,null,null,null,null,null,null,"then",3,4]
["result","central","less",null,null,null,null,null,null,null,null,null,null,null,null,null,null,null,null,null,null,null,null,"there",3,5]
["burn","beginning","realize",null,null,null,null,null,null,null,null,null,null,null,null,null,null,null,null,null,null,null,null,"these",3,5]
["hill","instead","hundred",null,null,null,null,null,null,null,null,null,null,null,null,null,null,null,null,null,null,null,null,"they",2,4]
["safe","river","available",null,null,null,null,null,null,null,null,null,null,null,null,null,null,null,null,null,null,null,null,"thi",2,3]
["cat","received","plant",null,null,null,null,null,null,null,null,null,null,null,null,null,null,null,null,null,null,null,null,"thing",3,5]
["century","doing","likely",null,null,null,null,null,null,null,null,null,null,null,null,null,null,null,null,null,null,null,null,"think",3,5]
["consider","employ","opportunity",null,null,null,null,null,null,null,null,null,null,null,null,null,null,null,null,null,null,null,null,"this",3,4]
["type","trade","term",null,null,null,null,null,null,null,null,null,null,null,null,null,null,null,null,null,null,null,null,"tho",2,3]
["law","terms","short",null,null,null,null,null,null,null,null,null,null,null,null,null,null,null,null,null,null,null,null,"those",4,5]
["bit","trying","letter",null,null,null,null,null,null,null,null,null,null,null,null,null,null,null,null,null,null,null,null,"though",2,6]
["coast","friends","condition",null,null,null,null,null,null,null,null,null,null,null,null,null,null,null,null,null,null,null,null,"thought",2,7]
["copy","sort","choice",null,null,null,null,null,null,null,null,null,null,null,null,null,null,null,null,null,null,null,null,"three",3,5]
["phrase","administration","place",null,null,null,null,null,null,null,null,null,null,null,null,null,null,null,null,null,null,null,null,"through",3,7]
["silent","higher","single",null,null,null,null,null,null,null,null,null,null,null,null,null,null,null,null,null,null,null,null,"ti",2,2]
["tall","cent","rule",null,null,null,null,null,null,null,null,null,null,null,null,null,null,null,null,null,null,null,null,"tic",2,3]
["sand","expect","daughter",null,null,null,null,null,null,null,null,null,null,null,null,null,null,null,null,null,null,null,null,"time",3,4]
["soil","food","administration",null,null,null,null,null,null,null,null,null,null,null,null,null,null,null,null,null,null,null,null,"tin",3,3]
["roll","building","south",null,null,null,null,null,null,null,null,null,null,null,null,null,null,null,null,null,null,null,null,"tio",3,3]
["temperature","religion","husband",null,null,null,null,null,null,null,null,null,null,null,null,null,null,null,null,null,null,null,null,"to",2,2]
["finger","meeting","congress",null,null,null,null,null,null,null,null,null,null,null,null,null,null,null,null,null,null,null,null,"told",{"$f":"IF(ISNUMBER(FIND(\"e\",X641)),1,0)+IF(ISNUMBER(FIND(\"n\",X641)),1,0)+IF(ISNUMBER(FIND(\"t\",X641)),1,0)+IF(ISNUMBER(FIND(\"o\",X641)),1,0)+IF(ISNUMBER(FIND(\"r\",X641)),1,0)+IF(ISNUMBER(FIND(\"s\",X641)),1,0)+IF(ISNUMBER(FIND(\"d\",X641)),1,0)+IF(ISNUMBER(FIND(\"i\",X641)),1,0)","v":3},{"$f":"LEN(X641)","v":4}]
["industry","ready","floor",null,null,null,null,null,null,null,null,null,null,null,null,null,null,null,null,null,null,null,null,"too",2,3]
["value","walked","campaign",null,null,null,null,null,null,null,null,null,null,null,null,null,null,null,null,null,null,null,null,"top",2,3]
["fight","follow","material",null,null,null,null,null,null,null,null,null,null,null,null,null,null,null,null,null,null,null,null,"tor",3,3]
["lie","earth","population",null,null,null,null,null,null,null,null,null,null,null,null,null,null,null,null,null,null,null,null,"toward",4,6]
["beat","speak","well",null,null,null,null,null,null,null,null,null,null,null,null,null,null,null,null,null,null,null,null,"town",3,4]
["excite","passed","call",null,null,null,null,null,null,null,null,null,null,null,null,null,null,null,null,null,null,null,null,"tr",2,2]
["natural","foreign","economy",null,null,null,null,null,null,null,null,null,null,null,null,null,null,null,null,null,null,null,null,"tra",2,3]
["view","natural","medical",null,null,null,null,null,null,null,null,null,null,null,null,null,null,null,null,null,null,null,null,"try",2,3]
["sense","medical","hospital",null,null,null,null,null,null,null,null,null,null,null,null,null,null,null,null,null,null,null,null,"ts",2,2]
["ear","training","church",null,null,null,null,null,null,null,null,null,null,null,null,null,null,null,null,null,null,null,null,"tt",1,2]
["else","county","close",null,null,null,null,null,null,null,null,null,null,null,null,null,null,null,null,null,null,null,null,"tth",1,3]
["quite","list","thousand",null,null,null,null,null,null,null,null,null,null,null,null,null,null,null,null,null,null,null,null,"tu",1,2]
["broke","floor","risk",null,null,null,null,null,null,null,null,null,null,null,null,null,null,null,null,null,null,null,null,"tur",2,3]
["case","piece","current",null,null,null,null,null,null,null,null,null,null,null,null,null,null,null,null,null,null,null,null,"turn",3,4]
["middle","especially","fire",null,null,null,null,null,null,null,null,null,null,null,null,null,null,null,null,null,null,null,null,"two",2,3]
["kill","indeed","future",null,null,null,null,null,null,null,null,null,null,null,null,null,null,null,null,null,null,null,null,"ty",1,2]
["son","stop","wrong",null,null,null,null,null,null,null,null,null,null,null,null,null,null,null,null,null,null,null,null,"uc",0,2]
["lake","wasn't","involve",null,null,null,null,null,null,null,null,null,null,null,null,null,null,null,null,null,null,null,null,"ul",0,2]
["moment","england","defense",null,null,null,null,null,null,null,null,null,null,null,null,null,null,null,null,null,null,null,null,"um",0,2]
["scale","difficult","anyone",null,null,null,null,null,null,null,null,null,null,null,null,null,null,null,null,null,null,null,null,"un",1,2]
["loud","likely","increase",null,null,null,null,null,null,null,null,null,null,null,null,null,null,null,null,null,null,null,null,"und",2,3]
["spring","suddenly","security",null,null,null,null,null,null,null,null,null,null,null,null,null,null,null,null,null,null,null,null,"under",4,5]
["observe","moral","bank",null,null,null,null,null,null,null,null,null,null,null,null,null,null,null,null,null,null,null,null,"unit",3,4]
["child","plant","myself",null,null,null,null,null,null,null,null,null,null,null,null,null,null,null,null,null,null,null,null,"until",3,5]
["straight","bad","certainly",null,null,null,null,null,null,null,null,null,null,null,null,null,null,null,null,null,null,null,null,"up",0,2]
["consonant","club","west",null,null,null,null,null,null,null,null,null,null,null,null,null,null,null,null,null,null,null,null,"ur",1,2]
["nation","needs","sport",null,null,null,null,null,null,null,null,null,null,null,null,null,null,null,null,null,null,null,null,"ure",2,3]
["dictionary","international","board",null,null,null,null,null,null,null,null,null,null,null,null,null,null,null,null,null,null,null,null,"us",1,2]
["milk","working","seek",null,null,null,null,null,null,null,null,null,null,null,null,null,null,null,null,null,null,null,null,"use",2,3]
["speed","countries","per",null,null,null,null,null,null,null,null,null,null,null,null,null,null,null,null,null,null,null,null,"ust",2,3]
["method","develop","subject",null,null,null,null,null,null,null,null,null,null,null,null,null,null,null,null,null,null,null,null,"ut",1,2]
["organ","drive","officer",null,null,null,null,null,null,null,null,null,null,null,null,null,null,null,null,null,null,null,null,"ve",1,2]
["pay","reach","private",null,null,null,null,null,null,null,null,null,null,null,null,null,null,null,null,null,null,null,null,"ver",2,3]
["age","police","rest",null,null,null,null,null,null,null,null,null,null,null,null,null,null,null,null,null,null,null,null,"very",2,4]
["section","sat","behavior",null,null,null,null,null,null,null,null,null,null,null,null,null,null,null,null,null,null,null,null,"vi",1,2]
["dress","charge","deal",null,null,null,null,null,null,null,null,null,null,null,null,null,null,null,null,null,null,null,null,"wait",2,4]
["cloud","farm","performance",null,null,null,null,null,null,null,null,null,null,null,null,null,null,null,null,null,null,null,null,"walk",0,4]
["surprise","fear","fight",null,null,null,null,null,null,null,null,null,null,null,null,null,null,null,null,null,null,null,null,"want",2,4]
["quiet","test","throw",null,null,null,null,null,null,null,null,null,null,null,null,null,null,null,null,null,null,null,null,"war",1,3]
["stone","determine","top",null,null,null,null,null,null,null,null,null,null,null,null,null,null,null,null,null,null,null,null,"was",1,3]
["tiny","hair","quickly",null,null,null,null,null,null,null,null,null,null,null,null,null,null,null,null,null,null,null,null,"watch",1,5]
["climb","results","past",null,null,null,null,null,null,null,null,null,null,null,null,null,null,null,null,null,null,null,null,"water",3,5]
["cool","stock","goal",null,null,null,null,null,null,null,null,null,null,null,null,null,null,null,null,null,null,null,null,"way",0,3]
["design","trouble","second",null,null,null,null,null,null,null,null,null,null,null,null,null,null,null,null,null,null,null,null,"we",1,2]
["poor","happened","bed",null,null,null,null,null,null,null,null,null,null,null,null,null,null,null,null,null,null,null,null,"week",1,4]
["lot","growth","order",null,null,null,null,null,null,null,null,null,null,null,null,null,null,null,null,null,null,null,null,"well",1,4]
["experiment","square","author",null,null,null,null,null,null,null,null,null,null,null,null,null,null,null,null,null,null,null,null,"went",3,4]
["bottom","william","fill",null,null,null,null,null,null,null,null,null,null,null,null,null,null,null,null,null,null,null,null,"were",2,4]
["key","cases","represent",null,null,null,null,null,null,null,null,null,null,null,null,null,null,null,null,null,null,null,null,"west",3,4]
["iron","effective","focus",null,null,null,null,null,null,null,null,null,null,null,null,null,null,null,null,null,null,null,null,"wh",0,2]
["single","serve","foreign",null,null,null,null,null,null,null,null,null,null,null,null,null,null,null,null,null,null,null,null,"what",1,4]
["stick","miss","drop",null,null,null,null,null,null,null,null,null,null,null,null,null,null,null,null,null,null,null,null,"when",2,4]
["flat","involved","plan",null,null,null,null,null,null,null,null,null,null,null,null,null,null,null,null,null,null,null,null,"where",2,5]
["twenty","doctor","blood",null,null,null,null,null,null,null,null,null,null,null,null,null,null,null,null,null,null,null,null,"whether",3,7]
["skin","earlier","upon",null,null,null,null,null,null,null,null,null,null,null,null,null,null,null,null,null,null,null,null,"which",1,5]
["smile","increased","agency",null,null,null,null,null,null,null,null,null,null,null,null,null,null,null,null,null,null,null,null,"while",2,5]
["crease","being","push",null,null,null,null,null,null,null,null,null,null,null,null,null,null,null,null,null,null,null,null,"white",3,5]
["hole","blue","nature",null,null,null,null,null,null,null,null,null,null,null,null,null,null,null,null,null,null,null,null,"who",1,3]
["trade","hall","color",null,null,null,null,null,null,null,null,null,null,null,null,null,null,null,null,null,null,null,null,"whole",2,5]
["melody","particularly","no",null,null,null,null,null,null,null,null,null,null,null,null,null,null,null,null,null,null,null,null,"why",0,3]
["trip","boys","recently",null,null,null,null,null,null,null,null,null,null,null,null,null,null,null,null,null,null,null,null,"wi",1,2]
["office","paid","store",null,null,null,null,null,null,null,null,null,null,null,null,null,null,null,null,null,null,null,null,"will",1,4]
["receive","sent","reduce",null,null,null,null,null,null,null,null,null,null,null,null,null,null,null,null,null,null,null,null,"wit",2,3]
["row","production","sound",null,null,null,null,null,null,null,null,null,null,null,null,null,null,null,null,null,null,null,null,"with",{"$f":"IF(ISNUMBER(FIND(\"e\",X705)),1,0)+IF(ISNUMBER(FIND(\"n\",X705)),1,0)+IF(ISNUMBER(FIND(\"t\",X705)),1,0)+IF(ISNUMBER(FIND(\"o\",X705)),1,0)+IF(ISNUMBER(FIND(\"r\",X705)),1,0)+IF(ISNUMBER(FIND(\"s\",X705)),1,0)+IF(ISNUMBER(FIND(\"d\",X705)),1,0)+IF(ISNUMBER(FIND(\"i\",X705)),1,0)","v":2},{"$f":"LEN(X705)","v":4}]
["mouth","district","note",null,null,null,null,null,null,null,null,null,null,null,null,null,null,null,null,null,null,null,null,"wo",1,2]
["exact","using","fine",null,null,null,null,null,null,null,null,null,null,null,null,null,null,null,null,null,null,null,null,"wor",2,3]
["symbol","thinking","before",null,null,null,null,null,null,null,null,null,null,null,null,null,null,null,null,null,null,null,null,"word",3,4]
["die","concern","near",null,null,null,null,null,null,null,null,null,null,null,null,null,null,null,null,null,null,null,null,"work",2,4]
["least","christian","movement",null,null,null,null,null,null,null,null,null,null,null,null,null,null,null,null,null,null,null,null,"would",2,5]
["trouble","press","page",null,null,null,null,null,null,null,null,null,null,null,null,null,null,null,null,null,null,null,null,"write",4,5]
["shout","girls","enter",null,null,null,null,null,null,null,null,null,null,null,null,null,null,null,null,null,null,null,null,"year",2,4]
["except","wide","share",null,null,null,null,null,null,null,null,null,null,null,null,null,null,null,null,null,null,null,null,"yes",2,3]
["wrote","usual","than",null,null,null,null,null,null,null,null,null,null,null,null,null,null,null,null,null,null,null,null,"yet",2,3]
["seed","direction","common",null,null,null,null,null,null,null,null,null,null,null,null,null,null,null,null,null,null,null,null,"yo",1,2]
["tone","feed","poor",null,null,null,null,null,null,null,null,null,null,null,null,null,null,null,null,null,null,null,null,"you",1,3]
["join","trial","other",null,null,null,null,null,null,null,null,null,null,null,null,null,null,null,null,null,null,null,null,"young",2,5]
["suggest","walk","natural",null,null,null,null,null,null,null,null,null,null,null,null,null,null,null,null,null,null,null,null,"your",2,4]
["clean","begin","race",null,null,null,null,null,null,null,null,null,null,null,null,null,null,null,null,null,null,null,null,"ys",1,2]
["break","weeks","concern"]
["lady","points","series"]
["yard","respect","significant"]
["rise","certainly","similar"]
["bad","ideas","hot"]
["blow","industrial","language"]
["oil","methods","each"]
["blood","operation","usually"]
["touch","addition","response"]
["grew","association","dead"]
["cent","combine","rise"]
["mix","knowledge","animal"]
["team","decided","factor"]
["wire","temperature","decade"]
["cost","statement","article"]
["lost","yes","shoot"]
["brown","below","east"]
["wear","game","save"]
["garden","nearly","seven"]
["equal","science","artist"]
["sent","directly","away"]
["choose","horse","scene"]
["fell","influence","stock"]
["fit","size","career"]
["flow","showed","despite"]
["fair","build","central"]
["bank","throughout","eight"]
["collect","questions","thus"]
["save","character","treatment"]
["control","foot","beyond"]
["decimal","kennedy","happy"]
["gentle","firm","exactly"]
["woman","reading","protect"]
["captain","husband","approach"]
["practice","doubt","lie"]
["separate","services","size"]
["difficult","according","dog"]
["doctor","lay","fund"]
["please","stay","serious"]
["protect","programs","occur"]
["noon","anyone","media"]
["whose","average","ready"]
["locate","french","sign"]
["ring","spring","thought"]
["character","former","list"]
["insect","summer","individual"]
["caught","bill","simple"]
["period","lot","quality"]
["indicate","chance","pressure"]
["radio","due","accept"]
["spoke","comes","answer"]
["atom","army","hard"]
["human","actual","resource"]
["history","southern","identify"]
["effect","neither","left"]
["electric","relate","meeting"]
["expect","rise","determine"]
["crop","evening","prepare"]
["modern","normal","disease"]
["element","wish","whatever"]
["hit","visit","success"]
["student","population","argue"]
["corner","remain","cup"]
["party","measure","particularly"]
["supply","merely","amount"]
["bone","arrange","ability"]
["rail","condition","staff"]
["imagine","decision","recognize"]
["provide","account","indicate"]
["agree","opportunity","character"]
["thus","pass","growth"]
["capital","demand","loss"]
["won't","strength","degree"]
["chair","window","wonder"]
["danger","active","attack"]
["fruit","deep","herself"]
["rich","degree","region"]
["thick","ran","television"]
["soldier","western","box"]
["process","e","tv"]
["operate","sales","training"]
["guess","continued","pretty"]
["necessary","fight","trade"]
["sharp","heavy","deal"]
["wing","arm","election"]
["create","standard","everybody"]
["neighbor","generally","physical"]
["wash","carry","lay"]
["bat","hot","general"]
["rather","provided","feeling"]
["crowd","serious","standard"]
["corn","led","bill"]
["compare","wait","message"]
["poem","hotel","fail"]
["string","opened","outside"]
["bell","performance","arrive"]
["depend","maybe","analysis"]
["meat","station","benefit"]
["rub","changes","name"]
["tube","literature","sex"]
["famous","marry","forward"]
["dollar","claim","lawyer"]
["stream","works","present"]
["fear","bed","section"]
["sight","wrong","environmental"]
["thin","main","glass"]
["triangle","unit","answer"]
["planet","george","skill"]
["hurry","hit","sister"]
["chief","planning","pm"]
["colony","supply","professor"]
["clock","systems","operation"]
["mine","add","financial"]
["tie","chief","crime"]
["enter","officer","stage"]
["major","soviet","ok"]
["fresh","pattern","compare"]
["search","stopped","authority"]
["send","price","miss"]
["yellow","success","design"]
["gun","lack","sort"]
["allow","myself","one"]
["print","truth","act"]
["dead","freedom","ten"]
["spot","manner","knowledge"]
["desert","quality","gun"]
["suit","gun","station"]
["current","manufacture","blue"]
["lift","clearly","state"]
["rose","share","strategy"]
["continue","movement","little"]
["block","length","clearly"]
["chart","ways","discuss"]
["hat","burn","indeed"]
["sell","forms","force"]
["success","organization","truth"]
["company","break","song"]
["subtract","somewhat","example"]
["event","efforts","democratic"]
["particular","cover","check"]
["deal","meaning","environment"]
["swim","progress","leg"]
["term","treatment","dark"]
["opposite","beautiful","public"]
["wife","placed","various"]
["shoe","happy","rather"]
["shoulder","attack","laugh"]
["spread","apparently","guess"]
["arrange","blood","executive"]
["camp","groups","set"]
["invent","carried","study"]
["cotton","sign","prove"]
["born","radio","hang"]
["determine","dance","entire"]
["quart","i've","rock"]
["nine","regard","design"]
["truck","man's","enough"]
["noise","train","forget"]
["level","herself","since"]
["chance","numbers","claim"]
["gather","corner","note"]
["shop","reaction","remove"]
["stretch","immediately","manager"]
["throw","language","help"]
["shine","running","close"]
["property","recently","sound"]
["column","shake","enjoy"]
["molecule","larger","network"]
["select","lower","legal"]
["wrong","machine","religious"]
["gray","attempt","cold"]
["repeat","learn","form"]
["require","couple","final"]
["broad","race","main"]
["prepare","audience","science"]
["salt","oh","green"]
["nose","middle","memory"]
["plural","brown","card"]
["anger","date","above"]
["claim","health","seat"]
["continent","persons","cell"]
["oxygen","understanding","establish"]
["sugar","arms","nice"]
["death","daily","trial"]
["pretty","suppose","expert"]
["skill","additional","that"]
["women","hospital","spring"]
["season","pool","firm"]
["solution","technical","democrat"]
["magnet","served","radio"]
["silver","declare","visit"]
["thank","described","management"]
["branch","current","care"]
["match","poor","avoid"]
["suffix","steps","imagine"]
["especially","reported","tonight"]
["fig","sun","huge"]
["afraid","based","ball"]
["huge","produce","no"]
["sister","determined","close"]
["steel","receive","finish"]
["discuss","park","yourself"]
["forward","staff","talk"]
["similar","faith","theory"]
["guide","responsibility","impact"]
["experience","europe","respond"]
["score","latter","statement"]
["apple","british","maintain"]
["bought","season","charge"]
["led","equal","popular"]
["pitch","learned","traditional"]
["coat","practice","onto"]
["mass","green","reveal"]
["card","writing","direction"]
["band","ones","weapon"]
["rope","choice","employee"]
["slip","fiscal","cultural"]
["win","term","contain"]
["dream","watch","peace"]
["evening","scene","head"]
["condition","activity","control"]
["feed","product","base"]
["tool","types","pain"]
["total","ball","apply"]
["basic","heat","play"]
["smell","clothe","measure"]
["valley","lived","wide"]
["nor","distance","shake"]
["double","parent","fly"]
["seat","letters","interview"]
["arrive","returned","manage"]
["master","forward","chair"]
["track","obtained","fish"]
["parent","offer","particular"]
["shore","specific","camera"]
["division","straight","structure"]
["sheet","fix","politics"]
["substance","division","perform"]
["favor","slowly","bit"]
["connect","shot","weight"]
["post","poet","suddenly"]
["spend","seven","discover"]
["chord","moving","candidate"]
["fat","mass","top"]
["glad","plane","production"]
["original","proper","treat"]
["share","propose","trip"]
["station","drink","evening"]
["dad","obviously","affect"]
["bread","plans","inside"]
["charge","whatever","conference"]
["proper","afternoon","unit"]
["bar","figures","best"]
["offer","parts","style"]
["segment","approve","adult"]
["slave","saying","worry"]
["duck","born","range"]
["instant","immediate","mention"]
["market","fame","rather"]
["degree","gives","far"]
["populate","extent","deep"]
["chick","justice","past"]
["dear","cars","edge"]
["enemy","mark","individual"]
["reply","pretty","specific"]
["drink","opinion","writer"]
["occur","ahead","trouble"]
["support","glass","necessary"]
["speech","refuse","throughout"]
["nature","enter","challenge"]
["range","completely","fear"]
["steam","send","shoulder"]
["motion","desire","institution"]
["path","judge","middle"]
["liquid","none","sea"]
["log","waiting","dream"]
["meant","popular","bar"]
["quotient","democratic","beautiful"]
["teeth","film","property"]
["shell","mouth","instead"]
["neck","corps","improve"]
[null,"importance","stuff"]

{"sheet":"HID Usage Table","index":2,"n_rows":55,"n_cols":14,"rows_kept":55,"cut":false,"hidden":false,"merged":[]}
[null,"Scancode","Key","qwerty","tarmak1","tarmak2","tarmak3","tarmak4","colemak","dvorak"]
[null,4,"Keyboard a and A4 ",4,4,4,4,4,4]
[null,5,"Keyboard b and B ",5,5,5,5,5,5,null,null,null,"qwerty",{"$f":"\"PROGMEM prog_uint8_t qwertyKeymap[] = {\" & D2 & \", \" & D3 & \", \" & D4 & \", \" & D5 & \", \" & D6 & \", \" & D7 & \", \" & D8 & \", \" & D9 & \", \" & D10 & \", \" & D11 & \", \" & D12 & \", \" & D13 & \", \" & D14 & \", \" & D15 & \", \" & D16 & \", \" & D17 & \", \" & D18 & \", \" & D19 & \", \" & D20 & \", \" & D21 & \", \" & D22 & \", \" & D23 & \", \" & D24 & \", \" & D25 & \", \" & D26 & \", \" & D27 & \", \" & D28 & \", \" & D29 & \", \" & D30 & \", \" & D31 & \", \" & D32 & \", \" & D33 & \", \" & D34 & \", \" & D35 & \", \" & D36 & \", \" & D37 & \", \" & D38 & \", \" & D39 & \", \" & D40 & \", \" & D41 & \", \" & D42 & \", \" & D43 & \", \" & D44 & \", \" & D45 & \", \" & D46 & \", \" & D47 & \", \" & D48 & \", \" & D49 & \", \" & D50 & \", \" & D51 & \", \" & D52 & \", \" & D53 & \", \" & D54 & \", \" & D55& \"};\"","v":"PROGMEM prog_uint8_t qwertyKeymap[] = {4, 5, 6, 7, 8, 9, 10, 11, 12, 13, 14, 15, 16, 17, 18, 19, 20, 21, 22, 23, 24, 25, 26, 27, 28, 29, 30, 31, 32, 33, 34, 35, 36, 37, 38, 39, 40, 41, 42, 43, 44, 45, 46, 47, 48, 49, 50, 51, 52, 53, 54, 55, 56, 57};"}]
[null,6,"Keyboard c and C4 ",6,6,6,6,6,6,null,null,null,"tarmak1",{"$f":"\"PROGMEM prog_uint8_t tarmak1Keymap[] = {\" & E2 & \", \" & E3 & \", \" & E4 & \", \" & E5 & \", \" & E6 & \", \" & E7 & \", \" & E8 & \", \" & E9 & \", \" & E10 & \", \" & E11 & \", \" & E12 & \", \" & E13 & \", \" & E14 & \", \" & E15 & \", \" & E16 & \", \" & E17 & \", \" & E18 & \", \" & E19 & \", \" & E20 & \", \" & E21 & \", \" & E22 & \", \" & E23 & \", \" & E24 & \", \" & E25 & \", \" & E26 & \", \" & E27 & \", \" & E28 & \", \" & E29 & \", \" & E30 & \", \" & E31 & \", \" & E32 & \", \" & E33 & \", \" & E34 & \", \" & E35 & \", \" & E36 & \", \" & E37 & \", \" & E38 & \", \" & E39 & \", \" & E40 & \", \" & E41 & \", \" & E42 & \", \" & E43 & \", \" & E44 & \", \" & E45 & \", \" & E46 & \", \" & E47 & \", \" & E48 & \", \" & E49 & \", \" & E50 & \", \" & E51 & \", \" & E52 & \", \" & E53 & \", \" & E54 & \", \" & E55& \"};\"","v":"PROGMEM prog_uint8_t tarmak1Keymap[] = {4, 5, 6, 7, 13, 9, 10, 11, 12, 17, 8, 15, 16, 14, 18, 19, 20, 21, 22, 23, 24, 25, 26, 27, 28, 29, 30, 31, 32, 33, 34, 35, 36, 37, 38, 39, 40, 41, 42, 43, 44, 45, 46, 47, 48, 49, 50, 51, 52, 53, 54, 55, 56, 42};"}]
[null,7,"Keyboard d and D ",7,7,7,7,7,22,null,null,null,"tarmak2",{"$f":"\"PROGMEM prog_uint8_t tarmak2Keymap[] = {\" & F2 & \", \" & F3 & \", \" & F4 & \", \" & F5 & \", \" & F6 & \", \" & F7 & \", \" & F8 & \", \" & F9 & \", \" & F10 & \", \" & F11 & \", \" & F12 & \", \" & F13 & \", \" & F14 & \", \" & F15 & \", \" & F16 & \", \" & F17 & \", \" & F18 & \", \" & F19 & \", \" & F20 & \", \" & F21 & \", \" & F22 & \", \" & F23 & \", \" & F24 & \", \" & F25 & \", \" & F26 & \", \" & F27 & \", \" & F28 & \", \" & F29 & \", \" & F30 & \", \" & F31 & \", \" & F32 & \", \" & F33 & \", \" & F34 & \", \" & F35 & \", \" & F36 & \", \" & F37 & \", \" & F38 & \", \" & F39 & \", \" & F40 & \", \" & F41 & \", \" & F42 & \", \" & F43 & \", \" & F44 & \", \" & F45 & \", \" & F46 & \", \" & F47 & \", \" & F48 & \", \" & F49 & \", \" & F50 & \", \" & F51 & \", \" & F52 & \", \" & F53 & \", \" & F54 & \", \" & F55& \"};\"","v":"PROGMEM prog_uint8_t tarmak2Keymap[] = {4, 5, 6, 7, 9, 23, 13, 11, 12, 17, 8, 15, 16, 14, 18, 19, 20, 21, 22, 10, 24, 25, 26, 27, 28, 29, 30, 31, 32, 33, 34, 35, 36, 37, 38, 39, 40, 41, 42, 43, 44, 45, 46, 47, 48, 49, 50, 51, 52, 53, 54, 55, 56, 42};"}]
[null,8,"Keyboard e and E ",8,13,9,9,9,9,null,null,null,"tarmak3",{"$f":"\"PROGMEM prog_uint8_t tarmak3Keymap[] = {\" & G2 & \", \" & G3 & \", \" & G4 & \", \" & G5 & \", \" & G6 & \", \" & G7 & \", \" & G8 & \", \" & G9 & \", \" & G10 & \", \" & G11 & \", \" & G12 & \", \" & G13 & \", \" & G14 & \", \" & G15 & \", \" & G16 & \", \" & G17 & \", \" & G18 & \", \" & G19 & \", \" & G20 & \", \" & G21 & \", \" & G22 & \", \" & G23 & \", \" & G24 & \", \" & G25 & \", \" & G26 & \", \" & G27 & \", \" & G28 & \", \" & G29 & \", \" & G30 & \", \" & G31 & \", \" & G32 & \", \" & G33 & \", \" & G34 & \", \" & G35 & \", \" & G36 & \", \" & G37 & \", \" & G38 & \", \" & G39 & \", \" & G40 & \", \" & G41 & \", \" & G42 & \", \" & G43 & \", \" & G44 & \", \" & G45 & \", \" & G46 & \", \" & G47 & \", \" & G48 & \", \" & G49 & \", \" & G50 & \", \" & G51 & \", \" & G52 & \", \" & G53 & \", \" & G54 & \", \" & G55& \"};\"","v":"PROGMEM prog_uint8_t tarmak3Keymap[] = {4, 5, 6, 7, 9, 23, 51, 11, 12, 17, 8, 15, 16, 14, 28, 19, 20, 21, 22, 10, 24, 25, 26, 27, 13, 29, 30, 31, 32, 33, 34, 35, 36, 37, 38, 39, 40, 41, 42, 43, 44, 45, 46, 47, 48, 49, 50, 18, 52, 53, 54, 55, 56, 42};"}]
[null,9,"Keyboard f and F ",9,9,23,23,23,23,null,null,null,"tarmak4",{"$f":"\"PROGMEM prog_uint8_t tarmak4Keymap[] = {\" & H2 & \", \" & H3 & \", \" & H4 & \", \" & H5 & \", \" & H6 & \", \" & H7 & \", \" & H8 & \", \" & H9 & \", \" & H10 & \", \" & H11 & \", \" & H12 & \", \" & H13 & \", \" & H14 & \", \" & H15 & \", \" & H16 & \", \" & H17 & \", \" & H18 & \", \" & H19 & \", \" & H20 & \", \" & H21 & \", \" & H22 & \", \" & H23 & \", \" & H24 & \", \" & H25 & \", \" & H26 & \", \" & H27 & \", \" & H28 & \", \" & H29 & \", \" & H30 & \", \" & H31 & \", \" & H32 & \", \" & H33 & \", \" & H34 & \", \" & H35 & \", \" & H36 & \", \" & H37 & \", \" & H38 & \", \" & H39 & \", \" & H40 & \", \" & H41 & \", \" & H42 & \", \" & H43 & \", \" & H44 & \", \" & H45 & \", \" & H46 & \", \" & H47 & \", \" & H48 & \", \" & H49 & \", \" & H50 & \", \" & H51 & \", \" & H52 & \", \" & H53 & \", \" & H54 & \", \" & H55& \"};\"","v":"PROGMEM prog_uint8_t tarmak4Keymap[] = {4, 5, 6, 7, 9, 23, 51, 11, 24, 17, 8, 12, 16, 14, 28, 19, 20, 21, 22, 10, 15, 25, 26, 27, 13, 29, 30, 31, 32, 33, 34, 35, 36, 37, 38, 39, 40, 41, 42, 43, 44, 45, 46, 47, 48, 49, 50, 18, 52, 53, 54, 55, 56, 42};"}]
[null,10,"Keyboard g and G ",10,10,13,51,51,7,null,null,null,"colemak",{"$f":"\"PROGMEM prog_uint8_t colemakKeymap[] = {\" & I2 & \", \" & I3 & \", \" & I4 & \", \" & I5 & \", \" & I6 & \", \" & I7 & \", \" & I8 & \", \" & I9 & \", \" & I10 & \", \" & I11 & \", \" & I12 & \", \" & I13 & \", \" & I14 & \", \" & I15 & \", \" & I16 & \", \" & I17 & \", \" & I18 & \", \" & I19 & \", \" & I20 & \", \" & I21 & \", \" & I22 & \", \" & I23 & \", \" & I24 & \", \" & I25 & \", \" & I26 & \", \" & I27 & \", \" & I28 & \", \" & I29 & \", \" & I30 & \", \" & I31 & \", \" & I32 & \", \" & I33 & \", \" & I34 & \", \" & I35 & \", \" & I36 & \", \" & I37 & \", \" & I38 & \", \" & I39 & \", \" & I40 & \", \" & I41 & \", \" & I42 & \", \" & I43 & \", \" & I44 & \", \" & I45 & \", \" & I46 & \", \" & I47 & \", \" & I48 & \", \" & I49 & \", \" & I50 & \", \" & I51 & \", \" & I52 & \", \" & I53 & \", \" & I54 & \", \" & I55& \"};\"","v":"PROGMEM prog_uint8_t colemakKeymap[] = {4, 5, 6, 22, 9, 23, 7, 11, 24, 17, 8, 12, 16, 14, 28, 51, 20, 19, 21, 10, 15, 25, 26, 27, 13, 29, 30, 31, 32, 33, 34, 35, 36, 37, 38, 39, 40, 41, 42, 43, 44, 45, 46, 47, 48, 49, 50, 18, 52, 53, 54, 55, 56, 42};"}]
[null,11,"Keyboard h and H ",11,11,11,11,11,11,null,null,null,"dvorak"]
[null,12,"Keyboard i and I ",12,12,12,12,24,24]
[null,13,"Keyboard j and J ",13,17,17,17,17,17]
[null,14,"Keyboard k and K ",14,8,8,8,8,8]
[null,15,"Keyboard l and L ",15,15,15,15,12,12]
[null,16,"Keyboard m and M4 ",16,16,16,16,16,16]
[null,17,"Keyboard n and N ",17,14,14,14,14,14]
[null,18,"Keyboard o and O4 ",18,18,18,28,28,28]
[null,19,"Keyboard p and P4 ",19,19,19,19,19,51]
[null,20,"Keyboard q and Q4 ",20,20,20,20,20,20]
[null,21,"Keyboard r and R ",21,21,21,21,21,19]
[null,22,"Keyboard s and S4 ",22,22,22,22,22,21]
[null,23,"Keyboard t and T ",23,23,10,10,10,10]
[null,24,"Keyboard u and U ",24,24,24,24,15,15]
[null,25,"Keyboard v and V ",25,25,25,25,25,25]
[null,26,"Keyboard w and W4 ",26,26,26,26,26,26]
[null,27,"Keyboard x and X4 ",27,27,27,27,27,27]
[null,28,"Keyboard y and Y4 ",28,28,28,13,13,13]
[null,29,"Keyboard z and Z4 ",29,29,29,29,29,29]
[null,30,"Keyboard 1 and !4 ",30,30,30,30,30,30]
[null,31,"Keyboard 2 and @4 ",31,31,31,31,31,31]
[null,32,"Keyboard 3 and #4 ",32,32,32,32,32,32]
[null,33,"Keyboard 4 and $4 ",33,33,33,33,33,33]
[null,34,"Keyboard 5 and %4 ",34,34,34,34,34,34]
[null,35,"Keyboard 6 and ^4 ",35,35,35,35,35,35]
[null,36,"Keyboard 7 and &4 ",36,36,36,36,36,36]
[null,37,"Keyboard 8 and *4 ",37,37,37,37,37,37]
[null,38,"Keyboard 9 and (4 ",38,38,38,38,38,38]
[null,39,"Keyboard 0 and )4 ",39,39,39,39,39,39]
[null,40,"Keyboard Return (ENTER)5 ",40,40,40,40,40,40]
[null,41,"Keyboard ESCAPE ",41,41,41,41,41,41]
[null,42,"Keyboard DELETE (Backspace)13 ",42,42,42,42,42,42]
[null,43,"Keyboard Tab ",43,43,43,43,43,43]
[null,44,"Keyboard Spacebar ",44,44,44,44,44,44]
[null,45,"Keyboard - and (underscore)4 ",45,45,45,45,45,45]
[null,46,"Keyboard = and +4 ",46,46,46,46,46,46]
[null,47,"Keyboard [ and {4 ",47,47,47,47,47,47]
[null,48,"Keyboard ] and }4 ",48,48,48,48,48,48]
[null,49,"Keyboard \\ and | ",49,49,49,49,49,49]
[null,50,"Keyboard Non-US # and ~2 ",50,50,50,50,50,50]
[null,51,"Keyboard ; and :4 ",51,51,51,18,18,18]
[null,52,"Keyboard ‘ and “4 ",52,52,52,52,52,52]
[null,53,"Keyboard Grave Accent and Tilde4 ",53,53,53,53,53,53]
[null,54,"Keyboard, and <4 ",54,54,54,54,54,54]
[null,55,"Keyboard . and >4 ",55,55,55,55,55,55]
[null,56,"Keyboard / and ?4 ",56,56,56,56,56,56]
[null,57,"Keyboard Caps Lock11 ",57,42,42,42,42,42]